{"text_format":"1","workbook":"xlsx","n_sheets":4,"sheets":["Qüestionari","Full1","Full2","Full3"],"not_rendered":{"charts":0,"images":0,"macros":1,"external_links":0,"defined_names":1,"comments":1,"pivot_tables":0},"unopened":[],"bounds":{"document_bytes":16777216,"sheet_cells":100000,"rows_first":2000,"rows_last":500,"rows_between":2000,"halvings":0,"cell_chars":16384,"cell_head_chars":4096},"cells_cut":0,"cells_raw":0,"read":"whole","date_system":"1900"}

{"sheet":"Qüestionari","index":0,"n_rows":356,"n_cols":7,"rows_kept":356,"cut":false,"hidden":false,"merged":[[12,2,13,3],[1,2,1,4],[6,2,8,3],[9,2,11,3],[4,2,5,3],[301,3,309,4],[310,3,318,4],[319,3,327,4],[328,3,336,4],[337,3,345,4],[346,3,354,4],[355,3,363,4],[301,2,302,2],[155,2,155,4],[161,2,161,4],[288,2,288,4],[291,2,291,4],[295,2,295,4],[254,2,254,4],[260,2,260,4],[265,2,265,4],[267,2,267,4],[269,2,269,4],[271,2,271,4],[273,2,273,4],[276,2,276,4],[25,2,25,4],[28,2,28,4],[32,2,32,4],[53,2,53,4],[69,2,69,4],[120,2,120,4],[127,2,127,4],[136,2,136,4],[140,2,140,4],[146,2,146,4],[189,2,189,4],[193,2,193,4],[200,2,200,4],[212,2,212,4],[222,2,222,4],[16,2,16,4],[22,2,22,4],[74,2,74,4],[279,2,279,4],[83,2,83,4],[92,2,92,4],[103,2,103,4],[108,2,108,4],[149,2,149,4],[235,2,235,4],[246,2,246,4],[164,2,164,4],[168,2,168,4],[178,2,178,4],[184,2,184,4],[230,2,230,4]]}
[]
[null,null,"Qüestionari per situacions de risc"]
[]
[null,null,"Instruccions:"]
[null,null,"(1) Empleneu les caselles d'edat de l'infant (entre 0 i 17 anys) i nivell educatiu (caselles a la dreta amb fons groc). El nivell educatiu és un llistat desplegable.",null,"Edat de l'infant"]
[]
[null,null,"(2) Responeu amb \"Si\" o \"No\" exclusivament a les preguntes marcades amb asterisc, en negreta i fons verd (per defecte, es mostra la resposta \"No\"). A la resta, deixeu la resposta \"No\". Les preguntes a respondre depenen de l'edat introduïda. El rang d'edat pel qual s'ha de respondre a la pregunta apareix, a títol informatiu, al final de les preguntes."]
[null,null,null,null,"Nivell Educatiu"]
[]
[null,null,"(3) Al final del qüestionari us apareixeran les accions a realitzar, sempre i quan l'edat i el nivell educatiu estiguin introduïts. Les accions a realitzar depenen del nivell educatiu introduït i les respostes donades."]
[]
[]
[null,null,"(4) Si voleu esborrar les dades, cliqueu el botó \"Esborrar dades\". Totes les respostes del qüestionari tornaran a l'estat \"No\" i l'edat de l'infant i nivell educatiu s'esborraran."]
[]
[]
[null,null,"Núm.","Element avaluat","Resposta"]
[null,null,"A1. Higiene de l’infant"]
[null,{"$f":"IF(AND($E$6<>\"\",$E$9<>\"\",$F18<=$E$6,$G18>=$E$6),\"*\",\"\")","v":""},{"$f":"CONCATENATE(\"A1-\",IF(RIGHT(LEFT(Qüestionari!$D18,2),1)=\"\",\"0\",\"\"),IF(RIGHT(LEFT(Qüestionari!$D18,2),1)=\"\",LEFT(Qüestionari!$D18,1),LEFT(Qüestionari!$D18,2)))","v":"A1-1 "},"1 Porta la roba bruta 0‐17","No",{"$f":"0","v":0},{"$f":"17","v":17}]
[null,{"$f":"IF(AND($E$6<>\"\",$E$9<>\"\",$F19<=$E$6,$G19>=$E$6),\"*\",\"\")","v":""},{"$f":"CONCATENATE(LEFT(C18,2),\"-\",IF(RIGHT(LEFT(Qüestionari!$D19,2),1)=\"\",0,\"\"),IF(RIGHT(LEFT(Qüestionari!$D19,2),1)=\"\",LEFT(Qüestionari!$D19,1),LEFT(Qüestionari!$D19,2)))","v":"A1-2 "},"2 Presenta olors desagradables 3‐17","No",{"$f":"3","v":3},{"$f":"17","v":17}]
[null,"",{"$f":"CONCATENATE(LEFT(C19,2),\"-\",IF(RIGHT(LEFT(Qüestionari!$D20,2),1)=\"\",0,\"\"),IF(RIGHT(LEFT(Qüestionari!$D20,2),1)=\"\",LEFT(Qüestionari!$D20,1),LEFT(Qüestionari!$D20,2)))","v":"A1-3 "},"3 Porta roba i/o calçat inadequats 0‐17","No",{"$f":"0","v":0},{"$f":"17","v":17}]
[null,"",{"$f":"CONCATENATE(LEFT(C20,2),\"-\",IF(RIGHT(LEFT(Qüestionari!$D21,2),1)=\"\",0,\"\"),IF(RIGHT(LEFT(Qüestionari!$D21,2),1)=\"\",LEFT(Qüestionari!$D21,1),LEFT(Qüestionari!$D21,2)))","v":"A1-4 "},"4 Presenta una higiene corporal deficient 0‐17","No",{"$f":"0","v":0},{"$f":"17","v":17}]
[null,"",{"$f":"CONCATENATE(LEFT(C21,2),\"-\",IF(RIGHT(LEFT(Qüestionari!$D22,2),1)=\"\",0,\"\"),IF(RIGHT(LEFT(Qüestionari!$D22,2),1)=\"\",LEFT(Qüestionari!$D22,1),LEFT(Qüestionari!$D22,2)))","v":"A1-5 "},"5 Mostra lesions cutànies amb enrogiment de la pell a la zona dels bolquers 0‐3","No",{"$f":"0","v":0},{"$f":"3","v":3}]
[null,"","A2. L’alimentació de l’infant és descuidada o insuficient",null,null,"",""]
[null,"",{"$f":"CONCATENATE(\"A2-\",IF(RIGHT(LEFT(Qüestionari!$D24,2),1)=\"\",0,\"\"),IF(RIGHT(LEFT(Qüestionari!$D24,2),1)=\"\",LEFT(Qüestionari!$D24,1),LEFT(Qüestionari!$D24,2)))","v":"A2-1 "},"1 Assisteix a l’escola sense esmorzar i no en porta 1‐17","No",{"$f":"1","v":1},{"$f":"17","v":17}]
[null,"",{"$f":"CONCATENATE(LEFT(C24,2),\"-\",IF(RIGHT(LEFT(Qüestionari!$D25,2),1)=\"\",0,\"\"),IF(RIGHT(LEFT(Qüestionari!$D25,2),1)=\"\",LEFT(Qüestionari!$D25,1),LEFT(Qüestionari!$D25,2)))","v":"A2-2 "},"2 Demana o roba menjar, diu que passa gana, que a casa no li donen menjar 3‐17","No",{"$f":"3","v":3},{"$f":"17","v":17}]
[null,"","A3. L’infant mostra cansament habitual",null,null,"",""]
[null,"",{"$f":"CONCATENATE(\"A3-\",IF(RIGHT(LEFT(Qüestionari!$D27,2),1)=\"\",0,\"\"),IF(RIGHT(LEFT(Qüestionari!$D27,2),1)=\"\",LEFT(Qüestionari!$D27,1),LEFT(Qüestionari!$D27,2)))","v":"A3-1 "},"1 Es mostra cansat/da sense justificació 1‐17","No",{"$f":"1","v":1},{"$f":"17","v":17}]
[null,"",{"$f":"CONCATENATE(LEFT(C27,2),\"-\",IF(RIGHT(LEFT(Qüestionari!$D28,2),1)=\"\",0,\"\"),IF(RIGHT(LEFT(Qüestionari!$D28,2),1)=\"\",LEFT(Qüestionari!$D28,1),LEFT(Qüestionari!$D28,2)))","v":"A3-2 "},"2 S’adorm a classe 6‐17","No",{"$f":"6","v":6},{"$f":"17","v":17}]
[null,"","A4. Manifestacions de dolences físiques per part de l'infant",null,null,"",""]
[null,"",{"$f":"CONCATENATE(\"A4-\",IF(RIGHT(LEFT(Qüestionari!$D30,2),1)=\"\",0,\"\"),IF(RIGHT(LEFT(Qüestionari!$D30,2),1)=\"\",LEFT(Qüestionari!$D30,1),LEFT(Qüestionari!$D30,2)))","v":"A4-1 "},"1 Es queixa sovint de dolor (mal de panxa, mal de cap...) 2‐17","No",{"$f":"2","v":2},{"$f":"17","v":17}]
[null,"",{"$f":"CONCATENATE(LEFT(C30,2),\"-\",IF(RIGHT(LEFT(Qüestionari!$D31,2),1)=\"\",0,\"\"),IF(RIGHT(LEFT(Qüestionari!$D31,2),1)=\"\",LEFT(Qüestionari!$D31,1),LEFT(Qüestionari!$D31,2)))","v":"A4-2 "},"2 Està constantment malalt/a 1‐17","No",{"$f":"1","v":1},{"$f":"17","v":17}]
[null,"",{"$f":"CONCATENATE(LEFT(C31,2),\"-\",IF(RIGHT(LEFT(Qüestionari!$D32,2),1)=\"\",0,\"\"),IF(RIGHT(LEFT(Qüestionari!$D32,2),1)=\"\",LEFT(Qüestionari!$D32,1),LEFT(Qüestionari!$D32,2)))","v":"A4-3 "},"3 Presenta ferides, cops, etc., que semblen produïdes accidentalment 0‐17","No",{"$f":"0","v":0},{"$f":"17","v":17}]
[null,"","A5. L’infant és receptor de violència física de forma intencionada",null,null,"",""]
[null,"",{"$f":"CONCATENATE(\"A5-\",IF(RIGHT(LEFT(Qüestionari!$D34,2),1)=\"\",0,\"\"),IF(RIGHT(LEFT(Qüestionari!$D34,2),1)=\"\",LEFT(Qüestionari!$D34,1),LEFT(Qüestionari!$D34,2)))","v":"A5-1 "},"1 Presenta ferides o rascades 0‐17","No",{"$f":"0","v":0},{"$f":"17","v":17}]
[null,"",{"$f":"CONCATENATE(LEFT(C34,2),\"-\",IF(RIGHT(LEFT(Qüestionari!$D35,2),1)=\"\",0,\"\"),IF(RIGHT(LEFT(Qüestionari!$D35,2),1)=\"\",LEFT(Qüestionari!$D35,1),LEFT(Qüestionari!$D35,2)))","v":"A5-2 "},"2 Presenta senyals de mossegades 0‐17","No",{"$f":"0","v":0},{"$f":"17","v":17}]
[null,"",{"$f":"CONCATENATE(LEFT(C35,2),\"-\",IF(RIGHT(LEFT(Qüestionari!$D36,2),1)=\"\",0,\"\"),IF(RIGHT(LEFT(Qüestionari!$D36,2),1)=\"\",LEFT(Qüestionari!$D36,1),LEFT(Qüestionari!$D36,2)))","v":"A5-3 "},"3 Presenta hematomes 0‐17","No",{"$f":"0","v":0},{"$f":"17","v":17}]
[null,"",{"$f":"CONCATENATE(LEFT(C36,2),\"-\",IF(RIGHT(LEFT(Qüestionari!$D37,2),1)=\"\",0,\"\"),IF(RIGHT(LEFT(Qüestionari!$D37,2),1)=\"\",LEFT(Qüestionari!$D37,1),LEFT(Qüestionari!$D37,2)))","v":"A5-4 "},"4 Presenta altres senyals observables 0‐17","No",{"$f":"0","v":0},{"$f":"17","v":17}]
[null,"",{"$f":"CONCATENATE(LEFT(C37,2),\"-\",IF(RIGHT(LEFT(Qüestionari!$D38,2),1)=\"\",0,\"\"),IF(RIGHT(LEFT(Qüestionari!$D38,2),1)=\"\",LEFT(Qüestionari!$D38,1),LEFT(Qüestionari!$D38,2)))","v":"A5-5 "},"5 Presenta més d'una cremada de cigarreta en una o diferents parts el cos","No",{"$f":"0","v":0},{"$f":"17","v":17}]
[null,"",{"$f":"CONCATENATE(LEFT(C38,2),\"-\",IF(RIGHT(LEFT(Qüestionari!$D39,2),1)=\"\",0,\"\"),IF(RIGHT(LEFT(Qüestionari!$D39,2),1)=\"\",LEFT(Qüestionari!$D39,1),LEFT(Qüestionari!$D39,2)))","v":"A5-6 "},"6 Presenta manca de flocs de cabell 0‐17","No",{"$f":"0","v":0},{"$f":"17","v":17}]
[null,"",{"$f":"CONCATENATE(LEFT(C39,2),\"-\",IF(RIGHT(LEFT(Qüestionari!$D40,2),1)=\"\",0,\"\"),IF(RIGHT(LEFT(Qüestionari!$D40,2),1)=\"\",LEFT(Qüestionari!$D40,1),LEFT(Qüestionari!$D40,2)))","v":"A5-7 "},"7 Presenta talls o punxades 0‐17","No",{"$f":"0","v":0},{"$f":"17","v":17}]
[null,"",{"$f":"CONCATENATE(LEFT(C40,2),\"-\",IF(RIGHT(LEFT(Qüestionari!$D41,2),1)=\"\",0,\"\"),IF(RIGHT(LEFT(Qüestionari!$D41,2),1)=\"\",LEFT(Qüestionari!$D41,1),LEFT(Qüestionari!$D41,2)))","v":"A5-8 "},"8 Manifesta dolor en determinades parts del cos 0‐17","No",{"$f":"0","v":0},{"$f":"17","v":17}]
[null,"",{"$f":"CONCATENATE(LEFT(C41,2),\"-\",IF(RIGHT(LEFT(Qüestionari!$D42,2),1)=\"\",0,\"\"),IF(RIGHT(LEFT(Qüestionari!$D42,2),1)=\"\",LEFT(Qüestionari!$D42,1),LEFT(Qüestionari!$D42,2)))","v":"A5-9 "},"9 Manifesta o assenyala amb gestos que els seus progenitors són els causants de les lesions 1‐17","No",{"$f":"1","v":1},{"$f":"17","v":17}]
[null,"",{"$f":"CONCATENATE(LEFT(C42,2),\"-\",IF(RIGHT(LEFT(Qüestionari!$D43,2),1)=\"\",0,\"\"),IF(RIGHT(LEFT(Qüestionari!$D43,2),1)=\"\",LEFT(Qüestionari!$D43,1),LEFT(Qüestionari!$D43,2)))","v":"A5-10"},"10 Manifesta que està sent receptor de violència física per part d'algú del seu entorn 1‐17","No",{"$f":"1","v":1},{"$f":"17","v":17}]
[null,"",{"$f":"CONCATENATE(LEFT(C43,2),\"-\",IF(RIGHT(LEFT(Qüestionari!$D44,2),1)=\"\",0,\"\"),IF(RIGHT(LEFT(Qüestionari!$D44,2),1)=\"\",LEFT(Qüestionari!$D44,1),LEFT(Qüestionari!$D44,2)))","v":"A5-11"},"11 Manifesta o assenyala amb gestos que un adult del centre és el causant de les lesions 1‐17","No",{"$f":"1","v":1},{"$f":"17","v":17}]
[null,"",{"$f":"CONCATENATE(LEFT(C44,2),\"-\",IF(RIGHT(LEFT(Qüestionari!$D45,2),1)=\"\",0,\"\"),IF(RIGHT(LEFT(Qüestionari!$D45,2),1)=\"\",LEFT(Qüestionari!$D45,1),LEFT(Qüestionari!$D45,2)))","v":"A5-12"},"12 Manifesta que està sent receptor de violència física per part algun adult del centre 1‐17","No",{"$f":"1","v":1},{"$f":"17","v":17}]
[null,"",{"$f":"CONCATENATE(LEFT(C45,2),\"-\",IF(RIGHT(LEFT(Qüestionari!$D46,2),1)=\"\",0,\"\"),IF(RIGHT(LEFT(Qüestionari!$D46,2),1)=\"\",LEFT(Qüestionari!$D46,1),LEFT(Qüestionari!$D46,2)))","v":"A5-13"},"13 Manifesta o assenyala amb gestos que un alumne/a del centre és el causant de les lesions 1‐17","No",{"$f":"1","v":1},{"$f":"17","v":17}]
[null,"",{"$f":"CONCATENATE(LEFT(C46,2),\"-\",IF(RIGHT(LEFT(Qüestionari!$D47,2),1)=\"\",0,\"\"),IF(RIGHT(LEFT(Qüestionari!$D47,2),1)=\"\",LEFT(Qüestionari!$D47,1),LEFT(Qüestionari!$D47,2)))","v":"A5-14"},"14 Manifesta que està sent receptor de violència física per part algun alumne/a del centre 1‐17","No",{"$f":"1","v":1},{"$f":"17","v":17}]
[null,"",{"$f":"CONCATENATE(LEFT(C47,2),\"-\",IF(RIGHT(LEFT(Qüestionari!$D48,2),1)=\"\",0,\"\"),IF(RIGHT(LEFT(Qüestionari!$D48,2),1)=\"\",LEFT(Qüestionari!$D48,1),LEFT(Qüestionari!$D48,2)))","v":"A5-15"},"15 Dóna explicacions estranyes o poc convincents respecte a les lesions que presenta 3‐17","No",{"$f":"3","v":3},{"$f":"17","v":17}]
[null,"",{"$f":"CONCATENATE(LEFT(C48,2),\"-\",IF(RIGHT(LEFT(Qüestionari!$D49,2),1)=\"\",0,\"\"),IF(RIGHT(LEFT(Qüestionari!$D49,2),1)=\"\",LEFT(Qüestionari!$D49,1),LEFT(Qüestionari!$D49,2)))","v":"A5-16"},"16 Informe mèdic de l'Hospital confirma maltractament","No",{"$f":"0","v":0},{"$f":"17","v":17}]
[null,"",{"$f":"CONCATENATE(LEFT(C49,2),\"-\",IF(RIGHT(LEFT(Qüestionari!$D50,2),1)=\"\",0,\"\"),IF(RIGHT(LEFT(Qüestionari!$D50,2),1)=\"\",LEFT(Qüestionari!$D50,1),LEFT(Qüestionari!$D50,2)))","v":"A5-17"},"17 S'ha fet una primera entrevista i els indicadors 1,2,3,4,6,7,8,9,10 continuen donant-se","No",{"$f":"0","v":0},{"$f":"17","v":17}]
[null,"",{"$f":"CONCATENATE(LEFT(C50,2),\"-\",IF(RIGHT(LEFT(Qüestionari!$D51,2),1)=\"\",0,\"\"),IF(RIGHT(LEFT(Qüestionari!$D51,2),1)=\"\",LEFT(Qüestionari!$D51,1),LEFT(Qüestionari!$D51,2)))","v":"A5-18"},"18 L'infant va patir, en el passat, maltractament (inclou maltractament prenatal)","No",{"$f":"0","v":0},{"$f":"17","v":17}]
[null,"",{"$f":"CONCATENATE(LEFT(C51,2),\"-\",IF(RIGHT(LEFT(Qüestionari!$D52,2),1)=\"\",0,\"\"),IF(RIGHT(LEFT(Qüestionari!$D52,2),1)=\"\",LEFT(Qüestionari!$D52,1),LEFT(Qüestionari!$D52,2)))","v":"A5-19"},"19 La família relata que un adult del centre ha maltractat el seu fill/a","No",{"$f":"0","v":0},{"$f":"17","v":17}]
[null,"",{"$f":"CONCATENATE(LEFT(C52,2),\"-\",IF(RIGHT(LEFT(Qüestionari!$D53,2),1)=\"\",0,\"\"),IF(RIGHT(LEFT(Qüestionari!$D53,2),1)=\"\",LEFT(Qüestionari!$D53,1),LEFT(Qüestionari!$D53,2)))","v":"A5-20"},"20 La família relata que el seu fill/a ha patit maltractament per part d'un alumne/a del centre","No",{"$f":"0","v":0},{"$f":"17","v":17}]
[null,"","A6. L'infant pot estar patint actualment abusos sexuals",null,null,"",""]
[null,"",{"$f":"CONCATENATE(\"A6-\",IF(RIGHT(LEFT(Qüestionari!$D55,2),1)=\"\",0,\"\"),IF(RIGHT(LEFT(Qüestionari!$D55,2),1)=\"\",LEFT(Qüestionari!$D55,1),LEFT(Qüestionari!$D55,2)))","v":"A6-1 "},"1 Presenta dolor / picor en la zona anal / genital 0‐17","No",{"$f":"0","v":0},{"$f":"17","v":17}]
[null,"",{"$f":"CONCATENATE(LEFT(C55,2),\"-\",IF(RIGHT(LEFT(Qüestionari!$D56,2),1)=\"\",0,\"\"),IF(RIGHT(LEFT(Qüestionari!$D56,2),1)=\"\",LEFT(Qüestionari!$D56,1),LEFT(Qüestionari!$D56,2)))","v":"A6-2 "},"2 Té molèsties quan camina o s’asseu 3‐17","No",{"$f":"3","v":3},{"$f":"17","v":17}]
[null,"",{"$f":"CONCATENATE(LEFT(C56,2),\"-\",IF(RIGHT(LEFT(Qüestionari!$D57,2),1)=\"\",0,\"\"),IF(RIGHT(LEFT(Qüestionari!$D57,2),1)=\"\",LEFT(Qüestionari!$D57,1),LEFT(Qüestionari!$D57,2)))","v":"A6-3 "},"3 Presenta roba interior esquinçada, tacada o amb sang 0‐17","No",{"$f":"0","v":0},{"$f":"17","v":17}]
[null,"",{"$f":"CONCATENATE(LEFT(C57,2),\"-\",IF(RIGHT(LEFT(Qüestionari!$D58,2),1)=\"\",0,\"\"),IF(RIGHT(LEFT(Qüestionari!$D58,2),1)=\"\",LEFT(Qüestionari!$D58,1),LEFT(Qüestionari!$D58,2)))","v":"A6-4 "},"4 És una nena o adolescent embarassada (especialment si es nega a identificar al pare) 12‐17","No",12,{"$f":"17","v":17}]
[null,"",{"$f":"CONCATENATE(LEFT(C58,2),\"-\",IF(RIGHT(LEFT(Qüestionari!$D59,2),1)=\"\",0,\"\"),IF(RIGHT(LEFT(Qüestionari!$D59,2),1)=\"\",LEFT(Qüestionari!$D59,1),LEFT(Qüestionari!$D59,2)))","v":"A6-5 "},"5 Hi ha indicis que l'estan forçant en activitats sexuals (abús sexual) 0‐17","No",{"$f":"0","v":0},{"$f":"17","v":17}]
[null,"",{"$f":"CONCATENATE(LEFT(C59,2),\"-\",IF(RIGHT(LEFT(Qüestionari!$D60,2),1)=\"\",0,\"\"),IF(RIGHT(LEFT(Qüestionari!$D60,2),1)=\"\",LEFT(Qüestionari!$D60,1),LEFT(Qüestionari!$D60,2)))","v":"A6-6 "},"6 Explica que està patint abusos sexuals per part d'algú del seu entorn (pares, familiar proper,...) 3‐17","No",{"$f":"3","v":3},{"$f":"17","v":17}]
[null,"",{"$f":"CONCATENATE(LEFT(C60,2),\"-\",IF(RIGHT(LEFT(Qüestionari!$D61,2),1)=\"\",0,\"\"),IF(RIGHT(LEFT(Qüestionari!$D61,2),1)=\"\",LEFT(Qüestionari!$D61,1),LEFT(Qüestionari!$D61,2)))","v":"A6-7 "},"7 Explica que està patint abusos sexuals per part d'algun adult del centre  3‐17","No",{"$f":"3","v":3},{"$f":"17","v":17}]
[null,"",{"$f":"CONCATENATE(LEFT(C61,2),\"-\",IF(RIGHT(LEFT(Qüestionari!$D62,2),1)=\"\",0,\"\"),IF(RIGHT(LEFT(Qüestionari!$D62,2),1)=\"\",LEFT(Qüestionari!$D62,1),LEFT(Qüestionari!$D62,2)))","v":"A6-8 "},"8 Explica que està patint abusos sexuals per part d'algun alumne/a del centre  3‐17","No",{"$f":"3","v":3},{"$f":"17","v":17}]
[null,"",{"$f":"CONCATENATE(LEFT(C62,2),\"-\",IF(RIGHT(LEFT(Qüestionari!$D63,2),1)=\"\",0,\"\"),IF(RIGHT(LEFT(Qüestionari!$D63,2),1)=\"\",LEFT(Qüestionari!$D63,1),LEFT(Qüestionari!$D63,2)))","v":"A6-9 "},"9 Manifesta o assenyala amb gestos que els seus progenitors són els causants de l'abús sexual 3‐17","No",{"$f":"3","v":3},{"$f":"17","v":17}]
[null,"",{"$f":"CONCATENATE(LEFT(C63,2),\"-\",IF(RIGHT(LEFT(Qüestionari!$D64,2),1)=\"\",0,\"\"),IF(RIGHT(LEFT(Qüestionari!$D64,2),1)=\"\",LEFT(Qüestionari!$D64,1),LEFT(Qüestionari!$D64,2)))","v":"A6-10"},"10 Manifesta o assenyala amb gestos que un adult del centre és el causant de l'abús sexual 3‐17","No",{"$f":"3","v":3},{"$f":"17","v":17}]
[null,"",{"$f":"CONCATENATE(LEFT(C64,2),\"-\",IF(RIGHT(LEFT(Qüestionari!$D65,2),1)=\"\",0,\"\"),IF(RIGHT(LEFT(Qüestionari!$D65,2),1)=\"\",LEFT(Qüestionari!$D65,1),LEFT(Qüestionari!$D65,2)))","v":"A6-11"},"11 Manifesta o assenyala amb gestos que un alumne/a del centre és el causant de l'abús sexual 3‐17","No",{"$f":"3","v":3},{"$f":"17","v":17}]
[null,"",{"$f":"CONCATENATE(LEFT(C65,2),\"-\",IF(RIGHT(LEFT(Qüestionari!$D66,2),1)=\"\",0,\"\"),IF(RIGHT(LEFT(Qüestionari!$D66,2),1)=\"\",LEFT(Qüestionari!$D66,1),LEFT(Qüestionari!$D66,2)))","v":"A6-12"},"12 La família relata que el seu fill/a ha patit abús sexual per part d'un adult del centre","No",{"$f":"0","v":0},{"$f":"17","v":17}]
[null,"",{"$f":"CONCATENATE(LEFT(C66,2),\"-\",IF(RIGHT(LEFT(Qüestionari!$D67,2),1)=\"\",0,\"\"),IF(RIGHT(LEFT(Qüestionari!$D67,2),1)=\"\",LEFT(Qüestionari!$D67,1),LEFT(Qüestionari!$D67,2)))","v":"A6-13"},"13 La família relata que el seu fill/a ha patit abús sexual per part d'un alumne/a del centre","No",{"$f":"0","v":0},{"$f":"17","v":17}]
[null,"",{"$f":"CONCATENATE(LEFT(C67,2),\"-\",IF(RIGHT(LEFT(Qüestionari!$D68,2),1)=\"\",0,\"\"),IF(RIGHT(LEFT(Qüestionari!$D68,2),1)=\"\",LEFT(Qüestionari!$D68,1),LEFT(Qüestionari!$D68,2)))","v":"A6-14"},"14 Dóna explicacions estranyes o poc convincents respecte a les lesions que presenta 3‐17","No",{"$f":"3","v":3},{"$f":"17","v":17}]
[null,"",{"$f":"CONCATENATE(LEFT(C68,2),\"-\",IF(RIGHT(LEFT(Qüestionari!$D69,2),1)=\"\",0,\"\"),IF(RIGHT(LEFT(Qüestionari!$D69,2),1)=\"\",LEFT(Qüestionari!$D69,1),LEFT(Qüestionari!$D69,2)))","v":"A6-15"},"15 L'infant va patir, en el passat abús sexual  1-17","No",{"$f":"1","v":1},{"$f":"17","v":17}]
[null,"","A9. Manifestacions d'altres persones, professionals o membres de la família",null,null,"",""]
[null,"",{"$f":"CONCATENATE(\"A9-\",IF(RIGHT(LEFT(Qüestionari!$D71,2),1)=\"\",0,\"\"),IF(RIGHT(LEFT(Qüestionari!$D71,2),1)=\"\",LEFT(Qüestionari!$D71,1),LEFT(Qüestionari!$D71,2)))","v":"A9-1 "},"1 Han observat situacions que fan pensar en un abús sexual 0‐17","No",{"$f":"0","v":0},{"$f":"17","v":17}]
[null,"",{"$f":"CONCATENATE(LEFT(C71,2),\"-\",IF(RIGHT(LEFT(Qüestionari!$D72,2),1)=\"\",0,\"\"),IF(RIGHT(LEFT(Qüestionari!$D72,2),1)=\"\",LEFT(Qüestionari!$D72,1),LEFT(Qüestionari!$D72,2)))","v":"A9-2 "},"2 Diuen que els progenitors o guardadors el peguen 0‐17","No",{"$f":"0","v":0},{"$f":"17","v":17}]
[null,"",{"$f":"CONCATENATE(LEFT(C72,2),\"-\",IF(RIGHT(LEFT(Qüestionari!$D73,2),1)=\"\",0,\"\"),IF(RIGHT(LEFT(Qüestionari!$D73,2),1)=\"\",LEFT(Qüestionari!$D73,1),LEFT(Qüestionari!$D73,2)))","v":"A9-3 "},"3 Senten que rep agressions verbals i/o físiques (cops, plors, crits, etc.) 0‐17","No",{"$f":"0","v":0},{"$f":"17","v":17}]
[null,"",{"$f":"CONCATENATE(LEFT(C73,2),\"-\",IF(RIGHT(LEFT(Qüestionari!$D74,2),1)=\"\",0,\"\"),IF(RIGHT(LEFT(Qüestionari!$D74,2),1)=\"\",LEFT(Qüestionari!$D74,1),LEFT(Qüestionari!$D74,2)))","v":"A9-4 "},"4 Han observat que desatenen l'infant 0‐3","No",{"$f":"0","v":0},{"$f":"3","v":3}]
[null,"","A10. Situacions que fan que l'infant es trobi greument desprotegit",null,null,"",""]
[null,"",{"$f":"CONCATENATE(\"A10-\",IF(RIGHT(LEFT(Qüestionari!$D76,2),1)=\"\",0,\"\"),IF(RIGHT(LEFT(Qüestionari!$D76,2),1)=\"\",LEFT(Qüestionari!$D76,1),LEFT(Qüestionari!$D76,2)))","v":"A10-1 "},"1 Està en situació sobrevinguda en què ningú se'n fa càrrec","No",{"$f":"0","v":0},{"$f":"17","v":17}]
[null,"",{"$f":"CONCATENATE(LEFT(C76,3),\"-\",IF(RIGHT(LEFT(Qüestionari!$D77,2),1)=\"\",0,\"\"),IF(RIGHT(LEFT(Qüestionari!$D77,2),1)=\"\",LEFT(Qüestionari!$D77,1),LEFT(Qüestionari!$D77,2)))","v":"A10-2 "},"2 Ha estat abandonat/da intencionadament","No",{"$f":"0","v":0},{"$f":"17","v":17}]
[null,"",{"$f":"CONCATENATE(LEFT(C77,3),\"-\",IF(RIGHT(LEFT(Qüestionari!$D78,2),1)=\"\",0,\"\"),IF(RIGHT(LEFT(Qüestionari!$D78,2),1)=\"\",LEFT(Qüestionari!$D78,1),LEFT(Qüestionari!$D78,2)))","v":"A10-3 "},"3 No rep el tractament per una malaltia greu, posant en risc la seva vida 0‐17","No",{"$f":"0","v":0},{"$f":"17","v":17}]
[null,"",{"$f":"CONCATENATE(LEFT(C78,3),\"-\",IF(RIGHT(LEFT(Qüestionari!$D79,2),1)=\"\",0,\"\"),IF(RIGHT(LEFT(Qüestionari!$D79,2),1)=\"\",LEFT(Qüestionari!$D79,1),LEFT(Qüestionari!$D79,2)))","v":"A10-4 "},"4 La mare i/o el pare vol donar l'infant en adopció 0‐17","No",{"$f":"0","v":0},{"$f":"17","v":17}]
[null,"",{"$f":"CONCATENATE(LEFT(C79,3),\"-\",IF(RIGHT(LEFT(Qüestionari!$D80,2),1)=\"\",0,\"\"),IF(RIGHT(LEFT(Qüestionari!$D80,2),1)=\"\",LEFT(Qüestionari!$D80,1),LEFT(Qüestionari!$D80,2)))","v":"A10-5 "},"5 No té cap referent familiar en el país 1‐17","No",{"$f":"1","v":1},{"$f":"17","v":17}]
[null,"",{"$f":"CONCATENATE(LEFT(C80,3),\"-\",IF(RIGHT(LEFT(Qüestionari!$D81,2),1)=\"\",0,\"\"),IF(RIGHT(LEFT(Qüestionari!$D81,2),1)=\"\",LEFT(Qüestionari!$D81,1),LEFT(Qüestionari!$D81,2)))","v":"A10-6 "},"6 És una nena/adolescent embarassada (o mare) amb greus dificultats personals i socials 9‐17","No",{"$f":"9","v":9},{"$f":"17","v":17}]
[null,"",{"$f":"CONCATENATE(LEFT(C81,3),\"-\",IF(RIGHT(LEFT(Qüestionari!$D82,2),1)=\"\",0,\"\"),IF(RIGHT(LEFT(Qüestionari!$D82,2),1)=\"\",LEFT(Qüestionari!$D82,1),LEFT(Qüestionari!$D82,2)))","v":"A10-7 "},"7 Pateix una situació de perill greu que li fa sol·licitar protecció immediata 6-17","No",{"$f":"6","v":6},{"$f":"17","v":17}]
[null,{"$f":"IF(AND($E$6<>\"\",$E$9<>\"\",$F83<=$E$6,$G83>=$E$6),\"*\",\"\")","v":""},{"$f":"CONCATENATE(LEFT(C82,3),\"-\",IF(RIGHT(LEFT(Qüestionari!$D83,2),1)=\"\",0,\"\"),IF(RIGHT(LEFT(Qüestionari!$D83,2),1)=\"\",LEFT(Qüestionari!$D83,1),LEFT(Qüestionari!$D83,2)))","v":"A10-8 "},"8 Pateix amenaces de mort o abandonament dels progenitors o guardadors 0-17","No",{"$f":"0","v":0},{"$f":"17","v":17}]
[null,"","B1. Conductes dissocials i/o agressives de l'infant (dintre o fora de l'escola)",null,null,"",""]
[null,"",{"$f":"CONCATENATE(\"B1-\",IF(RIGHT(LEFT(Qüestionari!$D85,2),1)=\"\",0,\"\"),IF(RIGHT(LEFT(Qüestionari!$D85,2),1)=\"\",LEFT(Qüestionari!$D85,1),LEFT(Qüestionari!$D85,2)))","v":"B1-1 "},"1 Comet petits furts 6‐17","No",{"$f":"6","v":6},{"$f":"17","v":17}]
[null,"",{"$f":"CONCATENATE(LEFT(C85,2),\"-\",IF(RIGHT(LEFT(Qüestionari!$D86,2),1)=\"\",0,\"\"),IF(RIGHT(LEFT(Qüestionari!$D86,2),1)=\"\",LEFT(Qüestionari!$D86,1),LEFT(Qüestionari!$D86,2)))","v":"B1-2 "},"2 Presenta una conducta agressiva física contra terceres persones 6‐17","No",6,{"$f":"17","v":17}]
[null,"",{"$f":"CONCATENATE(LEFT(C86,2),\"-\",IF(RIGHT(LEFT(Qüestionari!$D87,2),1)=\"\",0,\"\"),IF(RIGHT(LEFT(Qüestionari!$D87,2),1)=\"\",LEFT(Qüestionari!$D87,1),LEFT(Qüestionari!$D87,2)))","v":"B1-3 "},"3 Presenta una conducta agressiva verbal contra terceres persones 6‐17","No",6,{"$f":"17","v":17}]
[null,"",{"$f":"CONCATENATE(LEFT(C87,2),\"-\",IF(RIGHT(LEFT(Qüestionari!$D88,2),1)=\"\",0,\"\"),IF(RIGHT(LEFT(Qüestionari!$D88,2),1)=\"\",LEFT(Qüestionari!$D88,1),LEFT(Qüestionari!$D88,2)))","v":"B1-4 "},"4 Presenta una conducta destructiva amb objectes 6‐17","No",6,{"$f":"17","v":17}]
[null,"",{"$f":"CONCATENATE(LEFT(C88,2),\"-\",IF(RIGHT(LEFT(Qüestionari!$D89,2),1)=\"\",0,\"\"),IF(RIGHT(LEFT(Qüestionari!$D89,2),1)=\"\",LEFT(Qüestionari!$D89,1),LEFT(Qüestionari!$D89,2)))","v":"B1-5 "},"5 Es relaciona amb un grup d'amics o amigues conflictiu 6‐17","No",6,{"$f":"17","v":17}]
[null,"",{"$f":"CONCATENATE(LEFT(C89,2),\"-\",IF(RIGHT(LEFT(Qüestionari!$D90,2),1)=\"\",0,\"\"),IF(RIGHT(LEFT(Qüestionari!$D90,2),1)=\"\",LEFT(Qüestionari!$D90,1),LEFT(Qüestionari!$D90,2)))","v":"B1-6 "},"6 Manté sovint conductes de provocació (desafiant...) 6‐17","No",6,{"$f":"17","v":17}]
[null,"",{"$f":"CONCATENATE(LEFT(C90,2),\"-\",IF(RIGHT(LEFT(Qüestionari!$D91,2),1)=\"\",0,\"\"),IF(RIGHT(LEFT(Qüestionari!$D91,2),1)=\"\",LEFT(Qüestionari!$D91,1),LEFT(Qüestionari!$D91,2)))","v":"B1-7 "},"7 Fa actes de vandalisme, racisme o xenofòbia 10‐17","No",{"$f":"10","v":10},{"$f":"17","v":17}]
[null,"",{"$f":"CONCATENATE(LEFT(C91,2),\"-\",IF(RIGHT(LEFT(Qüestionari!$D92,2),1)=\"\",0,\"\"),IF(RIGHT(LEFT(Qüestionari!$D92,2),1)=\"\",LEFT(Qüestionari!$D92,1),LEFT(Qüestionari!$D92,2)))","v":"B1-8 "},"8 Transgredeix les normes sistemàticament 6‐17","No",{"$f":"6","v":6},{"$f":"17","v":17}]
[null,"","B2. Conductes de risc vers el mateix infant (dintre o fora de l'escola)",null,null,"",""]
[null,"",{"$f":"CONCATENATE(\"B2-\",IF(RIGHT(LEFT(Qüestionari!$D94,2),1)=\"\",0,\"\"),IF(RIGHT(LEFT(Qüestionari!$D94,2),1)=\"\",LEFT(Qüestionari!$D94,1),LEFT(Qüestionari!$D94,2)))","v":"B2-1 "},"1 Deambula sovint pels carrers en horari escolar i/o de nit 3‐16","No",{"$f":"3","v":3},{"$f":"16","v":16}]
[null,"",{"$f":"CONCATENATE(LEFT(C94,2),\"-\",IF(RIGHT(LEFT(Qüestionari!$D95,2),1)=\"\",0,\"\"),IF(RIGHT(LEFT(Qüestionari!$D95,2),1)=\"\",LEFT(Qüestionari!$D95,1),LEFT(Qüestionari!$D95,2)))","v":"B2-2 "},"2 S'ha escapolit de casa 6‐17","No",{"$f":"6","v":6},{"$f":"17","v":17}]
[null,"",{"$f":"CONCATENATE(LEFT(C95,2),\"-\",IF(RIGHT(LEFT(Qüestionari!$D96,2),1)=\"\",0,\"\"),IF(RIGHT(LEFT(Qüestionari!$D96,2),1)=\"\",LEFT(Qüestionari!$D96,1),LEFT(Qüestionari!$D96,2)))","v":"B2-3 "},"3 S'exposa a situacions de risc (conducció temerària, metring, mal ús de les tecnologies) 6‐17","No",6,{"$f":"17","v":17}]
[null,"",{"$f":"CONCATENATE(LEFT(C96,2),\"-\",IF(RIGHT(LEFT(Qüestionari!$D97,2),1)=\"\",0,\"\"),IF(RIGHT(LEFT(Qüestionari!$D97,2),1)=\"\",LEFT(Qüestionari!$D97,1),LEFT(Qüestionari!$D97,2)))","v":"B2-4 "},"4 Diu coses que indiquen que pensa sovint en el suïcidi 6‐17","No",6,{"$f":"17","v":17}]
[null,"","B2-4.1","4.1 Ha fet un intent de suïcidi dins del centre educatiu (afegim i ho traslladem a les observacions que es consideren d’actuació immediata) 6‐17","No",6,{"$f":"17","v":17}]
[null,"","B2-4.2","4.2  Ha fet un intent de suïcidi fora del centre educatiu (afegim i ho traslladem a les observacions que es consideren d’actuació immediata) 6‐17","No",6,{"$f":"17","v":17}]
[null,"","B2-4.3","4.3 Informe psiquiatric urgent del CSMIJ o de l'Hospital arran de l'intent de suïcidi on recomana l'acompanyament continu a casa. La família no pot o no vol fer-se càrrec i no té família extensa.","No",3,{"$f":"17","v":17}]
[null,"",{"$f":"CONCATENATE(LEFT(C100,2),\"-\",IF(RIGHT(LEFT(Qüestionari!$D101,2),1)=\"\",0,\"\"),IF(RIGHT(LEFT(Qüestionari!$D101,2),1)=\"\",LEFT(Qüestionari!$D101,1),LEFT(Qüestionari!$D101,2)))","v":"B2-5 "},"5 S’autolesiona 6‐17","No",{"$f":"6","v":6},{"$f":"17","v":17}]
[null,"",{"$f":"CONCATENATE(LEFT(C101,2),\"-\",IF(RIGHT(LEFT(Qüestionari!$D102,2),1)=\"\",0,\"\"),IF(RIGHT(LEFT(Qüestionari!$D102,2),1)=\"\",LEFT(Qüestionari!$D102,1),LEFT(Qüestionari!$D102,2)))","v":"B2-6 "},"6 Es provoca el vòmit, pren laxants, es nega a menjar… 6‐17","No",6,{"$f":"17","v":17}]
[null,"",{"$f":"CONCATENATE(LEFT(C102,2),\"-\",IF(RIGHT(LEFT(Qüestionari!$D103,2),1)=\"\",0,\"\"),IF(RIGHT(LEFT(Qüestionari!$D103,2),1)=\"\",LEFT(Qüestionari!$D103,1),LEFT(Qüestionari!$D103,2)))","v":"B2-7 "},"7 Presenta manca d'autocontrol 6‐17","No",6,{"$f":"17","v":17}]
[null,"","B3. L’infant consumeix substàncies tòxiques",null,null,"",""]
[null,"",{"$f":"CONCATENATE(\"B3-\",IF(RIGHT(LEFT(Qüestionari!$D105,2),1)=\"\",0,\"\"),IF(RIGHT(LEFT(Qüestionari!$D105,2),1)=\"\",LEFT(Qüestionari!$D105,1),LEFT(Qüestionari!$D105,2)))","v":"B3-1 "},"1 Consumeix alcohol 6‐17","No",{"$f":"6","v":6},{"$f":"17","v":17}]
[null,"",{"$f":"CONCATENATE(LEFT(C105,2),\"-\",IF(RIGHT(LEFT(Qüestionari!$D106,2),1)=\"\",0,\"\"),IF(RIGHT(LEFT(Qüestionari!$D106,2),1)=\"\",LEFT(Qüestionari!$D106,1),LEFT(Qüestionari!$D106,2)))","v":"B3-2 "},"2 Consumeix altres substàncies estupefaents 6‐17","No",6,{"$f":"17","v":17}]
[null,"",{"$f":"CONCATENATE(LEFT(C106,2),\"-\",IF(RIGHT(LEFT(Qüestionari!$D107,2),1)=\"\",0,\"\"),IF(RIGHT(LEFT(Qüestionari!$D107,2),1)=\"\",LEFT(Qüestionari!$D107,1),LEFT(Qüestionari!$D107,2)))","v":"B3-3 "},"3 Consumeix tabac 6‐12","No",{"$f":"6","v":6},{"$f":"12","v":12}]
[null,"",{"$f":"CONCATENATE(LEFT(C107,2),\"-\",IF(RIGHT(LEFT(Qüestionari!$D108,2),1)=\"\",0,\"\"),IF(RIGHT(LEFT(Qüestionari!$D108,2),1)=\"\",LEFT(Qüestionari!$D108,1),LEFT(Qüestionari!$D108,2)))","v":"B3-4 "},"4 S’observen estats que fan pensar que ha consumit (ulls vermells, olor d’alcohol, eufòria...) 6‐17","No",6,{"$f":"17","v":17}]
[null,"","B4. Manifestacions de pors i/o angoixes",null,null,"",""]
[null,"",{"$f":"CONCATENATE(\"B4-\",IF(RIGHT(LEFT(Qüestionari!$D110,2),1)=\"\",0,\"\"),IF(RIGHT(LEFT(Qüestionari!$D110,2),1)=\"\",LEFT(Qüestionari!$D110,1),LEFT(Qüestionari!$D110,2)))","v":"B4-1 "},"1 Manifesta accions defensives davant qualsevol aproximació física 3‐17","No",{"$f":"3","v":3},{"$f":"17","v":17}]
[null,"",{"$f":"CONCATENATE(LEFT(C110,2),\"-\",IF(RIGHT(LEFT(Qüestionari!$D111,2),1)=\"\",0,\"\"),IF(RIGHT(LEFT(Qüestionari!$D111,2),1)=\"\",LEFT(Qüestionari!$D111,1),LEFT(Qüestionari!$D111,2)))","v":"B4-2 "},"2 No vol fer activitats que requereixen mostrar parts del cos (per amagar cops...) 6‐17","No",{"$f":"6","v":6},{"$f":"17","v":17}]
[null,"",{"$f":"CONCATENATE(LEFT(C111,2),\"-\",IF(RIGHT(LEFT(Qüestionari!$D112,2),1)=\"\",0,\"\"),IF(RIGHT(LEFT(Qüestionari!$D112,2),1)=\"\",LEFT(Qüestionari!$D112,1),LEFT(Qüestionari!$D112,2)))","v":"B4-3 "},"3 Sembla tenir por dels seus progenitors o manifestar‐los rebuig 3‐17","No",{"$f":"3","v":3},{"$f":"17","v":17}]
[null,"",{"$f":"CONCATENATE(LEFT(C112,2),\"-\",IF(RIGHT(LEFT(Qüestionari!$D113,2),1)=\"\",0,\"\"),IF(RIGHT(LEFT(Qüestionari!$D113,2),1)=\"\",LEFT(Qüestionari!$D113,1),LEFT(Qüestionari!$D113,2)))","v":"B4-4 "},"4 No vol anar‐se’n a casa 3‐12","No",{"$f":"3","v":3},{"$f":"12","v":12}]
[null,"",{"$f":"CONCATENATE(LEFT(C113,2),\"-\",IF(RIGHT(LEFT(Qüestionari!$D114,2),1)=\"\",0,\"\"),IF(RIGHT(LEFT(Qüestionari!$D114,2),1)=\"\",LEFT(Qüestionari!$D114,1),LEFT(Qüestionari!$D114,2)))","v":"B4-5 "},"5 Mostra un alt nivell d’ansietat davant activitats normals com el canvi de bolquers 0‐3","No",{"$f":"0","v":0},{"$f":"3","v":3}]
[null,"",{"$f":"CONCATENATE(LEFT(C114,2),\"-\",IF(RIGHT(LEFT(Qüestionari!$D115,2),1)=\"\",0,\"\"),IF(RIGHT(LEFT(Qüestionari!$D115,2),1)=\"\",LEFT(Qüestionari!$D115,1),LEFT(Qüestionari!$D115,2)))","v":"B4-6 "},"6 Presenta dificultats greus per calmar‐se en braços de qui en té cura 0‐3","No",{"$f":"0","v":0},{"$f":"3","v":3}]
[null,"",{"$f":"CONCATENATE(LEFT(C115,2),\"-\",IF(RIGHT(LEFT(Qüestionari!$D116,2),1)=\"\",0,\"\"),IF(RIGHT(LEFT(Qüestionari!$D116,2),1)=\"\",LEFT(Qüestionari!$D116,1),LEFT(Qüestionari!$D116,2)))","v":"B4-7 "},"7 Es preocupa molt d’estar a l'alçada de les expectatives dels progenitors o per ser acceptat 4‐17","No",{"$f":"4","v":4},{"$f":"17","v":17}]
[null,"",{"$f":"CONCATENATE(LEFT(C116,2),\"-\",IF(RIGHT(LEFT(Qüestionari!$D117,2),1)=\"\",0,\"\"),IF(RIGHT(LEFT(Qüestionari!$D117,2),1)=\"\",LEFT(Qüestionari!$D117,1),LEFT(Qüestionari!$D117,2)))","v":"B4-8 "},"8 Mostra sentiments de culpabilitat de la situació viscuda 4‐17","No",{"$f":"4","v":4},{"$f":"17","v":17}]
[null,"",{"$f":"CONCATENATE(LEFT(C117,2),\"-\",IF(RIGHT(LEFT(Qüestionari!$D118,2),1)=\"\",0,\"\"),IF(RIGHT(LEFT(Qüestionari!$D118,2),1)=\"\",LEFT(Qüestionari!$D118,1),LEFT(Qüestionari!$D118,2)))","v":"B4-9 "},"9 Manifesta que no el/la deixen entrar a casa o que l'han fet fora 6‐17","No",{"$f":"6","v":6},{"$f":"17","v":17}]
[null,"",{"$f":"CONCATENATE(LEFT(C118,2),\"-\",IF(RIGHT(LEFT(Qüestionari!$D119,2),1)=\"\",0,\"\"),IF(RIGHT(LEFT(Qüestionari!$D119,2),1)=\"\",LEFT(Qüestionari!$D119,1),LEFT(Qüestionari!$D119,2)))","v":"B4-10"},"10 Mostra senyals d’ansietat 3‐17","No",{"$f":"3","v":3},{"$f":"17","v":17}]
[null,"",{"$f":"CONCATENATE(LEFT(C119,2),\"-\",IF(RIGHT(LEFT(Qüestionari!$D120,2),1)=\"\",0,\"\"),IF(RIGHT(LEFT(Qüestionari!$D120,2),1)=\"\",LEFT(Qüestionari!$D120,1),LEFT(Qüestionari!$D120,2)))","v":"B4-11"},"11 Manifesta que vol ingressar a un centre 6‐17","No",{"$f":"6","v":6},{"$f":"17","v":17}]
[null,"","B5. Alteracions en la relació amb els altres (dintre o fora de l'escola)",null,null,"",""]
[null,"",{"$f":"CONCATENATE(\"B5-\",IF(RIGHT(LEFT(Qüestionari!$D122,2),1)=\"\",0,\"\"),IF(RIGHT(LEFT(Qüestionari!$D122,2),1)=\"\",LEFT(Qüestionari!$D122,1),LEFT(Qüestionari!$D122,2)))","v":"B5-1 "},"1 Manifesta una familiaritat excessiva amb estranys (marxa fàcilment amb persones desconegudes) 3‐12","No",{"$f":"3","v":3},{"$f":"12","v":12}]
[null,"",{"$f":"CONCATENATE(LEFT(C122,2),\"-\",IF(RIGHT(LEFT(Qüestionari!$D123,2),1)=\"\",0,\"\"),IF(RIGHT(LEFT(Qüestionari!$D123,2),1)=\"\",LEFT(Qüestionari!$D123,1),LEFT(Qüestionari!$D123,2)))","v":"B5-2 "},"2 Crida contínuament l’atenció 3‐17","No",{"$f":"3","v":3},{"$f":"17","v":17}]
[null,"",{"$f":"CONCATENATE(LEFT(C123,2),\"-\",IF(RIGHT(LEFT(Qüestionari!$D124,2),1)=\"\",0,\"\"),IF(RIGHT(LEFT(Qüestionari!$D124,2),1)=\"\",LEFT(Qüestionari!$D124,1),LEFT(Qüestionari!$D124,2)))","v":"B5-3 "},"3 Fa demandes continuades d’afectivitat 3‐17","No",{"$f":"3","v":3},{"$f":"17","v":17}]
[null,"",{"$f":"CONCATENATE(LEFT(C124,2),\"-\",IF(RIGHT(LEFT(Qüestionari!$D125,2),1)=\"\",0,\"\"),IF(RIGHT(LEFT(Qüestionari!$D125,2),1)=\"\",LEFT(Qüestionari!$D125,1),LEFT(Qüestionari!$D125,2)))","v":"B5-4 "},"4 No interacciona, no fixa la mirada, sovint sembla absent 1‐12","No",{"$f":"1","v":1},{"$f":"12","v":12}]
[null,"",{"$f":"CONCATENATE(LEFT(C125,2),\"-\",IF(RIGHT(LEFT(Qüestionari!$D126,2),1)=\"\",0,\"\"),IF(RIGHT(LEFT(Qüestionari!$D126,2),1)=\"\",LEFT(Qüestionari!$D126,1),LEFT(Qüestionari!$D126,2)))","v":"B5-5 "},"5 Sembla tenir dificultat per formar vincles afectius estables 3‐17","No",{"$f":"3","v":3},{"$f":"17","v":17}]
[null,"",{"$f":"CONCATENATE(LEFT(C126,2),\"-\",IF(RIGHT(LEFT(Qüestionari!$D127,2),1)=\"\",0,\"\"),IF(RIGHT(LEFT(Qüestionari!$D127,2),1)=\"\",LEFT(Qüestionari!$D127,1),LEFT(Qüestionari!$D127,2)))","v":"B5-6 "},"6 Presenta problemes de relació amb el grup d'iguals 3‐17","No",{"$f":"3","v":3},{"$f":"17","v":17}]
[null,"","B6. Altres manifestacions d'alteració de l'estat d'ànim",null,null,"",""]
[null,"",{"$f":"CONCATENATE(\"B6-\",IF(RIGHT(LEFT(Qüestionari!$D129,2),1)=\"\",0,\"\"),IF(RIGHT(LEFT(Qüestionari!$D129,2),1)=\"\",LEFT(Qüestionari!$D129,1),LEFT(Qüestionari!$D129,2)))","v":"B6-1 "},"1 Mostra un aspecte trist i/o plora sovint sense causa aparent 1‐17","No",{"$f":"1","v":1},{"$f":"17","v":17}]
[null,"",{"$f":"CONCATENATE(LEFT(C129,2),\"-\",IF(RIGHT(LEFT(Qüestionari!$D130,2),1)=\"\",0,\"\"),IF(RIGHT(LEFT(Qüestionari!$D130,2),1)=\"\",LEFT(Qüestionari!$D130,1),LEFT(Qüestionari!$D130,2)))","v":"B6-2 "},"2 Es mostra passiu/va i retret/a i/o s’aïlla 3‐17","No",{"$f":"3","v":3},{"$f":"17","v":17}]
[null,"",{"$f":"CONCATENATE(LEFT(C130,2),\"-\",IF(RIGHT(LEFT(Qüestionari!$D131,2),1)=\"\",0,\"\"),IF(RIGHT(LEFT(Qüestionari!$D131,2),1)=\"\",LEFT(Qüestionari!$D131,1),LEFT(Qüestionari!$D131,2)))","v":"B6-3 "},"3 Fa comentaris que semblen indicar que té una autoestima baixa 4‐17","No",{"$f":"4","v":4},{"$f":"17","v":17}]
[null,"",{"$f":"CONCATENATE(LEFT(C131,2),\"-\",IF(RIGHT(LEFT(Qüestionari!$D132,2),1)=\"\",0,\"\"),IF(RIGHT(LEFT(Qüestionari!$D132,2),1)=\"\",LEFT(Qüestionari!$D132,1),LEFT(Qüestionari!$D132,2)))","v":"B6-4 "},"4 Manifesta sovint conductes que corresponen a una edat inferior (conductes regressives) 3‐17","No",{"$f":"3","v":3},{"$f":"17","v":17}]
[null,"",{"$f":"CONCATENATE(LEFT(C132,2),\"-\",IF(RIGHT(LEFT(Qüestionari!$D133,2),1)=\"\",0,\"\"),IF(RIGHT(LEFT(Qüestionari!$D133,2),1)=\"\",LEFT(Qüestionari!$D133,1),LEFT(Qüestionari!$D133,2)))","v":"B6-5 "},"5 Manca de plor i absència de queixa davant del dolor 0‐12","No",{"$f":"0","v":0},{"$f":"12","v":12}]
[null,"",{"$f":"CONCATENATE(LEFT(C133,2),\"-\",IF(RIGHT(LEFT(Qüestionari!$D134,2),1)=\"\",0,\"\"),IF(RIGHT(LEFT(Qüestionari!$D134,2),1)=\"\",LEFT(Qüestionari!$D134,1),LEFT(Qüestionari!$D134,2)))","v":"B6-6 "},"6 Es mostra inquiet/a, neguitós/a 0‐17","No",{"$f":"0","v":0},{"$f":"17","v":17}]
[null,"",{"$f":"CONCATENATE(LEFT(C134,2),\"-\",IF(RIGHT(LEFT(Qüestionari!$D135,2),1)=\"\",0,\"\"),IF(RIGHT(LEFT(Qüestionari!$D135,2),1)=\"\",LEFT(Qüestionari!$D135,1),LEFT(Qüestionari!$D135,2)))","v":"B6-7 "},"7 Presenta trastorns d'alimentació (vòmits, diarrees, anorèxia del lactant) 0‐17","No",{"$f":"0","v":0},{"$f":"17","v":17}]
[null,"",{"$f":"CONCATENATE(LEFT(C135,2),\"-\",IF(RIGHT(LEFT(Qüestionari!$D136,2),1)=\"\",0,\"\"),IF(RIGHT(LEFT(Qüestionari!$D136,2),1)=\"\",LEFT(Qüestionari!$D136,1),LEFT(Qüestionari!$D136,2)))","v":"B6-8 "},"8 Presenta desordres greus associats amb el dormir 0‐17","No",{"$f":"0","v":0},{"$f":"17","v":17}]
[null,"","B7. L’infant presenta comportaments d’autoestimulació compulsiva",null,null,"",""]
[null,"",{"$f":"CONCATENATE(\"B7-\",IF(RIGHT(LEFT(Qüestionari!$D138,2),1)=\"\",0,\"\"),IF(RIGHT(LEFT(Qüestionari!$D138,2),1)=\"\",LEFT(Qüestionari!$D138,1),LEFT(Qüestionari!$D138,2)))","v":"B7-1 "},"1 Fa balancejos compulsius 3‐17","No",{"$f":"3","v":3},{"$f":"17","v":17}]
[null,"",{"$f":"CONCATENATE(LEFT(C138,2),\"-\",IF(RIGHT(LEFT(Qüestionari!$D139,2),1)=\"\",0,\"\"),IF(RIGHT(LEFT(Qüestionari!$D139,2),1)=\"\",LEFT(Qüestionari!$D139,1),LEFT(Qüestionari!$D139,2)))","v":"B7-2 "},"2 Presenta masturbació compulsiva 3‐17","No",{"$f":"3","v":3},{"$f":"17","v":17}]
[null,"",{"$f":"CONCATENATE(LEFT(C139,2),\"-\",IF(RIGHT(LEFT(Qüestionari!$D140,2),1)=\"\",0,\"\"),IF(RIGHT(LEFT(Qüestionari!$D140,2),1)=\"\",LEFT(Qüestionari!$D140,1),LEFT(Qüestionari!$D140,2)))","v":"B7-3 "},"3 Es dóna cops de cap de forma voluntària i repetida 1‐17","No",{"$f":"1","v":1},{"$f":"17","v":17}]
[null,"","B8. L’infant presenta comportaments sexualitzats inadequats per l’edat",null,null,"",""]
[null,"",{"$f":"CONCATENATE(\"B8-\",IF(RIGHT(LEFT(Qüestionari!$D142,2),1)=\"\",0,\"\"),IF(RIGHT(LEFT(Qüestionari!$D142,2),1)=\"\",LEFT(Qüestionari!$D142,1),LEFT(Qüestionari!$D142,2)))","v":"B8-1 "},"1 Manifesta conductes i preocupacions sexuals o utilitza termes inadequats per la seva edat 3‐17","No",{"$f":"3","v":3},{"$f":"17","v":17}]
[null,"",{"$f":"CONCATENATE(LEFT(C142,2),\"-\",IF(RIGHT(LEFT(Qüestionari!$D143,2),1)=\"\",0,\"\"),IF(RIGHT(LEFT(Qüestionari!$D143,2),1)=\"\",LEFT(Qüestionari!$D143,1),LEFT(Qüestionari!$D143,2)))","v":"B8-2 "},"2 Assetja sexualment altres infants o adolescents 4‐17","No",{"$f":"4","v":4},{"$f":"17","v":17}]
[null,"",{"$f":"CONCATENATE(LEFT(C143,2),\"-\",IF(RIGHT(LEFT(Qüestionari!$D144,2),1)=\"\",0,\"\"),IF(RIGHT(LEFT(Qüestionari!$D144,2),1)=\"\",LEFT(Qüestionari!$D144,1),LEFT(Qüestionari!$D144,2)))","v":"B8-3 "},"3 Agredeix sexualment altres infants o adolescents 4‐17","No",{"$f":"4","v":4},{"$f":"17","v":17}]
[null,"",{"$f":"CONCATENATE(LEFT(C144,2),\"-\",IF(RIGHT(LEFT(Qüestionari!$D145,2),1)=\"\",0,\"\"),IF(RIGHT(LEFT(Qüestionari!$D145,2),1)=\"\",LEFT(Qüestionari!$D145,1),LEFT(Qüestionari!$D145,2)))","v":"B8-4 "},"4 Manifesta, de forma recurrent, tenir por a un embaràs o a la sida 6‐17","No",{"$f":"6","v":6},{"$f":"17","v":17}]
[null,"",{"$f":"CONCATENATE(LEFT(C145,2),\"-\",IF(RIGHT(LEFT(Qüestionari!$D146,2),1)=\"\",0,\"\"),IF(RIGHT(LEFT(Qüestionari!$D146,2),1)=\"\",LEFT(Qüestionari!$D146,1),LEFT(Qüestionari!$D146,2)))","v":"B8-5 "},"5 Mostra promiscuïtat sexual 12‐17","No",{"$f":"12","v":12},{"$f":"17","v":17}]
[null,{"$f":"IF(AND($E$6<>\"\",$E$9<>\"\",$F147<=$E$6,$G147>=$E$6),\"*\",\"\")","v":""},"B9. L’infant està adoptant rols que no li corresponen per edat",null,null,"",""]
[null,"",{"$f":"CONCATENATE(\"B9-\",IF(RIGHT(LEFT(Qüestionari!$D148,2),1)=\"\",0,\"\"),IF(RIGHT(LEFT(Qüestionari!$D148,2),1)=\"\",LEFT(Qüestionari!$D148,1),LEFT(Qüestionari!$D148,2)))","v":"B9-1 "},"1 Assumeix responsabilitats impròpies de l’edat amb membres de la família o tasques de casa 4‐17","No",{"$f":"4","v":4},{"$f":"17","v":17}]
[null,"",{"$f":"CONCATENATE(LEFT(C148,2),\"-\",IF(RIGHT(LEFT(Qüestionari!$D149,2),1)=\"\",0,\"\"),IF(RIGHT(LEFT(Qüestionari!$D149,2),1)=\"\",LEFT(Qüestionari!$D149,1),LEFT(Qüestionari!$D149,2)))","v":"B9-2 "},"2 Adopta un rol cuidador respecte als progenitors o guardadors (inversió de rols) 4‐17","No",{"$f":"4","v":4},{"$f":"17","v":17}]
[null,"","C1. L’infant presenta dificultats destacables en els aprenentatges escolars",null,null,"",""]
[null,"",{"$f":"CONCATENATE(\"C1-\",IF(RIGHT(LEFT(Qüestionari!$D151,2),1)=\"\",0,\"\"),IF(RIGHT(LEFT(Qüestionari!$D151,2),1)=\"\",LEFT(Qüestionari!$D151,1),LEFT(Qüestionari!$D151,2)))","v":"C1-1 "},"1 Manifesta problemes d’atenció i concentració 3‐17","No",{"$f":"3","v":3},{"$f":"17","v":17}]
[null,"",{"$f":"CONCATENATE(LEFT(C151,2),\"-\",IF(RIGHT(LEFT(Qüestionari!$D152,2),1)=\"\",0,\"\"),IF(RIGHT(LEFT(Qüestionari!$D152,2),1)=\"\",LEFT(Qüestionari!$D152,1),LEFT(Qüestionari!$D152,2)))","v":"C1-2 "},"2 Presenta poca constància en les activitats escolars i deixa de fer els deures amb freqüència 6‐16","No",{"$f":"6","v":6},{"$f":"16","v":16}]
[null,"",{"$f":"CONCATENATE(LEFT(C152,2),\"-\",IF(RIGHT(LEFT(Qüestionari!$D153,2),1)=\"\",0,\"\"),IF(RIGHT(LEFT(Qüestionari!$D153,2),1)=\"\",LEFT(Qüestionari!$D153,1),LEFT(Qüestionari!$D153,2)))","v":"C1-3 "},"3 Presenta dificultats d'aprenentatge 3‐17","No",{"$f":"3","v":3},{"$f":"17","v":17}]
[null,"",{"$f":"CONCATENATE(LEFT(C153,2),\"-\",IF(RIGHT(LEFT(Qüestionari!$D154,2),1)=\"\",0,\"\"),IF(RIGHT(LEFT(Qüestionari!$D154,2),1)=\"\",LEFT(Qüestionari!$D154,1),LEFT(Qüestionari!$D154,2)))","v":"C1-4 "},"4 Presenta canvis sobtats en el seu rendiment escolar 3‐17","No",{"$f":"3","v":3},{"$f":"17","v":17}]
[null,"",{"$f":"CONCATENATE(LEFT(C154,2),\"-\",IF(RIGHT(LEFT(Qüestionari!$D155,2),1)=\"\",0,\"\"),IF(RIGHT(LEFT(Qüestionari!$D155,2),1)=\"\",LEFT(Qüestionari!$D155,1),LEFT(Qüestionari!$D155,2)))","v":"C1-5 "},"5 Presenta repetits canvis de centre escolar al llarg de l'escolaritat 3‐17","No",{"$f":"3","v":3},{"$f":"17","v":17}]
[null,"","C2. L’infant presenta un retard en el desenvolupament",null,null,"",""]
[null,"",{"$f":"CONCATENATE(\"C2-\",IF(RIGHT(LEFT(Qüestionari!$D157,2),1)=\"\",0,\"\"),IF(RIGHT(LEFT(Qüestionari!$D157,2),1)=\"\",LEFT(Qüestionari!$D157,1),LEFT(Qüestionari!$D157,2)))","v":"C2-1 "},"1 Presenta retard en l’adquisició de capacitats verbals, cognitives o socials pròpies de l’edat 2‐17","No",{"$f":"2","v":2},{"$f":"17","v":17}]
[null,"",{"$f":"CONCATENATE(LEFT(C157,2),\"-\",IF(RIGHT(LEFT(Qüestionari!$D158,2),1)=\"\",0,\"\"),IF(RIGHT(LEFT(Qüestionari!$D158,2),1)=\"\",LEFT(Qüestionari!$D158,1),LEFT(Qüestionari!$D158,2)))","v":"C2-2 "},"2 No respon als estímuls com seria d’esperar per l’edat 0‐12","No",{"$f":"0","v":0},{"$f":"12","v":12}]
[null,"",{"$f":"CONCATENATE(LEFT(C158,2),\"-\",IF(RIGHT(LEFT(Qüestionari!$D159,2),1)=\"\",0,\"\"),IF(RIGHT(LEFT(Qüestionari!$D159,2),1)=\"\",LEFT(Qüestionari!$D159,1),LEFT(Qüestionari!$D159,2)))","v":"C2-3 "},"3 No se li observen habilitats i/o el to motriu pròpies de l’edat 0‐17","No",{"$f":"0","v":0},{"$f":"17","v":17}]
[null,"",{"$f":"CONCATENATE(LEFT(C159,2),\"-\",IF(RIGHT(LEFT(Qüestionari!$D160,2),1)=\"\",0,\"\"),IF(RIGHT(LEFT(Qüestionari!$D160,2),1)=\"\",LEFT(Qüestionari!$D160,1),LEFT(Qüestionari!$D160,2)))","v":"C2-4 "},"4 Presenta pes i talla molt inferiors per l’edat 0‐17","No",{"$f":"0","v":0},{"$f":"17","v":17}]
[null,"",{"$f":"CONCATENATE(LEFT(C160,2),\"-\",IF(RIGHT(LEFT(Qüestionari!$D161,2),1)=\"\",0,\"\"),IF(RIGHT(LEFT(Qüestionari!$D161,2),1)=\"\",LEFT(Qüestionari!$D161,1),LEFT(Qüestionari!$D161,2)))","v":"C2-5 "},"5 No mostra joc imitatiu/manipula els objectes de manera estereotipada sense desig d’explorar 0‐6","No",{"$f":"0","v":0},6]
[null,"","C3. L’infant sovint té dificultats en el control d’esfínters",null,null,"",""]
[null,"",{"$f":"CONCATENATE(\"C3-\",IF(RIGHT(LEFT(Qüestionari!$D163,2),1)=\"\",0,\"\"),IF(RIGHT(LEFT(Qüestionari!$D163,2),1)=\"\",LEFT(Qüestionari!$D163,1),LEFT(Qüestionari!$D163,2)))","v":"C3-1 "},"1 Presenta problemes d’enuresi, amb relativa freqüència 6‐17","No",{"$f":"6","v":6},{"$f":"17","v":17}]
[null,"",{"$f":"CONCATENATE(LEFT(C163,2),\"-\",IF(RIGHT(LEFT(Qüestionari!$D164,2),1)=\"\",0,\"\"),IF(RIGHT(LEFT(Qüestionari!$D164,2),1)=\"\",LEFT(Qüestionari!$D164,1),LEFT(Qüestionari!$D164,2)))","v":"C3-2 "},"2 Presenta problemes d’encopresi, amb relativa freqüència 6‐17","No",6,{"$f":"17","v":17}]
[null,"","C4. Presenta problemes amb l'assistència escolar",null,null,"",""]
[null,"",{"$f":"CONCATENATE(\"C4-\",IF(RIGHT(LEFT(Qüestionari!$D166,2),1)=\"\",0,\"\"),IF(RIGHT(LEFT(Qüestionari!$D166,2),1)=\"\",LEFT(Qüestionari!$D166,1),LEFT(Qüestionari!$D166,2)))","v":"C4-1 "},"1 Marxa de classe o d'escola davant qualsevol contrarietat 3‐17","No",{"$f":"3","v":3},{"$f":"17","v":17}]
[null,"",{"$f":"CONCATENATE(LEFT(C166,2),\"-\",IF(RIGHT(LEFT(Qüestionari!$D167,2),1)=\"\",0,\"\"),IF(RIGHT(LEFT(Qüestionari!$D167,2),1)=\"\",LEFT(Qüestionari!$D167,1),LEFT(Qüestionari!$D167,2)))","v":"C4-2 "},"2 Fa faltes d'assistència injustificades i/o absentisme escolar o laboral 3‐17","No",{"$f":"3","v":3},{"$f":"17","v":17}]
[null,"",{"$f":"CONCATENATE(LEFT(C167,2),\"-\",IF(RIGHT(LEFT(Qüestionari!$D168,2),1)=\"\",0,\"\"),IF(RIGHT(LEFT(Qüestionari!$D168,2),1)=\"\",LEFT(Qüestionari!$D168,1),LEFT(Qüestionari!$D168,2)))","v":"C4-3 "},"3 Ha abandonat l'escolaritat en etapa obligatòria 3‐16","No",{"$f":"3","v":3},{"$f":"16","v":16}]
[null,"","D1. Els progenitors o guardadors manifesten rebuig vers l’infant",null,null,"",""]
[null,"",{"$f":"CONCATENATE(\"D1-\",IF(RIGHT(LEFT(Qüestionari!$D170,2),1)=\"\",0,\"\"),IF(RIGHT(LEFT(Qüestionari!$D170,2),1)=\"\",LEFT(Qüestionari!$D170,1),LEFT(Qüestionari!$D170,2)))","v":"D1-1 "},"1 Manifesten una imatge negativa de l’infant i no li reconeixen valor positiu 0‐17","No",{"$f":"0","v":0},{"$f":"17","v":17}]
[null,"",{"$f":"CONCATENATE(LEFT(C170,2),\"-\",IF(RIGHT(LEFT(Qüestionari!$D171,2),1)=\"\",0,\"\"),IF(RIGHT(LEFT(Qüestionari!$D171,2),1)=\"\",LEFT(Qüestionari!$D171,1),LEFT(Qüestionari!$D171,2)))","v":"D1-2 "},"2 Li repeteixen que no l’estimen 1‐17","No",{"$f":"1","v":1},{"$f":"17","v":17}]
[null,"",{"$f":"CONCATENATE(LEFT(C171,2),\"-\",IF(RIGHT(LEFT(Qüestionari!$D172,2),1)=\"\",0,\"\"),IF(RIGHT(LEFT(Qüestionari!$D172,2),1)=\"\",LEFT(Qüestionari!$D172,1),LEFT(Qüestionari!$D172,2)))","v":"D1-3 "},"3 El critiquen, avergonyeixen, desqualifiquen, insulten, ridiculitzen o amenacen 2‐17","No",{"$f":"2","v":2},{"$f":"17","v":17}]
[null,"",{"$f":"CONCATENATE(LEFT(C172,2),\"-\",IF(RIGHT(LEFT(Qüestionari!$D173,2),1)=\"\",0,\"\"),IF(RIGHT(LEFT(Qüestionari!$D173,2),1)=\"\",LEFT(Qüestionari!$D173,1),LEFT(Qüestionari!$D173,2)))","v":"D1-4 "},"4 Minimitzen els episodis de pena, malaltia o dany físic de l’infant 0‐17","No",{"$f":"0","v":0},{"$f":"17","v":17}]
[null,"",{"$f":"CONCATENATE(LEFT(C173,2),\"-\",IF(RIGHT(LEFT(Qüestionari!$D174,2),1)=\"\",0,\"\"),IF(RIGHT(LEFT(Qüestionari!$D174,2),1)=\"\",LEFT(Qüestionari!$D174,1),LEFT(Qüestionari!$D174,2)))","v":"D1-5 "},"5 No s’observa mai cap expressió física d’afecte del progenitor/a vers l’infant 0‐17","No",{"$f":"0","v":0},{"$f":"17","v":17}]
[null,"",{"$f":"CONCATENATE(LEFT(C174,2),\"-\",IF(RIGHT(LEFT(Qüestionari!$D175,2),1)=\"\",0,\"\"),IF(RIGHT(LEFT(Qüestionari!$D175,2),1)=\"\",LEFT(Qüestionari!$D175,1),LEFT(Qüestionari!$D175,2)))","v":"D1-6 "},"6 Mostren una relació de gelosia amb l'infant, rivalitzant per l'atenció de la parella 0‐17","No",{"$f":"0","v":0},{"$f":"17","v":17}]
[null,"",{"$f":"CONCATENATE(LEFT(C175,2),\"-\",IF(RIGHT(LEFT(Qüestionari!$D176,2),1)=\"\",0,\"\"),IF(RIGHT(LEFT(Qüestionari!$D176,2),1)=\"\",LEFT(Qüestionari!$D176,1),LEFT(Qüestionari!$D176,2)))","v":"D1-7 "},"7 Són coneixedors de la situació de maltractament que pateix i no el protegeixen 0‐17","No",{"$f":"0","v":0},{"$f":"17","v":17}]
[null,"",{"$f":"CONCATENATE(LEFT(C176,2),\"-\",IF(RIGHT(LEFT(Qüestionari!$D177,2),1)=\"\",0,\"\"),IF(RIGHT(LEFT(Qüestionari!$D177,2),1)=\"\",LEFT(Qüestionari!$D177,1),LEFT(Qüestionari!$D177,2)))","v":"D1-8 "},"8 No permeten a l’infant contacte tàctil amb ells (carícies, moixaines, tendresa...) 1‐17","No",{"$f":"1","v":1},{"$f":"17","v":17}]
[null,"",{"$f":"CONCATENATE(LEFT(C177,2),\"-\",IF(RIGHT(LEFT(Qüestionari!$D178,2),1)=\"\",0,\"\"),IF(RIGHT(LEFT(Qüestionari!$D178,2),1)=\"\",LEFT(Qüestionari!$D178,1),LEFT(Qüestionari!$D178,2)))","v":"D1-9 "},"9 Tracten de manera molt desigual els/les germans/es 0‐17","No",{"$f":"0","v":0},{"$f":"17","v":17}]
[null,"","D2. El seguiment i control de la salut de l'infant no sembla l'adequat",null,null,"",""]
[null,"",{"$f":"CONCATENATE(\"D2-\",IF(RIGHT(LEFT(Qüestionari!$D180,2),1)=\"\",0,\"\"),IF(RIGHT(LEFT(Qüestionari!$D180,2),1)=\"\",LEFT(Qüestionari!$D180,1),LEFT(Qüestionari!$D180,2)))","v":"D2-1 "},"1 Porten habitualment l'infant malalt a l’escola 0‐17","No",{"$f":"0","v":0},{"$f":"17","v":17}]
[null,"",{"$f":"CONCATENATE(LEFT(C180,2),\"-\",IF(RIGHT(LEFT(Qüestionari!$D181,2),1)=\"\",0,\"\"),IF(RIGHT(LEFT(Qüestionari!$D181,2),1)=\"\",LEFT(Qüestionari!$D181,1),LEFT(Qüestionari!$D181,2)))","v":"D2-2 "},"2 No atenen les malalties o danys físics de l'infant 0‐17","No",{"$f":"0","v":0},{"$f":"17","v":17}]
[null,"",{"$f":"CONCATENATE(LEFT(C181,2),\"-\",IF(RIGHT(LEFT(Qüestionari!$D182,2),1)=\"\",0,\"\"),IF(RIGHT(LEFT(Qüestionari!$D182,2),1)=\"\",LEFT(Qüestionari!$D182,1),LEFT(Qüestionari!$D182,2)))","v":"D2-3 "},"3 No duen a terme les revisions mèdiques 0‐17","No",{"$f":"0","v":0},{"$f":"17","v":17}]
[null,"",{"$f":"CONCATENATE(LEFT(C182,2),\"-\",IF(RIGHT(LEFT(Qüestionari!$D183,2),1)=\"\",0,\"\"),IF(RIGHT(LEFT(Qüestionari!$D183,2),1)=\"\",LEFT(Qüestionari!$D183,1),LEFT(Qüestionari!$D183,2)))","v":"D2-4 "},"4 No segueixen els tractaments mèdics i/o higiènics que se'ls indiquen 0‐17","No",{"$f":"0","v":0},{"$f":"17","v":17}]
[null,"",{"$f":"CONCATENATE(LEFT(C183,2),\"-\",IF(RIGHT(LEFT(Qüestionari!$D184,2),1)=\"\",0,\"\"),IF(RIGHT(LEFT(Qüestionari!$D184,2),1)=\"\",LEFT(Qüestionari!$D184,1),LEFT(Qüestionari!$D184,2)))","v":"D2-5 "},"5 No assisteixen als serveis especialitzats indicats o derivats (atenció precoç, salut mental) 0‐17","No",{"$f":"0","v":0},{"$f":"17","v":17}]
[null,"","D3. Hi ha sospites de manipulació de la salut de l'infant per part dels progenitors",null,null,"",""]
[null,"",{"$f":"CONCATENATE(\"D3-\",IF(RIGHT(LEFT(Qüestionari!$D186,2),1)=\"\",0,\"\"),IF(RIGHT(LEFT(Qüestionari!$D186,2),1)=\"\",LEFT(Qüestionari!$D186,1),LEFT(Qüestionari!$D186,2)))","v":"D3-1 "},"1 Li atribueixen sovint malalties dubtoses o símptomes no observats a l’escola 0‐17","No",{"$f":"0","v":0},{"$f":"17","v":17}]
[null,"",{"$f":"CONCATENATE(LEFT(C186,2),\"-\",IF(RIGHT(LEFT(Qüestionari!$D187,2),1)=\"\",0,\"\"),IF(RIGHT(LEFT(Qüestionari!$D187,2),1)=\"\",LEFT(Qüestionari!$D187,1),LEFT(Qüestionari!$D187,2)))","v":"D3-2 "},"2 Fa faltes d’assistència reiterades per malalties sense justificació mèdica 3‐17","No",{"$f":"3","v":3},{"$f":"17","v":17}]
[null,"",{"$f":"CONCATENATE(LEFT(C187,2),\"-\",IF(RIGHT(LEFT(Qüestionari!$D188,2),1)=\"\",0,\"\"),IF(RIGHT(LEFT(Qüestionari!$D188,2),1)=\"\",LEFT(Qüestionari!$D188,1),LEFT(Qüestionari!$D188,2)))","v":"D3-3 "},"3 Té símptomes recurrents que desapareixen en separar‐lo de la família i tornen en contactar 0‐17","No",{"$f":"0","v":0},{"$f":"17","v":17}]
[null,"",{"$f":"CONCATENATE(LEFT(C188,2),\"-\",IF(RIGHT(LEFT(Qüestionari!$D189,2),1)=\"\",0,\"\"),IF(RIGHT(LEFT(Qüestionari!$D189,2),1)=\"\",LEFT(Qüestionari!$D189,1),LEFT(Qüestionari!$D189,2)))","v":"D3-4 "},"4 Fa múltiples ingressos hospitalaris 0‐17","No",{"$f":"0","v":0},{"$f":"17","v":17}]
[null,"","D4. Els progenitors o guardadors aïllen l'infant de l’entorn social",null,null,"",""]
[null,"",{"$f":"CONCATENATE(\"D4-\",IF(RIGHT(LEFT(Qüestionari!$D191,2),1)=\"\",0,\"\"),IF(RIGHT(LEFT(Qüestionari!$D191,2),1)=\"\",LEFT(Qüestionari!$D191,1),LEFT(Qüestionari!$D191,2)))","v":"D4-1 "},"1 Es mostren extremament protectors o controladors de l’infant 0‐17","No",{"$f":"0","v":0},{"$f":"17","v":17}]
[null,"",{"$f":"CONCATENATE(LEFT(C191,2),\"-\",IF(RIGHT(LEFT(Qüestionari!$D192,2),1)=\"\",0,\"\"),IF(RIGHT(LEFT(Qüestionari!$D192,2),1)=\"\",LEFT(Qüestionari!$D192,1),LEFT(Qüestionari!$D192,2)))","v":"D4-2 "},"2 No deixen a l’infant estar amb amics o amigues 3‐17","No",{"$f":"3","v":3},{"$f":"17","v":17}]
[null,"",{"$f":"CONCATENATE(LEFT(C192,2),\"-\",IF(RIGHT(LEFT(Qüestionari!$D193,2),1)=\"\",0,\"\"),IF(RIGHT(LEFT(Qüestionari!$D193,2),1)=\"\",LEFT(Qüestionari!$D193,1),LEFT(Qüestionari!$D193,2)))","v":"D4-3 "},"3 Es mostren molt possessius respecte a l'infant 0‐17","No",{"$f":"0","v":0},{"$f":"17","v":17}]
[null,"","D5. Els progenitors o guardadors es despreocupen de les activitats escolars i d'oci de l’infant",null,null,"",""]
[null,"",{"$f":"CONCATENATE(\"D5-\",IF(RIGHT(LEFT(Qüestionari!$D195,2),1)=\"\",0,\"\"),IF(RIGHT(LEFT(Qüestionari!$D195,2),1)=\"\",LEFT(Qüestionari!$D195,1),LEFT(Qüestionari!$D195,2)))","v":"D5-1 "},"1 S’obliden habitualment de recollir l’infant a l’escola o el vénen a recollir o el porten molt tard 0‐17","No",{"$f":"0","v":0},{"$f":"17","v":17}]
[null,"",{"$f":"CONCATENATE(LEFT(C195,2),\"-\",IF(RIGHT(LEFT(Qüestionari!$D196,2),1)=\"\",0,\"\"),IF(RIGHT(LEFT(Qüestionari!$D196,2),1)=\"\",LEFT(Qüestionari!$D196,1),LEFT(Qüestionari!$D196,2)))","v":"D5-2 "},"2 No es preocupen pels continguts de les activitats que fa l'infant, entre les quals NO hi ha pornografia (violència, etc) 3‐17","No",{"$f":"3","v":3},{"$f":"17","v":17}]
[null,"",{"$f":"CONCATENATE(LEFT(C196,2),\"-\",IF(RIGHT(LEFT(Qüestionari!$D197,2),1)=\"\",0,\"\"),IF(RIGHT(LEFT(Qüestionari!$D197,2),1)=\"\",LEFT(Qüestionari!$D197,1),LEFT(Qüestionari!$D197,2)))","v":"D5-3 "},"3 No es preocupen pels continguts de les activitats que fa l'infant, entre les quals SI hi ha pornografia 3-17","No",3,17]
[null,"",{"$f":"CONCATENATE(LEFT(C196,2),\"-\",IF(RIGHT(LEFT(Qüestionari!$D198,2),1)=\"\",0,\"\"),IF(RIGHT(LEFT(Qüestionari!$D198,2),1)=\"\",LEFT(Qüestionari!$D198,1),LEFT(Qüestionari!$D198,2)))","v":"D5-4 "},"4 No assisteixen a les reunions ni entrevistes amb l'escola quan se'ls cita 0‐17","No",{"$f":"0","v":0},{"$f":"17","v":17}]
[null,"",{"$f":"CONCATENATE(LEFT(C198,2),\"-\",IF(RIGHT(LEFT(Qüestionari!$D199,2),1)=\"\",0,\"\"),IF(RIGHT(LEFT(Qüestionari!$D199,2),1)=\"\",LEFT(Qüestionari!$D199,1),LEFT(Qüestionari!$D199,2)))","v":"D5-5 "},"5 Són causants o consentidors de les faltes d'assistència i/o absentisme escolar de l'infant i/o abandonament escolar 3‐16","No",{"$f":"3","v":3},{"$f":"16","v":16}]
[null,"",{"$f":"CONCATENATE(LEFT(C199,2),\"-\",IF(RIGHT(LEFT(Qüestionari!$D200,2),1)=\"\",0,\"\"),IF(RIGHT(LEFT(Qüestionari!$D200,2),1)=\"\",LEFT(Qüestionari!$D200,1),LEFT(Qüestionari!$D200,2)))","v":"D5-6 "},"6 No es preocupen de que l'infant porti el material escolar (xandall…) 3‐12","No",{"$f":"3","v":3},{"$f":"12","v":12}]
[null,"","D6. Els progenitors o guardadors no atenen les necessitats bàsiques de l'infant",null,null,"",""]
[null,"",{"$f":"CONCATENATE(\"D6-\",IF(RIGHT(LEFT(Qüestionari!$D202,2),1)=\"\",0,\"\"),IF(RIGHT(LEFT(Qüestionari!$D202,2),1)=\"\",LEFT(Qüestionari!$D202,1),LEFT(Qüestionari!$D202,2)))","v":"D6-1 "},"1 Desatenen les necessitats bàsiques de l'infant (alimentació, higiene...) 0‐17","No",{"$f":"0","v":0},{"$f":"17","v":17}]
[null,"",{"$f":"CONCATENATE(LEFT(C202,2),\"-\",IF(RIGHT(LEFT(Qüestionari!$D203,2),1)=\"\",0,\"\"),IF(RIGHT(LEFT(Qüestionari!$D203,2),1)=\"\",LEFT(Qüestionari!$D203,1),LEFT(Qüestionari!$D203,2)))","v":"D6-2 "},"2 No respecten els hàbits o rutines que l'infant necessita (hores de son/descans, àpats...) 0‐16","No",{"$f":"0","v":0},{"$f":"16","v":16}]
[null,"",{"$f":"CONCATENATE(LEFT(C203,2),\"-\",IF(RIGHT(LEFT(Qüestionari!$D204,2),1)=\"\",0,\"\"),IF(RIGHT(LEFT(Qüestionari!$D204,2),1)=\"\",LEFT(Qüestionari!$D204,1),LEFT(Qüestionari!$D204,2)))","v":"D6-3 "},"3 L'infant passa moltes hores sol o tancat a casa 0‐12","No",{"$f":"0","v":0},{"$f":"12","v":12}]
[null,"",{"$f":"CONCATENATE(LEFT(C204,2),\"-\",IF(RIGHT(LEFT(Qüestionari!$D205,2),1)=\"\",0,\"\"),IF(RIGHT(LEFT(Qüestionari!$D205,2),1)=\"\",LEFT(Qüestionari!$D205,1),LEFT(Qüestionari!$D205,2)))","v":"D6-4 "},"4 L'infant passa la major part del dia sol a casa i/o fora del domicili 0‐12","No",{"$f":"0","v":0},12]
[null,"",{"$f":"CONCATENATE(LEFT(C205,2),\"-\",IF(RIGHT(LEFT(Qüestionari!$D206,2),1)=\"\",0,\"\"),IF(RIGHT(LEFT(Qüestionari!$D206,2),1)=\"\",LEFT(Qüestionari!$D206,1),LEFT(Qüestionari!$D206,2)))","v":"D6-5 "},"5 Mostren un desconeixement de les necessitats emocionals i d'estimulació de l’infant 0‐17","No",{"$f":"0","v":0},{"$f":"17","v":17}]
[null,"",{"$f":"CONCATENATE(LEFT(C206,2),\"-\",IF(RIGHT(LEFT(Qüestionari!$D207,2),1)=\"\",0,\"\"),IF(RIGHT(LEFT(Qüestionari!$D207,2),1)=\"\",LEFT(Qüestionari!$D207,1),LEFT(Qüestionari!$D207,2)))","v":"D6-6 "},"6 S’encarreguen de l'infant altres familiars, amics o veïns no adequats 0‐17","No",{"$f":"0","v":0},{"$f":"17","v":17}]
[null,"",{"$f":"CONCATENATE(LEFT(C207,2),\"-\",IF(RIGHT(LEFT(Qüestionari!$D208,2),1)=\"\",0,\"\"),IF(RIGHT(LEFT(Qüestionari!$D208,2),1)=\"\",LEFT(Qüestionari!$D208,1),LEFT(Qüestionari!$D208,2)))","v":"D6-7 "},"7 S’encarreguen de l'infant altres familiars, amics o veïns per despreocupació dels progenitors 0‐17","No",{"$f":"0","v":0},{"$f":"17","v":17}]
[null,"",{"$f":"CONCATENATE(LEFT(C208,2),\"-\",IF(RIGHT(LEFT(Qüestionari!$D209,2),1)=\"\",0,\"\"),IF(RIGHT(LEFT(Qüestionari!$D209,2),1)=\"\",LEFT(Qüestionari!$D209,1),LEFT(Qüestionari!$D209,2)))","v":"D6-8 "},"8 Es dóna una absència de supervisió de l'infant (risc d'accidents domèstics) 0‐17","No",{"$f":"0","v":0},{"$f":"17","v":17}]
[null,"",{"$f":"CONCATENATE(LEFT(C209,2),\"-\",IF(RIGHT(LEFT(Qüestionari!$D210,2),1)=\"\",0,\"\"),IF(RIGHT(LEFT(Qüestionari!$D210,2),1)=\"\",LEFT(Qüestionari!$D210,1),LEFT(Qüestionari!$D210,2)))","v":"D6-9 "},"9 Prioritzen assumptes propis en detriment de l’atenció a l’infant, podent evitar‐ho 0‐17","No",{"$f":"0","v":0},{"$f":"17","v":17}]
[null,{"$f":"IF(AND($E$6<>\"\",$E$9<>\"\",$F211<=$E$6,$G211>=$E$6),\"*\",\"\")","v":""},{"$f":"CONCATENATE(LEFT(C210,2),\"-\",IF(RIGHT(LEFT(Qüestionari!$D211,2),1)=\"\",0,\"\"),IF(RIGHT(LEFT(Qüestionari!$D211,2),1)=\"\",LEFT(Qüestionari!$D211,1),LEFT(Qüestionari!$D211,2)))","v":"D6-10"},"10 Deixen l'infant moltes hores sol en un pis on hi ha trànsit de persones alienes a la família 0‐17","No",{"$f":"0","v":0},{"$f":"17","v":17}]
[null,"",{"$f":"CONCATENATE(LEFT(C211,2),\"-\",IF(RIGHT(LEFT(Qüestionari!$D212,2),1)=\"\",0,\"\"),IF(RIGHT(LEFT(Qüestionari!$D212,2),1)=\"\",LEFT(Qüestionari!$D212,1),LEFT(Qüestionari!$D212,2)))","v":"D6-11"},"11 Freqüenten amb l'infant ambients o locals no adients per a aquest (bars, discoteques…) 0‐12","No",{"$f":"0","v":0},{"$f":"12","v":12}]
[null,"","D7. Els progenitors o guardadors terroritzen o intimiden l’infant",null,null,"",""]
[null,"",{"$f":"CONCATENATE(\"D7-\",IF(RIGHT(LEFT(Qüestionari!$D214,2),1)=\"\",0,\"\"),IF(RIGHT(LEFT(Qüestionari!$D214,2),1)=\"\",LEFT(Qüestionari!$D214,1),LEFT(Qüestionari!$D214,2)))","v":"D7-1 "},"1 Terroritzen l'infant (amenacen amb mutilar‐lo, matar‐lo, vendre’l, trenquen les seves coses) 3‐17","No",{"$f":"3","v":3},{"$f":"17","v":17}]
[null,"",{"$f":"CONCATENATE(\"D7-\",IF(RIGHT(LEFT(Qüestionari!$D215,2),1)=\"\",0,\"\"),IF(RIGHT(LEFT(Qüestionari!$D215,2),1)=\"\",LEFT(Qüestionari!$D215,1),LEFT(Qüestionari!$D215,2)))","v":"D7-2 "},"2 En cas que la resposta a l'anterior pregunta sigui afirmativa, l'amenaça posa en perill real la integritat física de l'infant? 3-17","No",3,17]
[null,"",{"$f":"CONCATENATE(LEFT(C214,2),\"-\",IF(RIGHT(LEFT(Qüestionari!$D216,2),1)=\"\",0,\"\"),IF(RIGHT(LEFT(Qüestionari!$D216,2),1)=\"\",LEFT(Qüestionari!$D216,1),LEFT(Qüestionari!$D216,2)))","v":"D7-3 "},"3 Utilitzen sistemàticament la por com a forma de disciplina 1‐17","No",{"$f":"1","v":1},{"$f":"17","v":17}]
[null,"",{"$f":"CONCATENATE(LEFT(C216,2),\"-\",IF(RIGHT(LEFT(Qüestionari!$D217,2),1)=\"\",0,\"\"),IF(RIGHT(LEFT(Qüestionari!$D217,2),1)=\"\",LEFT(Qüestionari!$D217,1),LEFT(Qüestionari!$D217,2)))","v":"D7-4 "},"4 Mostren violència manifesta contra les persones davant de l’infant 0‐17","No",{"$f":"0","v":0},{"$f":"17","v":17}]
[null,"",{"$f":"CONCATENATE(LEFT(C217,2),\"-\",IF(RIGHT(LEFT(Qüestionari!$D218,2),1)=\"\",0,\"\"),IF(RIGHT(LEFT(Qüestionari!$D218,2),1)=\"\",LEFT(Qüestionari!$D218,1),LEFT(Qüestionari!$D218,2)))","v":"D7-5 "},"5 Han fet intents o han consumat un suïcidi o homicidi davant de l’infant 0‐17","No",{"$f":"0","v":0},{"$f":"17","v":17}]
[null,"",{"$f":"CONCATENATE(LEFT(C218,2),\"-\",IF(RIGHT(LEFT(Qüestionari!$D219,2),1)=\"\",0,\"\"),IF(RIGHT(LEFT(Qüestionari!$D219,2),1)=\"\",LEFT(Qüestionari!$D219,1),LEFT(Qüestionari!$D219,2)))","v":"D7-6 "},"6 Amenacen a l'infant en fer‐li mal, diuen que no responen dels seus actes 0‐17","No",{"$f":"0","v":0},{"$f":"17","v":17}]
[null,"",{"$f":"CONCATENATE(LEFT(C219,2),\"-\",IF(RIGHT(LEFT(Qüestionari!$D220,2),1)=\"\",0,\"\"),IF(RIGHT(LEFT(Qüestionari!$D220,2),1)=\"\",LEFT(Qüestionari!$D220,1),LEFT(Qüestionari!$D220,2)))","v":"D7-7 "},"7 En cas que la resposta a l'anterior pregunta sigui afirmativa, l'amenaça posa en perill real la integritat física de l'infant? 0-17","No",0,17]
[null,"",{"$f":"CONCATENATE(LEFT(C219,2),\"-\",IF(RIGHT(LEFT(Qüestionari!$D221,2),1)=\"\",0,\"\"),IF(RIGHT(LEFT(Qüestionari!$D221,2),1)=\"\",LEFT(Qüestionari!$D221,1),LEFT(Qüestionari!$D221,2)))","v":"D7-8 "},"8 Utilitzen un tracte colèric i explosiu amb l'infant 0‐17","No",{"$f":"0","v":0},{"$f":"17","v":17}]
[null,"",{"$f":"CONCATENATE(LEFT(C221,2),\"-\",IF(RIGHT(LEFT(Qüestionari!$D222,2),1)=\"\",0,\"\"),IF(RIGHT(LEFT(Qüestionari!$D222,2),1)=\"\",LEFT(Qüestionari!$D222,1),LEFT(Qüestionari!$D222,2)))","v":"D7-9 "},"9 Mostren violència manifesta contra animals o coses davant de l'infant 0‐17","No",{"$f":"0","v":0},{"$f":"17","v":17}]
[null,"","D8. Els progenitors o guardadors poden estar explotant o corrompent l’infant",null,null,"",""]
[null,"",{"$f":"CONCATENATE(\"D8-\",IF(RIGHT(LEFT(Qüestionari!$D224,2),1)=\"\",0,\"\"),IF(RIGHT(LEFT(Qüestionari!$D224,2),1)=\"\",LEFT(Qüestionari!$D224,1),LEFT(Qüestionari!$D224,2)))","v":"D8-1 "},"1 Hi ha indicis que podrien estar forçant o consentint una situació d'explotació laboral 4‐15","No",{"$f":"4","v":4},{"$f":"15","v":15}]
[null,"",{"$f":"CONCATENATE(LEFT(C224,2),\"-\",IF(RIGHT(LEFT(Qüestionari!$D225,2),1)=\"\",0,\"\"),IF(RIGHT(LEFT(Qüestionari!$D225,2),1)=\"\",LEFT(Qüestionari!$D225,1),LEFT(Qüestionari!$D225,2)))","v":"D8-2 "},"2 Hi ha indicis que fan pensar que podrien estar forçant l’infant en activitats sexuals (prostitució, pornografia...) 0‐17","No",{"$f":"0","v":0},{"$f":"17","v":17}]
[null,"",{"$f":"CONCATENATE(LEFT(C225,2),\"-\",IF(RIGHT(LEFT(Qüestionari!$D226,2),1)=\"\",0,\"\"),IF(RIGHT(LEFT(Qüestionari!$D226,2),1)=\"\",LEFT(Qüestionari!$D226,1),LEFT(Qüestionari!$D226,2)))","v":"D8-3 "},"3 Utilitzen l'infant per la mendicitat 0‐17","No",{"$f":"0","v":0},{"$f":"17","v":17}]
[null,"",{"$f":"CONCATENATE(LEFT(C226,2),\"-\",IF(RIGHT(LEFT(Qüestionari!$D227,2),1)=\"\",0,\"\"),IF(RIGHT(LEFT(Qüestionari!$D227,2),1)=\"\",LEFT(Qüestionari!$D227,1),LEFT(Qüestionari!$D227,2)))","v":"D8-4 "},"4 Utilitzen l’infant en activitats dissocials o delictives (vandalisme, robatoris...) 0‐17","No",{"$f":"0","v":0},{"$f":"17","v":17}]
[null,"",{"$f":"CONCATENATE(LEFT(C227,2),\"-\",IF(RIGHT(LEFT(Qüestionari!$D228,2),1)=\"\",0,\"\"),IF(RIGHT(LEFT(Qüestionari!$D228,2),1)=\"\",LEFT(Qüestionari!$D228,1),LEFT(Qüestionari!$D228,2)))","v":"D8-5 "},"5 Fan actes sexuals davant l'infant","No",{"$f":"0","v":0},{"$f":"17","v":17}]
[null,"",{"$f":"CONCATENATE(LEFT(C228,2),\"-\",IF(RIGHT(LEFT(Qüestionari!$D229,2),1)=\"\",0,\"\"),IF(RIGHT(LEFT(Qüestionari!$D229,2),1)=\"\",LEFT(Qüestionari!$D229,1),LEFT(Qüestionari!$D229,2)))","v":"D8-6 "},"6 El sotmeten a veure material pornogràfic 1‐17","No",{"$f":"1","v":1},{"$f":"17","v":17}]
[null,"",{"$f":"CONCATENATE(LEFT(C229,2),\"-\",IF(RIGHT(LEFT(Qüestionari!$D230,2),1)=\"\",0,\"\"),IF(RIGHT(LEFT(Qüestionari!$D230,2),1)=\"\",LEFT(Qüestionari!$D230,1),LEFT(Qüestionari!$D230,2)))","v":"D8-7 "},"7 Subministren substàncies tòxiques a l'infant (alcohol, cannabis, tabac, etc)  a 0‐12 ","No",{"$f":"0","v":0},{"$f":"12","v":12}]
[null,"","D9. Els progenitors o guardadors mostren incapacitat de control de l’infant",null,null,"",""]
[null,"",{"$f":"CONCATENATE(\"D9-\",IF(RIGHT(LEFT(Qüestionari!$D232,2),1)=\"\",0,\"\"),IF(RIGHT(LEFT(Qüestionari!$D232,2),1)=\"\",LEFT(Qüestionari!$D232,1),LEFT(Qüestionari!$D232,2)))","v":"D9-1 "},"1 Es queixen sovint que “no poden” amb l’infant, que els és massa difícil 1‐17","No",{"$f":"1","v":1},{"$f":"17","v":17}]
[null,"",{"$f":"CONCATENATE(LEFT(C232,2),\"-\",IF(RIGHT(LEFT(Qüestionari!$D233,2),1)=\"\",0,\"\"),IF(RIGHT(LEFT(Qüestionari!$D233,2),1)=\"\",LEFT(Qüestionari!$D233,1),LEFT(Qüestionari!$D233,2)))","v":"D9-2 "},"2 Manifesten que volen ingressar‐lo en un centre a causa de la seva conducta 2‐17","No",{"$f":"2","v":2},{"$f":"17","v":17}]
[null,"",{"$f":"CONCATENATE(LEFT(C233,2),\"-\",IF(RIGHT(LEFT(Qüestionari!$D234,2),1)=\"\",0,\"\"),IF(RIGHT(LEFT(Qüestionari!$D234,2),1)=\"\",LEFT(Qüestionari!$D234,1),LEFT(Qüestionari!$D234,2)))","v":"D9-3 "},"3 Manifesten que tenen por de l’infant i/o que n’han rebut amenaces o els ha agredit 6‐17","No",{"$f":"6","v":6},{"$f":"17","v":17}]
[null,"",{"$f":"CONCATENATE(LEFT(C234,2),\"-\",IF(RIGHT(LEFT(Qüestionari!$D235,2),1)=\"\",0,\"\"),IF(RIGHT(LEFT(Qüestionari!$D235,2),1)=\"\",LEFT(Qüestionari!$D235,1),LEFT(Qüestionari!$D235,2)))","v":"D9-4 "},"4 Manifesten que té atacs de violència incontrolable 3‐17","No",{"$f":"3","v":3},{"$f":"17","v":17}]
[null,"","D10. Els progenitors o guardadors mostren pautes educatives no adequades amb l'infant",null,null,"",""]
[null,"",{"$f":"CONCATENATE(\"D10-\",IF(RIGHT(LEFT(Qüestionari!$D237,2),1)=\"\",0,\"\"),IF(RIGHT(LEFT(Qüestionari!$D237,2),1)=\"\",LEFT(Qüestionari!$D237,1),LEFT(Qüestionari!$D237,2)))","v":"D10-1 "},"1 Utilitzen el càstig físic com a mètode habitual de disciplina 0‐17","No",{"$f":"0","v":0},{"$f":"17","v":17}]
[null,"",{"$f":"CONCATENATE(LEFT(C237,3),\"-\",IF(RIGHT(LEFT(Qüestionari!$D238,2),1)=\"\",0,\"\"),IF(RIGHT(LEFT(Qüestionari!$D238,2),1)=\"\",LEFT(Qüestionari!$D238,1),LEFT(Qüestionari!$D238,2)))","v":"D10-2 "},"2 Utilitzen habitualment mètodes o pautes educatives extremament rígids i poc flexibles 0‐17","No",{"$f":"0","v":0},{"$f":"17","v":17}]
[null,"",{"$f":"CONCATENATE(LEFT(C238,3),\"-\",IF(RIGHT(LEFT(Qüestionari!$D239,2),1)=\"\",0,\"\"),IF(RIGHT(LEFT(Qüestionari!$D239,2),1)=\"\",LEFT(Qüestionari!$D239,1),LEFT(Qüestionari!$D239,2)))","v":"D10-3 "},"3 No tenen en compte la seva opinió en cap de les decisions que l'afecten directament 4‐17","No",{"$f":"4","v":4},{"$f":"17","v":17}]
[null,"",{"$f":"CONCATENATE(LEFT(C239,3),\"-\",IF(RIGHT(LEFT(Qüestionari!$D240,2),1)=\"\",0,\"\"),IF(RIGHT(LEFT(Qüestionari!$D240,2),1)=\"\",LEFT(Qüestionari!$D240,1),LEFT(Qüestionari!$D240,2)))","v":"D10-4 "},"4 El pressionen de manera desmesurada perquè tregui bones notes o destaqui en alguna activitat 4‐17","No",{"$f":"4","v":4},{"$f":"17","v":17}]
[null,"",{"$f":"CONCATENATE(LEFT(C240,3),\"-\",IF(RIGHT(LEFT(Qüestionari!$D241,2),1)=\"\",0,\"\"),IF(RIGHT(LEFT(Qüestionari!$D241,2),1)=\"\",LEFT(Qüestionari!$D241,1),LEFT(Qüestionari!$D241,2)))","v":"D10-5 "},"5 Inculquen en l'infant odi o prejudicis religiosos, ètnics, culturals o d'altre tipus 3‐17","No",{"$f":"3","v":3},{"$f":"17","v":17}]
[null,"",{"$f":"CONCATENATE(LEFT(C241,3),\"-\",IF(RIGHT(LEFT(Qüestionari!$D242,2),1)=\"\",0,\"\"),IF(RIGHT(LEFT(Qüestionari!$D242,2),1)=\"\",LEFT(Qüestionari!$D242,1),LEFT(Qüestionari!$D242,2)))","v":"D10-6 "},"6 El culpabilitzen dels problemes familiars (no fa prou per ells, es presenten com a màrtirs) 1‐17","No",{"$f":"1","v":1},{"$f":"17","v":17}]
[null,"",{"$f":"CONCATENATE(LEFT(C242,3),\"-\",IF(RIGHT(LEFT(Qüestionari!$D243,2),1)=\"\",0,\"\"),IF(RIGHT(LEFT(Qüestionari!$D243,2),1)=\"\",LEFT(Qüestionari!$D243,1),LEFT(Qüestionari!$D243,2)))","v":"D10-7 "},"7 Utilitzen l'infant en el conflicte conjugal/ de parella 0‐17","No",{"$f":"0","v":0},{"$f":"17","v":17}]
[null,"",{"$f":"CONCATENATE(LEFT(C243,3),\"-\",IF(RIGHT(LEFT(Qüestionari!$D244,2),1)=\"\",0,\"\"),IF(RIGHT(LEFT(Qüestionari!$D244,2),1)=\"\",LEFT(Qüestionari!$D244,1),LEFT(Qüestionari!$D244,2)))","v":"D10-8 "},"8 Indueixen l'infant al consum de tòxics (cànnabis, alcohol…) 12‐17","No",{"$f":"12","v":12},{"$f":"17","v":17}]
[null,"",{"$f":"CONCATENATE(LEFT(C244,3),\"-\",IF(RIGHT(LEFT(Qüestionari!$D245,2),1)=\"\",0,\"\"),IF(RIGHT(LEFT(Qüestionari!$D245,2),1)=\"\",LEFT(Qüestionari!$D245,1),LEFT(Qüestionari!$D245,2)))","v":"D10-9 "},"9 Toleren absolutament tots els comportaments de l'infant sense posar‐li cap límit 1‐17","No",{"$f":"1","v":1},{"$f":"17","v":17}]
[null,"",{"$f":"CONCATENATE(LEFT(C245,3),\"-\",IF(RIGHT(LEFT(Qüestionari!$D246,2),1)=\"\",0,\"\"),IF(RIGHT(LEFT(Qüestionari!$D246,2),1)=\"\",LEFT(Qüestionari!$D246,1),LEFT(Qüestionari!$D246,2)))","v":"D10-10"},"10 Utilitzen pautes educatives incoherents 1‐17","No",{"$f":"1","v":1},{"$f":"17","v":17}]
[null,"","D12. Situacions que fan que l'infant es trobi greument desprotegit",null,null,"",""]
[null,"",{"$f":"CONCATENATE(\"D12-\",IF(RIGHT(LEFT(Qüestionari!$D248,2),1)=\"\",0,\"\"),IF(RIGHT(LEFT(Qüestionari!$D248,2),1)=\"\",LEFT(Qüestionari!$D248,1),LEFT(Qüestionari!$D248,2)))","v":"D12-1 "},"1 S'ha trobat l'infant sol pel carrer o en un domicili i no es localitza ningú de la família 0‐16","No",{"$f":"0","v":0},{"$f":"16","v":16}]
[null,"",{"$f":"CONCATENATE(LEFT(C248,3),\"-\",IF(RIGHT(LEFT(Qüestionari!$D249,2),1)=\"\",0,\"\"),IF(RIGHT(LEFT(Qüestionari!$D249,2),1)=\"\",LEFT(Qüestionari!$D249,1),LEFT(Qüestionari!$D249,2)))","v":"D12-2 "},"2 Habitualment no recullen l'infant a l'escola i no es localitza ningú que se'n pugui fer càrrec 0‐12","No",{"$f":"0","v":0},{"$f":"12","v":12}]
[null,"",{"$f":"CONCATENATE(LEFT(C249,3),\"-\",IF(RIGHT(LEFT(Qüestionari!$D250,2),1)=\"\",0,\"\"),IF(RIGHT(LEFT(Qüestionari!$D250,2),1)=\"\",LEFT(Qüestionari!$D250,1),LEFT(Qüestionari!$D250,2)))","v":"D12-3 "},"3 La mare i/o el pare vol donar l'infant en adopció ","No",{"$f":"0","v":0},{"$f":"17","v":17}]
[null,"",{"$f":"CONCATENATE(LEFT(C250,3),\"-\",IF(RIGHT(LEFT(Qüestionari!$D251,2),1)=\"\",0,\"\"),IF(RIGHT(LEFT(Qüestionari!$D251,2),1)=\"\",LEFT(Qüestionari!$D251,1),LEFT(Qüestionari!$D251,2)))","v":"D12-4 "},"4 Menor sense referents familiars en el territori 1‐17","No",{"$f":"1","v":1},{"$f":"17","v":17}]
[null,"",{"$f":"CONCATENATE(LEFT(C251,3),\"-\",IF(RIGHT(LEFT(Qüestionari!$D252,2),1)=\"\",0,\"\"),IF(RIGHT(LEFT(Qüestionari!$D252,2),1)=\"\",LEFT(Qüestionari!$D252,1),LEFT(Qüestionari!$D252,2)))","v":"D12-5 "},"5 Amenacen amb matar l'infant 0‐17","No",{"$f":"0","v":0},{"$f":"17","v":17}]
[null,"",{"$f":"CONCATENATE(LEFT(C252,3),\"-\",IF(RIGHT(LEFT(Qüestionari!$D253,2),1)=\"\",0,\"\"),IF(RIGHT(LEFT(Qüestionari!$D253,2),1)=\"\",LEFT(Qüestionari!$D253,1),LEFT(Qüestionari!$D253,2)))","v":"D12-6 "},"6 En cas que la resposta a l'anterior pregunta sigui afirmativa, l'amenaça posa en perill real la vida de l'infant? 0-17","No",0,17]
[null,"",{"$f":"CONCATENATE(LEFT(C252,3),\"-\",IF(RIGHT(LEFT(Qüestionari!$D254,2),1)=\"\",0,\"\"),IF(RIGHT(LEFT(Qüestionari!$D254,2),1)=\"\",LEFT(Qüestionari!$D254,1),LEFT(Qüestionari!$D254,2)))","v":"D12-7 "},"7 Amenacen amb donar l'infant 0‐17","No",{"$f":"0","v":0},{"$f":"17","v":17}]
[null,"","D13. Els progenitors o guardadors poden estar maltractant físicament l’infant o abusant-ne sexualment ",null,null,"",""]
[null,"",{"$f":"CONCATENATE(\"D13-\",IF(RIGHT(LEFT(Qüestionari!$D256,2),1)=\"\",0,\"\"),IF(RIGHT(LEFT(Qüestionari!$D256,2),1)=\"\",LEFT(Qüestionari!$D256,1),LEFT(Qüestionari!$D256,2)))","v":"D13-1 "},"1 Poden ser els causants de les lesions físiques de l'infant 0‐17","No",{"$f":"0","v":0},{"$f":"17","v":17}]
[null,"",{"$f":"CONCATENATE(\"D13-\",IF(RIGHT(LEFT(Qüestionari!$D257,2),1)=\"\",0,\"\"),IF(RIGHT(LEFT(Qüestionari!$D257,2),1)=\"\",LEFT(Qüestionari!$D257,1),LEFT(Qüestionari!$D257,2)))","v":"D13-2 "},"2 L'infant té lesions al cos? 0-17","No",0,17]
[null,"",{"$f":"CONCATENATE(LEFT(C256,3),\"-\",IF(RIGHT(LEFT(Qüestionari!$D258,2),1)=\"\",0,\"\"),IF(RIGHT(LEFT(Qüestionari!$D258,2),1)=\"\",LEFT(Qüestionari!$D258,1),LEFT(Qüestionari!$D258,2)))","v":"D13-3 "},"3 Poden estar abusant sexualment de l'infant 0‐17","No",{"$f":"0","v":0},{"$f":"17","v":17}]
[null,"",{"$f":"CONCATENATE(LEFT(C258,3),\"-\",IF(RIGHT(LEFT(Qüestionari!$D259,2),1)=\"\",0,\"\"),IF(RIGHT(LEFT(Qüestionari!$D259,2),1)=\"\",LEFT(Qüestionari!$D259,1),LEFT(Qüestionari!$D259,2)))","v":"D13-4 "},"4 L'infant relata abús sexual? 0-17","No",0,17]
[null,"",{"$f":"CONCATENATE(LEFT(C258,3),\"-\",IF(RIGHT(LEFT(Qüestionari!$D260,2),1)=\"\",0,\"\"),IF(RIGHT(LEFT(Qüestionari!$D260,2),1)=\"\",LEFT(Qüestionari!$D260,1),LEFT(Qüestionari!$D260,2)))","v":"D13-5 "},"5 Poden haver afavorit una mutilació genital femenina o estar en risc de fer‐ho 0‐17","No",{"$f":"0","v":0},{"$f":"17","v":17}]
[null,"","D14. L’infant està vivint en un entorn familiar violent",null,null,"",""]
[null,"",{"$f":"CONCATENATE(\"D14-\",IF(RIGHT(LEFT(Qüestionari!$D262,2),1)=\"\",0,\"\"),IF(RIGHT(LEFT(Qüestionari!$D262,2),1)=\"\",LEFT(Qüestionari!$D262,1),LEFT(Qüestionari!$D262,2)))","v":"D14-1 "},"1 Es donen relacions violentes entre la parella 0‐17","No",{"$f":"0","v":0},{"$f":"17","v":17}]
[null,"",{"$f":"CONCATENATE(LEFT(C262,3),\"-\",IF(RIGHT(LEFT(Qüestionari!$D263,2),1)=\"\",0,\"\"),IF(RIGHT(LEFT(Qüestionari!$D263,2),1)=\"\",LEFT(Qüestionari!$D263,1),LEFT(Qüestionari!$D263,2)))","v":"D14-2 "},"2 Es dóna violència física/psíquica manifesta contra altres membres de la família 0‐17","No",{"$f":"0","v":0},{"$f":"17","v":17}]
[null,"",{"$f":"CONCATENATE(LEFT(C263,3),\"-\",IF(RIGHT(LEFT(Qüestionari!$D264,2),1)=\"\",0,\"\"),IF(RIGHT(LEFT(Qüestionari!$D264,2),1)=\"\",LEFT(Qüestionari!$D264,1),LEFT(Qüestionari!$D264,2)))","v":"D14-3 "},"3 Hi ha agressions mútues entre progenitors i fills 6‐17","No",{"$f":"6","v":6},{"$f":"17","v":17}]
[null,"",{"$f":"CONCATENATE(LEFT(C264,3),\"-\",IF(RIGHT(LEFT(Qüestionari!$D265,2),1)=\"\",0,\"\"),IF(RIGHT(LEFT(Qüestionari!$D265,2),1)=\"\",LEFT(Qüestionari!$D265,1),LEFT(Qüestionari!$D265,2)))","v":"D14-4 "},"4 Es donen múltiples o creuades denúncies entre els membres de la família 0‐17","No",{"$f":"0","v":0},{"$f":"17","v":17}]
[null,"","E1. Els progenitors o guardadors poden tenir una addicció a l’alcohol o altres drogues",null,null,"",""]
[null,"",{"$f":"CONCATENATE(\"E1-\",IF(RIGHT(LEFT(Qüestionari!$D267,2),1)=\"\",0,\"\"),IF(RIGHT(LEFT(Qüestionari!$D267,2),1)=\"\",LEFT(Qüestionari!$D267,1),LEFT(Qüestionari!$D267,2)))","v":"E1-1 "},"1 Hi ha indicis de l'existència de substàncies estupefaents o tòxiques a l'abast de l'infant 0‐17","No",{"$f":"0","v":0},{"$f":"17","v":17}]
[null,"","E2. Els progenitors o guardadors poden estar patint algun trastorn mental",null,null,"",""]
[null,"",{"$f":"CONCATENATE(\"E2-\",IF(RIGHT(LEFT(Qüestionari!$D269,2),1)=\"\",0,\"\"),IF(RIGHT(LEFT(Qüestionari!$D269,2),1)=\"\",LEFT(Qüestionari!$D269,1),LEFT(Qüestionari!$D269,2)))","v":"E2-1 "},"1 Presenten símptomes compatibles amb algun trastorn mental 0‐17","No",{"$f":"0","v":0},{"$f":"17","v":17}]
[null,"","E3. Els progenitors o guardadors presenten una discapacitat intel·lectual",null,null,"",""]
[null,"",{"$f":"CONCATENATE(\"E3-\",IF(RIGHT(LEFT(Qüestionari!$D271,2),1)=\"\",0,\"\"),IF(RIGHT(LEFT(Qüestionari!$D271,2),1)=\"\",LEFT(Qüestionari!$D271,1),LEFT(Qüestionari!$D271,2)))","v":"E3-1 "},"1 Presenten dificultats que fan pensar que pot tenir alguna discapacitat intel·lectual 0‐17","No",{"$f":"0","v":0},{"$f":"17","v":17}]
[null,"","E4. Els progenitors o guardadors presenten una malaltia física",null,null,"",""]
[null,"",{"$f":"CONCATENATE(\"E4-\",IF(RIGHT(LEFT(Qüestionari!$D273,2),1)=\"\",0,\"\"),IF(RIGHT(LEFT(Qüestionari!$D273,2),1)=\"\",LEFT(Qüestionari!$D273,1),LEFT(Qüestionari!$D273,2)))","v":"E4-1 "},"1 Pateixen alguna malaltia física greu 0‐17","No",{"$f":"0","v":0},{"$f":"17","v":17}]
[null,"","E5. L’habitatge no presenta unes condicions mínimes d’habitabilitat i higiene per a l’infant",null,null,"",""]
[null,{"$f":"IF(AND($E$6<>\"\",$E$9<>\"\",$F275<=$E$6,$G275>=$E$6),\"*\",\"\")","v":""},{"$f":"CONCATENATE(\"E5-\",IF(RIGHT(LEFT(Qüestionari!$D275,2),1)=\"\",0,\"\"),IF(RIGHT(LEFT(Qüestionari!$D275,2),1)=\"\",LEFT(Qüestionari!$D275,1),LEFT(Qüestionari!$D275,2)))","v":"E5-1 "},"1 Hi ha amuntegament (conviuen moltes persones en una mateixa casa) 0‐17","No",{"$f":"0","v":0},{"$f":"17","v":17}]
[null,"",{"$f":"CONCATENATE(LEFT(C275,2),\"-\",IF(RIGHT(LEFT(Qüestionari!$D276,2),1)=\"\",0,\"\"),IF(RIGHT(LEFT(Qüestionari!$D276,2),1)=\"\",LEFT(Qüestionari!$D276,1),LEFT(Qüestionari!$D276,2)))","v":"E5-2 "},"2 Han estat desnonats o no tenen domicili 0‐17","No",{"$f":"0","v":0},{"$f":"17","v":17}]
[null,"","E8. Situació familiar d'especial consideració",null,null,"",""]
[null,"",{"$f":"CONCATENATE(\"E8-\",IF(RIGHT(LEFT(Qüestionari!$D278,2),1)=\"\",0,\"\"),IF(RIGHT(LEFT(Qüestionari!$D278,2),1)=\"\",LEFT(Qüestionari!$D278,1),LEFT(Qüestionari!$D278,2)))","v":"E8-1 "},"1 Algun dels progenitors està a la presó 0‐17","No",{"$f":"0","v":0},{"$f":"17","v":17}]
[null,"",{"$f":"CONCATENATE(LEFT(C278,2),\"-\",IF(RIGHT(LEFT(Qüestionari!$D279,2),1)=\"\",0,\"\"),IF(RIGHT(LEFT(Qüestionari!$D279,2),1)=\"\",LEFT(Qüestionari!$D279,1),LEFT(Qüestionari!$D279,2)))","v":"E8-2 "},"2 Ambdós progenitors estan a la presó 0‐17","No",{"$f":"0","v":0},{"$f":"17","v":17}]
[null,"","E9. El nucli familiar té dificultats socials, econòmiques i/o d'organització",null,null,"",""]
[null,"",{"$f":"CONCATENATE(\"E9-\",IF(RIGHT(LEFT(Qüestionari!$D281,2),1)=\"\",0,\"\"),IF(RIGHT(LEFT(Qüestionari!$D281,2),1)=\"\",LEFT(Qüestionari!$D281,1),LEFT(Qüestionari!$D281,2)))","v":"E9-1 "},"1 No té suport social i/o familiar 0‐17","No",{"$f":"0","v":0},{"$f":"17","v":17}]
[null,"",{"$f":"CONCATENATE(LEFT(C281,2),\"-\",IF(RIGHT(LEFT(Qüestionari!$D282,2),1)=\"\",0,\"\"),IF(RIGHT(LEFT(Qüestionari!$D282,2),1)=\"\",LEFT(Qüestionari!$D282,1),LEFT(Qüestionari!$D282,2)))","v":"E9-2 "},"2 Es detecta insuficiència d'ingressos econòmics per garantir les necessitats escolars de l’infant 0‐17","No",{"$f":"0","v":0},{"$f":"17","v":17}]
[null,"",{"$f":"CONCATENATE(LEFT(C282,2),\"-\",IF(RIGHT(LEFT(Qüestionari!$D283,2),1)=\"\",0,\"\"),IF(RIGHT(LEFT(Qüestionari!$D283,2),1)=\"\",LEFT(Qüestionari!$D283,1),LEFT(Qüestionari!$D283,2)))","v":"E9-3 "},"3 Els progenitors són adolescents amb manca de suport 0‐17","No",{"$f":"0","v":0},{"$f":"17","v":17}]
[null,"",{"$f":"CONCATENATE(LEFT(C283,2),\"-\",IF(RIGHT(LEFT(Qüestionari!$D284,2),1)=\"\",0,\"\"),IF(RIGHT(LEFT(Qüestionari!$D284,2),1)=\"\",LEFT(Qüestionari!$D284,1),LEFT(Qüestionari!$D284,2)))","v":"E9-4 "},"4 És un nucli monoparental amb greus dificultats econòmiques o amb manca de suport 0‐17","No",{"$f":"0","v":0},{"$f":"17","v":17}]
[null,"",{"$f":"CONCATENATE(LEFT(C284,2),\"-\",IF(RIGHT(LEFT(Qüestionari!$D285,2),1)=\"\",0,\"\"),IF(RIGHT(LEFT(Qüestionari!$D285,2),1)=\"\",LEFT(Qüestionari!$D285,1),LEFT(Qüestionari!$D285,2)))","v":"E9-5 "},"5 Hi ha greus deficiències en habilitats d’organització i economia domèstica 0‐17","No",{"$f":"0","v":0},{"$f":"17","v":17}]
[null,"",{"$f":"CONCATENATE(LEFT(C285,2),\"-\",IF(RIGHT(LEFT(Qüestionari!$D286,2),1)=\"\",0,\"\"),IF(RIGHT(LEFT(Qüestionari!$D286,2),1)=\"\",LEFT(Qüestionari!$D286,1),LEFT(Qüestionari!$D286,2)))","v":"E9-6 "},"6 Nucli en situació d’immigració amb greus dificultats econòmiques o legals o manca de suport 0‐17","No",{"$f":"0","v":0},{"$f":"17","v":17}]
[null,"",{"$f":"CONCATENATE(LEFT(C286,2),\"-\",IF(RIGHT(LEFT(Qüestionari!$D287,2),1)=\"\",0,\"\"),IF(RIGHT(LEFT(Qüestionari!$D287,2),1)=\"\",LEFT(Qüestionari!$D287,1),LEFT(Qüestionari!$D287,2)))","v":"E9-7 "},"7 Es donen canvis constants de domicili 0‐17","No",{"$f":"0","v":0},{"$f":"17","v":17}]
[null,"",{"$f":"CONCATENATE(LEFT(C287,2),\"-\",IF(RIGHT(LEFT(Qüestionari!$D288,2),1)=\"\",0,\"\"),IF(RIGHT(LEFT(Qüestionari!$D288,2),1)=\"\",LEFT(Qüestionari!$D288,1),LEFT(Qüestionari!$D288,2)))","v":"E9-8 "},"8 Canvis freqüents dels referents adults de l'infant (canvis de cuidadors) 0‐17","No",{"$f":"0","v":0},{"$f":"17","v":17}]
[null,"","E10. El nucli familiar viu en un context social d'especial consideració",null,null,"",""]
[null,"",{"$f":"CONCATENATE(\"E10-\",IF(RIGHT(LEFT(Qüestionari!$D290,2),1)=\"\",0,\"\"),IF(RIGHT(LEFT(Qüestionari!$D290,2),1)=\"\",LEFT(Qüestionari!$D290,1),LEFT(Qüestionari!$D290,2)))","v":"E10-1 "},"1 Viuen en un campament provisional de caravanes 0‐17","No",{"$f":"0","v":0},{"$f":"17","v":17}]
[null,"",{"$f":"CONCATENATE(LEFT(C290,3),\"-\",IF(RIGHT(LEFT(Qüestionari!$D291,2),1)=\"\",0,\"\"),IF(RIGHT(LEFT(Qüestionari!$D291,2),1)=\"\",LEFT(Qüestionari!$D291,1),LEFT(Qüestionari!$D291,2)))","v":"E10-2 "},"2 Habiten en una zona amb concentració de població en situació de dificultat social 0‐17","No",{"$f":"0","v":0},{"$f":"17","v":17}]
[null,"","E11. Els guardadors o progenitors presenten un aspecte físic molt desfavorable",null,null,"",""]
[null,"",{"$f":"CONCATENATE(\"E11-\",IF(RIGHT(LEFT(Qüestionari!$D293,2),1)=\"\",0,\"\"),IF(RIGHT(LEFT(Qüestionari!$D293,2),1)=\"\",LEFT(Qüestionari!$D293,1),LEFT(Qüestionari!$D293,2)))","v":"E11-1 "},"1 La seva higiene és molt deficient 0‐17","No",{"$f":"0","v":0},{"$f":"17","v":17}]
[null,"",{"$f":"CONCATENATE(LEFT(C293,3),\"-\",IF(RIGHT(LEFT(Qüestionari!$D294,2),1)=\"\",0,\"\"),IF(RIGHT(LEFT(Qüestionari!$D294,2),1)=\"\",LEFT(Qüestionari!$D294,1),LEFT(Qüestionari!$D294,2)))","v":"E11-2 "},"2 Presenten sovint lesions físiques 0‐17","No",{"$f":"0","v":0},{"$f":"17","v":17}]
[null,"",{"$f":"CONCATENATE(LEFT(C294,3),\"-\",IF(RIGHT(LEFT(Qüestionari!$D295,2),1)=\"\",0,\"\"),IF(RIGHT(LEFT(Qüestionari!$D295,2),1)=\"\",LEFT(Qüestionari!$D295,1),LEFT(Qüestionari!$D295,2)))","v":"E11-3 "},"3 Presenten un estat molt somnolent 0‐17","No",{"$f":"0","v":0},{"$f":"17","v":17}]
[null,"","E12. Les condicions personals de l’infant el poden fer més vulnerable",null,null,"",""]
[null,"",{"$f":"CONCATENATE(\"E12-\",IF(RIGHT(LEFT(Qüestionari!$D297,2),1)=\"\",0,\"\"),IF(RIGHT(LEFT(Qüestionari!$D297,2),1)=\"\",LEFT(Qüestionari!$D297,1),LEFT(Qüestionari!$D297,2)))","v":"E12-1 "},"1 Pateix una malaltia crònica 0‐17","No",{"$f":"0","v":0},{"$f":"17","v":17}]
[null,"",{"$f":"CONCATENATE(LEFT(C297,3),\"-\",IF(RIGHT(LEFT(Qüestionari!$D298,2),1)=\"\",0,\"\"),IF(RIGHT(LEFT(Qüestionari!$D298,2),1)=\"\",LEFT(Qüestionari!$D298,1),LEFT(Qüestionari!$D298,2)))","v":"E12-2 "},"2 Té alguna discapacitat física, intel·lectual o sensorial 0‐17","No",{"$f":"0","v":0},{"$f":"17","v":17}]
[null,"",{"$f":"CONCATENATE(LEFT(C298,3),\"-\",IF(RIGHT(LEFT(Qüestionari!$D299,2),1)=\"\",0,\"\"),IF(RIGHT(LEFT(Qüestionari!$D299,2),1)=\"\",LEFT(Qüestionari!$D299,1),LEFT(Qüestionari!$D299,2)))","v":"E12-3 "},"3 Presenta algun trastorn mental 0‐17","No",{"$f":"0","v":0},{"$f":"17","v":17}]
[null,"",{"$f":"CONCATENATE(LEFT(C299,3),\"-\",IF(RIGHT(LEFT(Qüestionari!$D300,2),1)=\"\",0,\"\"),IF(RIGHT(LEFT(Qüestionari!$D300,2),1)=\"\",LEFT(Qüestionari!$D300,1),LEFT(Qüestionari!$D300,2)))","v":"E12-4 "},"4 Període postnatal difícil (irritabilitat/dificultat per calmar‐lo/llargues hospitalitzacions) 0‐1","No",{"$f":"0","v":0},{"$f":"1","v":1}]
[null,null,null,null,{"$f":"COUNTIF(E18:E22,\"Si\")+COUNTIF(E24:E25,\"Si\")+COUNTIF(E27:E28,\"Si\")+COUNTIF(E30:E32,\"Si\")+COUNTIF(E85:E92,\"Si\")+COUNTIF(E105:E108,\"Si\")+COUNTIF(E122:E127,\"Si\")+COUNTIF(E129:E136,\"Si\")+COUNTIF(E151:E155,\"Si\")+COUNTIF(E157:E161,\"Si\")+COUNTIF(E163:E164,\"Si\")+COUNTIF(E166:E168,\"Si\")+COUNTIF(E170:E178,\"Si\")+COUNTIF(E195:E200,\"Si\")+COUNTIF(E191:E193,\"Si\")+COUNTIF(E186:E189,\"Si\")+COUNTIF(E232:E235,\"Si\")","v":0}]
[null,null,"Actuacions a realitzar",{"$f":"IF(OR(E6=\"\",E9=\"\"),\"Manca informar l'edat de l'infant i/o el nivell educatiu\",IF(OR(Full1!AO18=\"\",Full1!AO18=0),\"No és necessari dur a terme cap acció amb les respostes introduïdes al qüestionari\",Full1!AO18))","v":"Manca informar l'edat de l'infant i/o el nivell educatiu"}]
[]
[]
[]
[]
[]
[]
[]
[]
[null,null,null,{"$f":"IF(OR(E6=\"\",E9=\"\"),\"\",IF(OR(Full1!AO19=\"\",Full1!AO19=0),\"\",Full1!AO19))","v":""}]
[]
[]
[]
[]
[]
[]
[]
[]
[null,null,null,{"$f":"IF(OR(E6=\"\",E9=\"\"),\"\",IF(OR(Full1!AO20=\"\",Full1!AO20=0),\"\",Full1!AO20))","v":""}]
[]
[]
[]
[]
[]
[]
[]
[]
[null,null,null,{"$f":"IF(OR(E6=\"\",E9=\"\"),\"\",IF(OR(Full1!AO21=\"\",,Full1!AO21=0),\"\",Full1!AO21))","v":""}]
[]
[]
[]
[]
[]
[]
[]
[]
[null,null,null,{"$f":"IF(OR(E6=\"\",E9=\"\"),\"\",IF(OR(Full1!AO22=\"\",Full1!AO22=0),\"\",Full1!AO22))","v":""}]
[]
[]
[]
[]
[]
[]
[]
[]
[null,null,null,{"$f":"IF(OR(E6=\"\",E9=\"\"),\"\",IF(OR(Full1!AO23=\"\",Full1!AO23=0),\"\",Full1!AO23))","v":""}]
[]
[]
[]
[]
[]
[]
[]
[]
[null,null,null,{"$f":"IF(OR(E6=\"\",E9=\"\"),\"\",IF(OR(Full1!AO24=\"\",Full1!AO24=0),\"\",Full1!AO24))","v":""}]

{"sheet":"Full1","index":1,"n_rows":317,"n_cols":41,"rows_kept":317,"cut":false,"hidden":true,"merged":[]}
[]
[]
[null,null,null,null,null,null,null,null,null,"Si"]
[null,null,null,null,null,null,null,null,null,"No"]
[]
[null,null,null,null,null,null,null,null,null,"Infantil"]
[null,null,null,null,null,null,null,null,null,"Primària"]
[null,null,null,null,null,null,null,null,null,"Secundària"]
[null,null,null,null,null,null,null,null,null,"Postobligatòria"]
[]
[]
[]
[]
[]
[]
[]
[null,"Columna1","Resposta","Condició","Acció","Columna5",null,"Núm.",null,"Accions",null,null,null,null,"Tipus","S'activa?",{"$f":"CONCATENATE(Q18,Q19)","v":""}]
[null,"A1. La higiene de l’infant és deficient",{"$f":"IFERROR(VLOOKUP(Taula1[[#This Row],[Columna1]],Qüestionari!D:E,2,FALSE),\"\")","v":""},null,"VERSIÓ 18/12/2017",null,null,1,null,"Activació protocol maltractament greu",1,null,null,null,"Maltractament",{"$f":"IF(OR(C221=\"Si\",C226=\"Si\",C259=\"Si\",C265=\"Si\",C202=\"Si\",C39=\"Si\",C50=\"Si\",C51=\"Si\",C79=\"Si\",C80=\"Si\",C85=\"Si\",C103=\"Si\",C181=\"Si\",C236=\"Si\",C45=\"Si\",C46=\"Si\",C53=\"Si\",AND(C58=\"Si\",OR(C57=\"Si\",C56=\"Si\")),C61=\"Si\",C62=\"Si\",C63=\"Si\",C64=\"Si\",C65=\"Si\",C66=\"Si\",C74=\"Si\",C147=\"Si\",C231=\"Si\",C235=\"Si\"),\"Si\",\"No\")","v":"No"},{"$f":"IFERROR(IFERROR(VLOOKUP(\"X1\",I:K,3,FALSE),VLOOKUP(\"X1\",L:N,3,FALSE)),\"\")","v":""},{"$f":"IF(P18=\"Si\",J18,IF(P19=\"Si\",J19,IF(P25=\"Si\",J25,IF(P33=\"Si\",J33,IF(P24=\"Si\",J24,IF(P30=\"Si\",J30,IF(P20=\"Si\",J20,\"\")))))))","v":""},{"$f":"IF(AND(R18=J19,P33=\"Si\"),M19,IF(AND(R18=J25,P33=\"Si\"),M25,R18))","v":""},null,null,null,{"$f":"IF(S18=J18,S18,IF(S18=J20,J20,IF(Q18=\"\",IF(Q19=\"\",\"\",S19),IF(S19<>\"\",VLOOKUP(Q17,Q22:T56,4,FALSE),S18))))","v":""},{"$f":"IF(W18<>\"\",CONCATENATE(\"Actuacions en l'àmbit d'un possible maltractament: \",CHAR(10),W18),IF(Qüestionari!E301>=1,CONCATENATE(\"Actuacions en l'àmbit d'un possible maltractament: \",CHAR(10),\"Entrevista del tutor/a amb la família. Omplir, si escau, el full d'indicadors per valorar si és un cas per portar a la Comissió Social (centre públic). Valorar derivació a Serveis Socials (centre concertat)\"),\"\"))","v":""},{"$f":"IF(X18=\"\",X19,X18)","v":""},{"$f":"IF(Y18=\"\",Y19,Y18)","v":""},"","","","",0,0,0,0,0,0,{"$f":"IF(AJ18=\"\",AJ19,AJ18)","v":0},0,0,0,0]
[null,"1 Porta la roba bruta 0‐17",{"$f":"IFERROR(VLOOKUP(Taula1[[#This Row],[Columna1]],Qüestionari!D:E,2,FALSE),\"\")","v":"No"},null,"Llegendes:",null,null,2,{"$f":"IF(J19=$S$18,\"x1\",\"\")","v":""},"Anar a hospital i informar a la família. En funció de la informació que es tingui (via: família, UDEPMI, TS hospital,...) i de l'informe mèdic:\n- Si l'hospital activa el protocol greu = activació greu\n- Si l'hospital NO activa el protocol greu però a l'informe es descriuen les lesions = activació greu","2.1",{"$f":"IF(M19=$S$18,\"x1\",\"\")","v":""},"Anar a hospital i informar a la família. En funció de la informació que es tingui (via: família, UDEPMI, TS hospital,...) i de l'informe mèdic:\n- Si l'hospital activa el protocol greu o l'informe explicita maltractament = activació greu\n- Si l'hospital NO activa el protocol greu però a l'informe es descriuen les lesions = activació greu","2.2","Maltractament",{"$f":"IF(AND(OR(C28=\"Si\",C36=\"Si\",C37=\"Si\",C38=\"Si\",C40=\"Si\",C41=\"Si\",C42=\"Si\"),OR(C45=\"Si\",C46=\"Si\")),\"Si\",\"No\")","v":"No"},{"$f":"IFERROR(IFERROR(VLOOKUP(\"X2\",I:K,3,FALSE),VLOOKUP(\"X2\",L:N,3,FALSE)),\"\")","v":""},{"$f":"IF(P20=\"Si\",\"\",IF(P21=\"Si\",J21,IF(P28=\"Si\",J28,IF(P27=\"Si\",J27,IF(P29=\"Si\",J29,\"\")))))","v":""},{"$f":"IF(AND(R19=J28,P27=\"Si\"),M28,R19)","v":""},null,null,null,{"$f":"IF(P23=\"Si\",J23,IF(P22=\"Si\",\"Activació protocol emergències psicosocials. Informar l'EAP per a que valori el cas i decideixi si es deriva o no a CSMIJ.\",IF(P34=\"si\",J34,\"\")))","v":""},{"$f":"IF(W19<>\"\",CONCATENATE(\"Actuacions en l'àmbit de la salut mental: \",CHAR(10),W19),\"\")","v":""},{"$f":"IF(OR(X19=\"\",Y18=X19,X19=0),X20,X19)","v":""},{"$f":"IF(OR(Y19=\"\",Z18=Y19,Y19=0),Y20,Y19)","v":""},"","","",0,0,0,0,0,0,0,{"$f":"IF(OR(AJ19=\"\",AK18=AJ19,AJ19=0),AJ20,AJ19)","v":0},{"$f":"IF(OR(AK19=\"\",AL18=AK19,AK19=0),AK20,AK19)","v":0},{"$f":"IF(OR(AL19=\"\",AM18=AL19,AL19=0),AL20,AL19)","v":0},{"$f":"IF(OR(AM19=\"\",AN18=AM19,AM19=0),AM20,AM19)","v":0},{"$f":"IF(OR(AN19=\"\",AO18=AN19,AN19=0),AN20,AN19)","v":0}]
[null,"2 Presenta olors desagradables 3‐17",{"$f":"IFERROR(VLOOKUP(Taula1[[#This Row],[Columna1]],Qüestionari!D:E,2,FALSE),\"\")","v":"No"},null,"Activació de maltractament greu",null,null,3,null,"La direcció del centre oferirà omplir instància relatant els fets i s'enviarà al CEB i s'engegaran les actuacions acordades en aquesta situació específica",3,null,null,null,"Maltractament",{"$f":"IF(AND(OR(C67=\"Si\",C68=\"Si\"),C56=\"No\",C57=\"No\",C58=\"No\",C59=\"No\",C60=\"No\",C61=\"No\",C62=\"No\",C63=\"No\",C64=\"No\",C65=\"No\",C66=\"No\"),\"Si\",\"No\")","v":"No"},null,null,null,null,null,null,{"$f":"IF(P26=\"Si\",J26,\"\")","v":""},{"$f":"IF(W20<>\"\",CONCATENATE(\"Actuacions en l'àmbit d'un possible assetjament: \",CHAR(10),W20),\"\")","v":""},{"$f":"IF(OR(X20=\"\",Y19=X20,X20=0),X21,X20)","v":""},"","","",0,0,0,0,0,0,0,0,0,0,0,0,0]
[null,"3 Porta roba i/o calçat inadequats 0‐17",{"$f":"IFERROR(VLOOKUP(Taula1[[#This Row],[Columna1]],Qüestionari!D:E,2,FALSE),\"\")","v":"No"},null,null,null,null,4,{"$f":"IF(J21=$S$19,\"x2\",\"\")","v":""},"Activació protocol maltractament lleu/moderat",4,null,null,null,"Maltractament",{"$f":"IF(OR(C44=\"Si\",C82=\"Si\",C83=\"Si\",C84=\"Si\",C86=\"Si\",C250=\"Si\",AND(OR(Qüestionari!E9=\"Infantil\",Qüestionari!E9=\"Primària\"),OR(Full1!C113=\"Si\",Full1!C114=\"Si\",Full1!C115=\"Si\",Full1!C116=\"Si\",Full1!C117=\"Si\",Full1!C118=\"Si\",Full1!C121=\"Si\",Full1!C122=\"Si\",Full1!C123=\"Si\"))),\"Si\",\"No\")","v":"No"},null,null,null,null,null,null,{"$f":"IF(P32=\"Si\",J32,\"\")","v":""},{"$f":"IF(W21<>\"\",CONCATENATE(\"Actuacions en l'àmbit d'una possible situació de violència masclista: \",CHAR(10),W21),\"\")","v":""},"","","",0,0,0,0,0,0,0,0,0,0,0,0,0,0]
[null,"4 Presenta una higiene corporal deficient 0‐17",{"$f":"IFERROR(VLOOKUP(Taula1[[#This Row],[Columna1]],Qüestionari!D:E,2,FALSE),\"\")","v":"No"},null,"A1, A2, A3, A4, B1, B3, B5, B6, C1, C2, C3, C4, D1, D3, D4, D5\nOn hi havia \"Entrevista del tutor/a amb la família\". Afegir: \"Omplir, si escau, el full d'indicadors per valorar si és un cas per portar a la Comissió Social (centre públic). Valorar derivació a Serveis Socials (centre concertat)\"",null,null,5,null,"Activació protocol emergències psicosocials",5,null,null,null,"Emergències psicosocials",{"$f":"IF(C224=\"Si\",\"Si\",\"No\")","v":"No"},{"$f":"CONCATENATE(R22,S22)","v":"2.14"},"2.1",4,"Anar a hospital i informar a la família. En funció de la informació que es tingui (via: família, UDEPMI, TS hospital,...) i de l'informe mèdic:\n- Si l'hospital activa el protocol greu = activació greu\n- Si l'hospital NO activa el protocol greu però a l'informe es descriuen les lesions = activació greu\n- En qualsevol altre cas: activació protocol maltractament lleu/moderat",{"$f":"LEN(T22)","v":374},null,{"$f":"IF(P35=\"Si\",J35,\"\")","v":""},{"$f":"IF(W22<>\"\",CONCATENATE(\"Actuacions en l'àmbit de les adiccions: \",CHAR(10),W22),\"\")","v":""},"","",0,0,0,0,0,0,0,0,0,0,0,0,0,0,0]
[null,"5 Mostra lesions cutànies amb enrogiment de la pell a la zona dels bolquers 0‐3",{"$f":"IFERROR(VLOOKUP(Taula1[[#This Row],[Columna1]],Qüestionari!D:E,2,FALSE),\"\")","v":"No"},null,null,null,null,6,null,"Activació protocol d'emergències psicosocials i entrevista mateix dia amb psicopedagog (EAP) referent del centre. Derivació urgent a CSMIJ o Hospital referent. Demanar informe psiquiàtric i si necessita acompayament continu a casa o no.",6,null,null,null,"Emergències psicosocials",{"$f":"IF(OR(C101=\"Si\",C102=\"Si\"),\"Si\",\"No\")","v":"No"},{"$f":"CONCATENATE(R23,S23)","v":"2.24"},"2.2",4,"Anar a hospital i informar a la família. En funció de la informació que es tingui (via: família, UDEPMI, TS hospital,...) i de l'informe mèdic:\n- Si l'hospital activa el protocol greu o l'informe explicita maltractament = activació greu\n- Si l'hospital NO activa el protocol greu però a l'informe es descriuen les lesions = activació greu\n- En qualsevol altre cas: activació protocol maltractament lleu/moderat",{"$f":"LEN(T23)","v":410},null,{"$f":"IF(P36=\"Si\",J36,\"\")","v":""},{"$f":"IF(W23<>\"\",CONCATENATE(\"Actuacions en l'àmbit d'una possible mutilació genital: \",CHAR(10),W23),\"\")","v":""},"",0,0,0,0,0,0,0,0,0,0,0,0,0,0,0,0]
[null,"A2. L’alimentació de l’infant és descuidada o insuficient",{"$f":"IFERROR(VLOOKUP(Taula1[[#This Row],[Columna1]],Qüestionari!D:E,2,FALSE),\"\")","v":""},null,null,null,null,7,{"$f":"IF(J24=$S$18,\"x1\",\"\")","v":""},"Anar a hospital i informar a la família. Si l'hospital activa el protocol greu = activació protocol maltractament greu",7,null,null,null,"Maltractament",{"$f":"IF(AND(OR(C35=\"Si\",C36=\"Si\",C37=\"Si\",C38=\"Si\",C40=\"Si\",C41=\"Si\",C42=\"Si\"),C44=\"Si\"),\"Si\",\"No\")","v":"No"},"2.110","2.1",10,"Anar a hospital i informar a la família. En funció de la informació que es tingui (via: família, UDEPMI, TS hospital,...) i de l'informe mèdic:\n- Si l'hospital activa el protocol greu = activació greu\n- Si l'hospital NO activa el protocol greu però a l'informe es descriuen les lesions = activació greu\n- En qualsevol altre cas: derivació a Serveis Socials",356,null,{"$f":"IF(P31=\"Si\",CONCATENATE(\"És un cas amb els següents riscos afegits: \",IF(C52=\"Si\",\"(1) L'infant va patir, en el passat, maltractament (inclou maltractament prenatal) \",\"\"),IF(AND(C52=\"Si\",C70=\"Si\"),\"i (2) \",IF(AND(C52=\"No\",C70=\"Si\"),\"(1)\",\"\")),IF(C70=\"Si\",\"L'infant va patir, en el passat, abús sexual\",\"\")),\"\")","v":""},{"$f":"IF(W24=\"\",\"\",W24)","v":""},0,0,0,0,0,0,0,0,0,0,0,0,0,0,0,0,0]
[null,"1 Assisteix a l’escola sense esmorzar i no en porta 1‐17",{"$f":"IFERROR(VLOOKUP(Taula1[[#This Row],[Columna1]],Qüestionari!D:E,2,FALSE),\"\")","v":"No"},null,null,null,null,8,{"$f":"IF(J25=$S$18,\"x1\",\"\")","v":""},"Anar a hospital i informar a la família. En funció de la informació que es tingui (via: família, UDEPMI, TS hospital,...) de l'informe mèdic:\n- L'hospital activa el protocol greu = activació greu\n- L'hospital NO activa el protocol greu però a l'informe es descriuen les lesions = activació lleu/moderat","8.1",{"$f":"IF(M25=$S$18,\"x1\",\"\")","v":""},"Anar a hospital i informar a la família. En funció de la informació que es tingui (via: família, UDEPMI, TS hospital,...) de l'informe mèdic:\n- L'hospital activa el protocol greu o l'informe explicita maltractament = activació greu\n- L'hospital NO activa el protocol greu però a l'informe es descriuen les lesions = activació lleu/moderat","8.2","Maltractament",{"$f":"IF(AND(OR(C35=\"Si\",C36=\"Si\",C37=\"Si\",C38=\"Si\",C40=\"Si\",C41=\"Si\",C42=\"Si\"),C43=\"Si\"),\"Si\",\"No\")","v":"No"},"2.210","2.2",10,"Anar a hospital i informar a la família. En funció de la informació que es tingui (via: família, UDEPMI, TS hospital,...) i de l'informe mèdic:\n- Si l'hospital activa el protocol greu o l'informe explicita maltractament = activació greu\n- Si l'hospital NO activa el protocol greu però a l'informe es descriuen les lesions = activació greu\n- En qualsevol altre cas: derivació a Serveis Socials",392]
[null,"2 Demana o roba menjar, diu que passa gana, que a casa no li donen menjar 3‐17",{"$f":"IFERROR(VLOOKUP(Taula1[[#This Row],[Columna1]],Qüestionari!D:E,2,FALSE),\"\")","v":"No"},null,null,null,null,9,null,"Aplicació protocol d'assetjament. Si el maltractament està relacionat per la seva condició (sexista, discapacitat, racial, ètnica,LGBTI,...) activar protocol d'odi i discriminació.",9,null,null,null,"Assetjament",{"$f":"IF(OR(C47=\"Si\",C48=\"Si\",C54=\"Si\"),\"Si\",\"No\")","v":"No"},"2.111.1","2.1","11.1","Anar a hospital i informar a la família. En funció de la informació que es tingui (via: família, UDEPMI, TS hospital,...) i de l'informe mèdic:\n- Si l'hospital activa el protocol greu = activació greu\n- Si l'hospital NO activa el protocol greu però a l'informe es descriuen les lesions = activació greu\n- En qualsevol altre cas: entrevista amb família per part del TS EAP i tutor i/o membre equip directiu. En funció de l'entrevista, valorar l'activació protocol maltractament i la severitat, o derivació a Serveis Socials.",523]
[null,"A3. L’infant mostra cansament habitual",{"$f":"IFERROR(VLOOKUP(Taula1[[#This Row],[Columna1]],Qüestionari!D:E,2,FALSE),\"\")","v":""},null,null,null,null,10,{"$f":"IF(J27=$S$19,\"x2\",\"\")","v":""},"Derivació a Serveis Socials",10,null,null,null,"Maltractament",{"$f":"IF(OR(C293=\"Si\",C277=\"Si\",C279=\"Si\",C281=\"Si\",C283=\"Si\",C284=\"Si\",C286=\"Si\",C287=\"Si\",C289=\"Si\",C290=\"Si\",C291=\"Si\",C292=\"Si\",C87=\"Si\",C294=\"Si\",C295=\"Si\",C296=\"Si\",C298=\"Si\",C299=\"Si\",C301=\"Si\",C302=\"Si\",C303=\"Si\"),\"Si\",\"No\")","v":"No"},"2.211.1","2.2","11.1","Anar a hospital i informar a la família. En funció de la informació que es tingui (via: família, UDEPMI, TS hospital,...) i de l'informe mèdic:\n- Si l'hospital activa el protocol greu o l'informe explicita maltractament = activació greu\n- Si l'hospital NO activa el protocol greu però a l'informe es descriuen les lesions = activació greu\n- En qualsevol altre cas: entrevista amb família per part del TS EAP i tutor i/o membre equip directiu. En funció de l'entrevista, valorar l'activació protocol maltractament i la severitat, o derivació a Serveis Socials.",559]
[null,"1 Es mostra cansat/da sense justificació 1‐17",{"$f":"IFERROR(VLOOKUP(Taula1[[#This Row],[Columna1]],Qüestionari!D:E,2,FALSE),\"\")","v":"No"},null,null,null,null,11,{"$f":"IF(J28=$S$19,\"x2\",\"\")","v":""},"Entrevista amb família per part del TS EAP i tutor i/o membre equip directiu. Valorar activació protocol maltractament o derivació a Serveis Socials","11.1",{"$f":"IF(M28=$S$19,\"x2\",\"\")","v":""},"Entrevista amb família per part del TS EAP i tutor i/o membre equip directiu. Valorar activació protocol maltractament. Si no s'activa el protocol de maltractament, derivar a Serveis Socials.","11.2","Maltractament",{"$f":"IF(OR(C119=\"Si\",C120=\"Si\",C69=\"Si\",C56=\"Si\",C57=\"Si\",C58=\"Si\",C59=\"Si\",C60=\"Si\",C61=\"Si\",C62=\"Si\",C63=\"Si\",C75=\"Si\",C76=\"Si\",C77=\"Si\",C81=\"Si\",C82=\"Si\",C83=\"Si\",C84=\"Si\",C86=\"Si\",C97=\"Si\",C98=\"Si\",C99=\"Si\",C100=\"Si\",C104=\"Si\",C105=\"Si\",C106=\"Si\",C113=\"Si\",C114=\"Si\",C115=\"Si\",C116=\"Si\",C117=\"Si\",C118=\"Si\",C121=\"Si\",C122=\"Si\",C123=\"Si\",C141=\"Si\",C142=\"Si\",C143=\"Si\",C145=\"Si\",C146=\"Si\",C148=\"Si\",C149=\"Si\",C151=\"Si\",C152=\"Si\",C171=\"Si\",C172=\"Si\",C186=\"Si\",C207=\"Si\",C209=\"Si\",C210=\"Si\",C211=\"Si\",C212=\"Si\",C213=\"Si\",C214=\"Si\",C215=\"Si\",C216=\"Si\",C217=\"Si\",C218=\"Si\",C220=\"Si\",C222=\"Si\",C223=\"Si\",C224=\"Si\",C225=\"Si\",C227=\"Si\",C228=\"Si\",C230=\"Si\",C231=\"Si\",C232=\"Si\",C233=\"Si\",C234=\"Si\",C243=\"Si\",C244=\"Si\",C245=\"Si\",C246=\"Si\",C247=\"Si\",C248=\"Si\",C249=\"Si\",C251=\"Si\",C252=\"Si\",C254=\"Si\",C255=\"Si\",C256=\"Si\",C257=\"Si\",C258=\"Si\",C260=\"Si\",C262=\"Si\",C264=\"Si\",C266=\"Si\",C269=\"Si\",C270=\"Si\",C271=\"Si\",C272=\"Si\",C275=\"Si\",C305=\"Si\",C306=\"Si\",C307=\"Si\",C308=\"Si\"),\"Si\",\"No\")","v":"No"},"2.111.2","2.1","11.2","Anar a hospital i informar a la família. En funció de la informació que es tingui (via: família, UDEPMI, TS hospital,...) i de l'informe mèdic:\n- Si l'hospital activa el protocol greu = activació greu\n- Si l'hospital NO activa el protocol greu però a l'informe es descriuen les lesions = activació greu\n- En qualsevol altre cas: entrevista amb família per part del TS EAP i tutor i/o membre equip directiu. En funció de l'entrevista, valorar activació protocol maltractament. Si no s'activa el protocol de maltractament, derivar a Serveis Socials.",547]
[null,"2 S’adorm a classe 6‐17",{"$f":"IFERROR(VLOOKUP(Taula1[[#This Row],[Columna1]],Qüestionari!D:E,2,FALSE),\"\")","v":"No"},null,null,null,null,12,{"$f":"IF(J29=$S$19,\"x2\",\"\")","v":""},"Entrevista del tutor/a amb la família. Omplir, si escau, el full d'indicadors per valorar si és un cas per portar a la Comissió Social (centre públic). Valorar derivació a Serveis Socials (centre concertat)",12,null,null,null,"Maltractament",{"$f":"IF(OR(C183=\"Si\",C185=\"Si\",C187=\"Si\",C188=\"Si\",C189=\"Si\",C305=\"Si\",C204=\"Si\"),\"Si\",\"No\")","v":"No"},"2.211.2","2.2","11.2","Anar a hospital i informar a la família. En funció de la informació que es tingui (via: família, UDEPMI, TS hospital,...) i de l'informe mèdic:\n- Si l'hospital activa el protocol greu o l'informe explicita maltractament = activació greu\n- Si l'hospital NO activa el protocol greu però a l'informe es descriuen les lesions = activació greu\n- En qualsevol altre cas: entrevista amb família per part del TS EAP i tutor i/o membre equip directiu. En funció de l'entrevista, valorar activació protocol maltractament. Si no s'activa el protocol de maltractament, derivar a Serveis Socials.",583]
[null,"A4. Manifestacions de dolences físiques per part de l'infant",{"$f":"IFERROR(VLOOKUP(Taula1[[#This Row],[Columna1]],Qüestionari!D:E,2,FALSE),\"\")","v":""},null,null,null,null,13,{"$f":"IF(J30=$S$18,\"x1\",\"\")","v":""},"Entrevista el mateix dia amb la família per part de TS EAP i (tutor i/o membre equip directiu). Derivar a Hospital perquè faci informe mèdic i el porti a l'escola. Informe ha d'indicar si les ferides són per maltractament o no. Decidir si activar o no protocol i severitat greu o lleu/moderada en funció de l'informe mèdic.",13,null,null,null,"Maltractament",{"$f":"IF(AND(C47<>\"Si\",C48<>\"Si\",C54<>\"Si\",OR(C40=\"Si\",C41=\"Si\",C42=\"Si\",C43=\"Si\",C44=\"Si\",C45=\"Si\",C46=\"Si\",C49=\"Si\",C53=\"Si\",C52=\"Si\",C35=\"Si\",C36=\"Si\",C37=\"Si\",C38=\"Si\")),\"Si\",\"No\")","v":"No"},"2.112","2.1",12,"Anar a hospital i informar a la família. En funció de la informació que es tingui (via: família, UDEPMI, TS hospital,...) i de l'informe mèdic:\n- Si l'hospital activa el protocol greu = activació greu\n- Si l'hospital NO activa el protocol greu però a l'informe es descriuen les lesions = activació greu\n- En qualsevol altre cas: entrevista del tutor/a amb la família. Omplir, si escau, el full d'indicadors per valorar si és un cas per portar a la Comissió Social (centre públic). Valorar derivació a Serveis Socials (centre concertat)",535]
[null,"1 Es queixa sovint de dolor (mal de panxa, mal de cap...) 2‐17",{"$f":"IFERROR(VLOOKUP(Taula1[[#This Row],[Columna1]],Qüestionari!D:E,2,FALSE),\"\")","v":"No"},null,null,null,null,14,null,"Hi ha risc afegit",14,null,null,null,null,{"$f":"IF(OR(C52=\"Si\",C70=\"Si\"),\"Si\",\"No\")","v":"No"},"2.212","2.2",12,"Anar a hospital i informar a la família. En funció de la informació que es tingui (via: família, UDEPMI, TS hospital,...) i de l'informe mèdic:\n- Si l'hospital activa el protocol greu o l'informe explicita maltractament = activació greu\n- Si l'hospital NO activa el protocol greu però a l'informe es descriuen les lesions = activació greu\n- En qualsevol altre cas: entrevista del tutor/a amb la família. Omplir, si escau, el full d'indicadors per valorar si és un cas per portar a la Comissió Social (centre públic). Valorar derivació a Serveis Socials (centre concertat)",571]
[null,"2 Està constantment malalt/a 1‐17",{"$f":"IFERROR(VLOOKUP(Taula1[[#This Row],[Columna1]],Qüestionari!D:E,2,FALSE),\"\")","v":"No"},null,null,null,null,15,null,"Activació protocol violència masclista",15,null,null,null,"Violència masclista",{"$f":"IF(OR(C269=\"Si\",C270=\"Si\",C271=\"Si\",C272=\"Si\"),\"Si\",\"No\")","v":"No"},"74",7,4,"- Anar a hospital i informar a la família. Si l'hospital activa el protocol greu = activació protocol maltractament greu. \n- En qualsevol altre cas s'ha d'activar el protcol de maltractament lleu/moderat.",204]
[null,"3 Presenta ferides, cops, etc., que semblen produïdes accidentalment 0‐17",{"$f":"IFERROR(VLOOKUP(Taula1[[#This Row],[Columna1]],Qüestionari!D:E,2,FALSE),\"\")","v":"No"},null,null,null,null,16,{"$f":"IF(J33=$S$18,\"x1\",\"\")","v":""},"Anar a hospital i informar a la família. En funció de la informació que es tingui (via: família, UDEPMI, TS hospital,...) i de l'informe mèdic: \n- L'informe explicita maltractament i/o hospital activa el seu protocol greu  = activació protocol maltractament greu\n- L'informe només descriu les lesions però l'alumne/a relata maltractament = activació protocol maltractament lleu/moderat",16,null,null,null,"Maltractament",{"$f":"IF(AND(C263=\"Si\",C262=\"Si\"),\"Si\",\"No\")","v":"No"},"710",7,10,"- Anar a hospital i informar a la família. Si l'hospital activa el protocol greu = activació protocol maltractament greu. \n- En qualsevol altre cas, derivar a Serveis Socials.",175]
[null,"A5. L’infant és receptor de violència física de forma intencionada",{"$f":"IFERROR(VLOOKUP(Taula1[[#This Row],[Columna1]],Qüestionari!D:E,2,FALSE),\"\")","v":""},null,null,null,null,17,null,"Valoració prioritària de l'EAP i, si escau, derivació a CSMIJ",17,null,null,null,"Emergències psicosocials",{"$f":"IF(OR(C99=\"Si\",C100=\"Si\",C104=\"Si\",C105=\"Si\"),\"Si\",\"No\")","v":"No"},"711.1",7,"11.1","- Anar a hospital i informar a la família. Si l'hospital activa el protocol greu = activació protocol maltractament greu. \n- En qualsevol altre cas, entrevista amb família per part del TS EAP i tutor i/o membre equip directiu. Valorar, en funció de l'entrevista, l'activació del protocol de maltractament i la severitat, o la derivació a Serveis Socials.",354]
[null,"1 Presenta ferides o rascades* 0‐17",{"$f":"IFERROR(VLOOKUP(Taula1[[#This Row],[Columna1]],Qüestionari!D:E,2,FALSE),\"\")","v":"No"},null,"* A zones no exposades. Sense relació amb prominències òssies (abdomen, genitals, glutis, dor de la mà, orelles)",null,null,18,null,"Valoració prioritària de l'EAP i, si escau, derivació a SOD",18,null,null,null,"Addiccions",{"$f":"IF(OR(C108=\"Si\",C109=\"Si\",C111=\"Si\"),\"Si\",\"No\")","v":"No"},"711.2",7,"11.2","- Anar a hospital i informar a la família. Si l'hospital activa el protocol greu = activació protocol maltractament greu. \n- En qualsevol altre cas, entrevista amb família per part del TS EAP i tutor i/o membre equip directiu. Valorar, en funció de l'entrevista, l'activació del protocol de maltractament i la severitat. Si no s'activa cap dels protocols de maltractament, derivar a Serveis Socials.",399]
[null,"2 Presenta senyals de mossegades 0‐17",{"$f":"IFERROR(VLOOKUP(Taula1[[#This Row],[Columna1]],Qüestionari!D:E,2,FALSE),\"\")","v":"No"},null,null,null,null,19,null,"Valorar activació protocol de mutilació genital",19,null,null,null,"Mutilació genital",{"$f":"IF(C266=\"si\",\"Si\",\"No\")","v":"No"},"712",7,12,"- Anar a hospital i informar a la família. Si l'hospital activa el protocol greu = activació protocol maltractament greu.  \n- En qualsevol altre cas: entrevista del tutor/a amb la família. Omplir, si escau, el full d'indicadors per valorar si és un cas per portar a la Comissió Social (centre públic). Valorar derivació a Serveis Socials (centre concertat)",356]
[null,"3 Presenta hematomes** 0‐17",{"$f":"IFERROR(VLOOKUP(Taula1[[#This Row],[Columna1]],Qüestionari!D:E,2,FALSE),\"\")","v":"No"},null,"** A zones no exposades. Sense relació amb prominències òssies (abdomen, genitals, glutis, dors de la mà, orelles). Els hematomes tenen diferent color entre ells",null,null,null,null,null,null,null,null,null,null,null,"8.14","8.1",4,"Anar a hospital i informar a la família. En funció de la informació que es tingui (via: família, UDEPMI, TS hospital,...) de l'informe mèdic:\n- L'hospital activa el protocol greu = activació greu\n- En qualsevol altre cas: activació protocol maltractament lleu/moderat",267]
[null,"4 Presenta altres senyals observables 0‐17",{"$f":"IFERROR(VLOOKUP(Taula1[[#This Row],[Columna1]],Qüestionari!D:E,2,FALSE),\"\")","v":"No"},null,"CONDICIONS APARTAT A5",null,null,null,null,null,null,null,null,null,null,null,"8.24","8.2",4,"Anar a hospital i informar a la família. En funció de la informació que es tingui (via: família, UDEPMI, TS hospital,...) de l'informe mèdic:\n- L'hospital activa el protocol greu o l'informe explicita maltractament = activació greu\n- En qualsevol altre cas: activació protocol maltractament lleu/moderat",303]
[null,"5 Presenta més d'una cremada de cigarreta en una o diferents parts el cos",{"$f":"IFERROR(VLOOKUP(Taula1[[#This Row],[Columna1]],Qüestionari!D:E,2,FALSE),\"\")","v":"No"},"1a condició: ","Entrevista el mateix dia amb la família per part de TS EAP i (tutor i/o membre equip directiu). Derivar a Hospital perquè faci informe mèdic i el porti a l'escola. Informe ha d'indicar si les ferides són per maltractament o no",null,null,null,null,null,null,null,null,null,null,null,"8.110","8.1",10,"Anar a hospital i informar a la família. En funció de la informació que es tingui (via: família, UDEPMI, TS hospital,...) de l'informe mèdic:\n- L'hospital activa el protocol greu = activació greu\n- L'hospital NO activa el protocol greu però a l'informe es descriuen les lesions = activació lleu/moderat\n- En qualsevol altre cas: derivació a Serveis Socials",356]
[null,"6 Presenta manca de flocs de cabell 0‐17",{"$f":"IFERROR(VLOOKUP(Taula1[[#This Row],[Columna1]],Qüestionari!D:E,2,FALSE),\"\")","v":"No"},"2a condició: Si es donen un dos o més items (1,2,3,4,6,7 i 8) +item 9 ","Anar a hospital i informar a la família. En funció de la informació que es tingui (via: família, UDEPMI, TS hospital,...) de l'informe mèdic:\n- L'hospital activa el protocol GREU = activació GREU\n- L'Hospital NO activa el protocol greu però a l'informe es descriu les lesions però = activació LLEU",11,null,null,null,null,null,null,null,null,null,null,"8.210","8.2",10,"Anar a hospital i informar a la família. En funció de la informació que es tingui (via: família, UDEPMI, TS hospital,...) de l'informe mèdic:\n- L'hospital activa el protocol greu o l'informe explicita maltractament = activació greu\n- L'hospital NO activa el protocol greu però a l'informe es descriuen les lesions = activació lleu/moderat\n- En qualsevol altre cas: derivació a Serveis Socials",392]
[null,"7 Presenta talls o punxades 0‐17",{"$f":"IFERROR(VLOOKUP(Taula1[[#This Row],[Columna1]],Qüestionari!D:E,2,FALSE),\"\")","v":"No"},"3a condició: Si es donen un dos o més items (1 ,2 ,3 ,4, 6, 7 i 8) +item 10","Anar a hospital i informar a la família. En funció de la informació que es tingui (via: família, UDEPMI, TS hospital,...) de l'informe mèdic:\n- L'hospital activa el protocol GREU = activació GREU",11,null,null,null,null,null,null,null,null,null,null,"8.111.1","8.1","11.1","Anar a hospital i informar a la família. En funció de la informació que es tingui (via: família, UDEPMI, TS hospital,...) de l'informe mèdic:\n- L'hospital activa el protocol greu = activació greu\n- L'hospital NO activa el protocol greu però a l'informe es descriuen les lesions = activació lleu/moderat\n- En qualsevol altre cas: entrevista amb família per part del TS EAP i tutor i/o membre equip directiu. Valorar activació protocol maltractament i la seva severitat, o derivació a Serveis Socials.",499]
[null,"8 Manifesta dolor en determinades parts del cos 0‐17",{"$f":"IFERROR(VLOOKUP(Taula1[[#This Row],[Columna1]],Qüestionari!D:E,2,FALSE),\"\")","v":"No"},"4a condició: Si es donen un dos o més items (1, 2, 3, 4, 6, 7 i 8) +item 9 +item 10","Anar a hospital i informar a la família. En funció de la informació que es tingui (via: família, UDEPMI, TS hospital,...) de l'informe mèdic:\n- L'hospital activa el protocol GREU = activació GREU\n- L'informe només descriu les lesions = activació LLEU",11,null,null,null,null,null,null,null,null,null,null,"8.211.1","8.2","11.1","Anar a hospital i informar a la família. En funció de la informació que es tingui (via: família, UDEPMI, TS hospital,...) de l'informe mèdic:\n- L'hospital activa el protocol greu o l'informe explicita maltractament = activació greu\n- L'hospital NO activa el protocol greu però a l'informe es descriuen les lesions = activació lleu/moderat\n- En qualsevol altre cas: entrevista amb família per part del TS EAP i tutor i/o membre equip directiu. Valorar activació protocol maltractament i la seva severitat, o derivació a Serveis Socials.",535]
[null,"9 Manifesta o assenyala amb gestos que els seus progenitors són els causants de les lesions 1‐17",{"$f":"IFERROR(VLOOKUP(Taula1[[#This Row],[Columna1]],Qüestionari!D:E,2,FALSE),\"\")","v":"No"},"Ítem 10","Activació LLEU",1,null,null,null,null,null,null,null,null,null,null,"8.111.2","8.1","11.2","Anar a hospital i informar a la família. En funció de la informació que es tingui (via: família, UDEPMI, TS hospital,...) de l'informe mèdic:\n- L'hospital activa el protocol greu = activació greu\n- L'hospital NO activa el protocol greu però a l'informe es descriuen les lesions = activació lleu/moderat\n- En qualsevol altre cas: entrevista amb família per part del TS EAP i tutor i/o membre equip directiu. Valorar activació protocol maltractament i la seva severitat. Si no s'activa el protocol de maltractament, derivar a Serveis Socials.",540]
[null,"10 Manifesta que està sent receptor de violència física per part d'algú del seu entorn 1‐17",{"$f":"IFERROR(VLOOKUP(Taula1[[#This Row],[Columna1]],Qüestionari!D:E,2,FALSE),\"\")","v":"No"},"6a condició: item 18","Hi ha risc afegit",12,null,null,null,null,null,null,null,null,null,null,"8.211.2","8.2","11.2","Anar a hospital i informar a la família. En funció de la informació que es tingui (via: família, UDEPMI, TS hospital,...) de l'informe mèdic:\n- L'hospital activa el protocol greu o l'informe explicita maltractament = activació greu\n- L'hospital NO activa el protocol greu però a l'informe es descriuen les lesions = activació lleu/moderat\n- En qualsevol altre cas: entrevista amb família per part del TS EAP i tutor i/o membre equip directiu. Valorar activació protocol maltractament i la seva severitat. Si no s'activa el protocol de maltractament, derivar a Serveis Socials.",576]
[null,"11 Manifesta o assenyala amb gestos que un adult del centre és el causant de les lesions 1‐17",{"$f":"IFERROR(VLOOKUP(Taula1[[#This Row],[Columna1]],Qüestionari!D:E,2,FALSE),\"\")","v":"No"},"7a condició: Si es donen un dos o més items (1,2,3,4,6,7 i 8) +item 11 = ","Activació anar a hospital i informar a la família. En funció de la informació que es tingui (via: família, UDEPMI, TS hospital,...) de l'informe mèdic:\n- L'hospital activa el protocol GREU = activació GREU\n- L'informe descriu les lesions = activació GREU",13,null,null,null,null,null,null,null,null,null,null,"8.112","8.1",12,"Anar a hospital i informar a la família. En funció de la informació que es tingui (via: família, UDEPMI, TS hospital,...) de l'informe mèdic:\n- L'hospital activa el protocol greu = activació greu\n- L'hospital NO activa el protocol greu però a l'informe es descriuen les lesions = activació lleu/moderat.\n- En qualsevol altre cas: entrevista del tutor/a amb la família. Omplir, si escau, el full d'indicadors per valorar si és un cas per portar a la Comissió Social (centre públic). Valorar derivació a Serveis Socials (centre concertat).",537]
[null,"12 Manifesta que està sent receptor de violència física per part algun adult del centre 1‐17",{"$f":"IFERROR(VLOOKUP(Taula1[[#This Row],[Columna1]],Qüestionari!D:E,2,FALSE),\"\")","v":"No"},"8a condició: Si es donen un dos o més items (1 ,2 ,3 ,4, 6, 7 i 8) +item 12 ="," Activació anar a hospital i informar a la família. En funció de la informació que es tingui (via: família, UDEPMI, TS hospital,...) de l'informe mèdic:\n- L'hospital activa el protocol GREU = activació GREU\n- L'informe descriu les lesions = activació GREU",13,null,null,null,null,null,null,null,null,null,null,"8.212","8.2",12,"Anar a hospital i informar a la família. En funció de la informació que es tingui (via: família, UDEPMI, TS hospital,...) de l'informe mèdic:\n- L'hospital activa el protocol greu o l'informe explicita maltractament = activació greu\n- L'hospital NO activa el protocol greu però a l'informe es descriuen les lesions = activació lleu/moderat\n- En qualsevol altre cas: entrevista del tutor/a amb la família. Omplir, si escau, el full d'indicadors per valorar si és un cas per portar a la Comissió Social (centre públic). Valorar derivació a Serveis Socials (centre concertat).",572]
[null,"13 Manifesta o assenyala amb gestos que un alumne/a del centre és el causant de les lesions 1‐17",{"$f":"IFERROR(VLOOKUP(Taula1[[#This Row],[Columna1]],Qüestionari!D:E,2,FALSE),\"\")","v":"No"},"9a condició: item 13 i/o 14 i/o 20 ","Aplicació protocol d'assetjament. Si el maltractament està relacionat per la seva condició (sexista, discapacitat, racial, ètnica,LGBTI,...)  activar protocol d'odi i discriminació",15,null,null,null,null,null,null,null,null,null,null,"134",13,4,"- Entrevista el mateix dia amb la família per part de TS EAP i (tutor i/o membre equip directiu). \n- Derivar a Hospital perquè faci informe mèdic i el porti a l'escola. Informe ha d'indicar si les ferides són per maltractament o no. \n- Decidir si activar o no protocol de maltractament greu en funció de l'informe mèdic. Si no s'activa el protocol greu, activar necessàriament el protocol de maltractament lleu/moderat.",419]
[null,"14 Manifesta que està sent receptor de violència física per part algun alumne/a del centre 1‐17",{"$f":"IFERROR(VLOOKUP(Taula1[[#This Row],[Columna1]],Qüestionari!D:E,2,FALSE),\"\")","v":"No"},"10a condició: item 11 o 12 o 19","Activació GREU",2,null,null,null,null,null,null,null,null,null,null,"1310",13,10,"- Entrevista el mateix dia amb la família per part de TS EAP i (tutor i/o membre equip directiu). Derivar a Hospital perquè faci informe mèdic i el porti a l'escola. Informe ha d'indicar si les ferides són per maltractament o no. Decidir si activar o no protocol i severitat greu o lleu/moderada en funció de l'informe mèdic. \n- Si no s'activa cap protocol, derivar a Serveis Socials.",384]
[null,"15 Dóna explicacions estranyes o poc convincents respecte a les lesions que presenta 3‐17",{"$f":"IFERROR(VLOOKUP(Taula1[[#This Row],[Columna1]],Qüestionari!D:E,2,FALSE),\"\")","v":"No"},null,null,null,null,null,null,null,null,null,null,null,null,null,"1311.1",13,"11.1","Entrevista el mateix dia amb la família per part de TS EAP i (tutor i/o membre equip directiu). Derivar a Hospital perquè faci informe mèdic i el porti a l'escola. Informe ha d'indicar si les ferides són per maltractament o no. Decidir si activar o no protocol i severitat greu o lleu/moderada en funció de l'informe mèdic, o si es deriva a Serveis Socials.",357]
[null,"16 Informe mèdic de l'Hospital confirma maltractament",{"$f":"IFERROR(VLOOKUP(Taula1[[#This Row],[Columna1]],Qüestionari!D:E,2,FALSE),\"\")","v":"No"},null,null,null,null,null,null,null,null,null,null,null,null,null,"1311.2",13,"11.2","- Entrevista el mateix dia amb la família per part de TS EAP i (tutor i/o membre equip directiu). Derivar a Hospital perquè faci informe mèdic i el porti a l'escola. Informe ha d'indicar si les ferides són per maltractament o no. Decidir si activar o no protocol i severitat greu o lleu/moderada en funció de l'informe mèdic. \n- Si no s'activa el protocol de maltractament, derivar necessàriament a Serveis Socials.",415]
[null,"17 S'ha fet una primera entrevista i els indicadors 1,2,3,4,6,7,8,9,10 continuen donant-se",{"$f":"IFERROR(VLOOKUP(Taula1[[#This Row],[Columna1]],Qüestionari!D:E,2,FALSE),\"\")","v":"No"},null,null,null,null,null,null,null,null,null,null,null,null,null,"1312",13,12,"- Entrevista el mateix dia amb la família per part de TS EAP i (tutor i/o membre equip directiu). Derivar a Hospital perquè faci informe mèdic i el porti a l'escola. Informe ha d'indicar si les ferides són per maltractament o no. Decidir si activar o no protocol i severitat greu o lleu/moderada en funció de l'informe mèdic. \n- Si no s'activa cap protocol:omplir, si escau, el full d'indicadors per valorar si és un cas per portar a la Comissió Social (centre públic). Valorar derivació a Serveis Socials (centre concertat)",524]
[null,"18 L'infant va patir, en el passat, maltractament (inclou maltractament prenatal)",{"$f":"IFERROR(VLOOKUP(Taula1[[#This Row],[Columna1]],Qüestionari!D:E,2,FALSE),\"\")","v":"No"},null,null,null,null,null,null,null,null,null,null,null,null,null,"164",16,4,"Anar a hospital i informar a la família. En funció de la informació que es tingui (via: família, UDEPMI, TS hospital,...) i de l'informe mèdic: \n- L'informe explicita maltractament i/o hospital activa el seu protocol greu  = activació protocol maltractament greu\n- En qualsevol altre cas: activació protocol maltractament lleu/moderat",334]
[null,"19 La família relata que un adult del centre ha maltractat el seu fill/a",{"$f":"IFERROR(VLOOKUP(Taula1[[#This Row],[Columna1]],Qüestionari!D:E,2,FALSE),\"\")","v":"No"},null,null,null,null,null,null,null,null,null,null,null,null,null,"1610",16,10,"Anar a hospital i informar a la família. En funció de la informació que es tingui (via: família, UDEPMI, TS hospital,...) i de l'informe mèdic: \n- L'informe explicita maltractament i/o hospital activa el seu protocol greu  = activació protocol maltractament greu\n- L'informe només descriu les lesions però l'alumne/a relata maltractament = activació protocol maltractament lleu/moderat\n- En qualsevol altre cas: derivació a Serveis Socials",439]
[null,"20 La família relata que el seu fill/a ha patit maltractament per part d'un alumne/a del centre",{"$f":"IFERROR(VLOOKUP(Taula1[[#This Row],[Columna1]],Qüestionari!D:E,2,FALSE),\"\")","v":"No"},null,null,null,null,null,null,null,null,null,null,null,null,null,"1611.1",16,"11.1","Anar a hospital i informar a la família. En funció de la informació que es tingui (via: família, UDEPMI, TS hospital,...) i de l'informe mèdic: \n- L'informe explicita maltractament i/o hospital activa el seu protocol greu  = activació protocol maltractament greu\n- L'informe només descriu les lesions però l'alumne/a relata maltractament = activació protocol maltractament lleu/moderat\n- En qualsevol altre cas: entrevista amb família per part del TS EAP i tutor i/o membre equip directiu. Valorar l'activació del protocol de maltractament i la seva severitat o la derivació a Serveis Socials",592]
[null,"A6. L'infant pot estar patint actualment abusos sexuals",{"$f":"IFERROR(VLOOKUP(Taula1[[#This Row],[Columna1]],Qüestionari!D:E,2,FALSE),\"\")","v":""},null,"CONDICIONS APARTAT A6",null,null,null,null,null,null,null,null,null,null,null,"1611.2",16,"11.2","Anar a hospital i informar a la família. En funció de la informació que es tingui (via: família, UDEPMI, TS hospital,...) i de l'informe mèdic: \n- L'informe explicita maltractament i/o hospital activa el seu protocol greu  = activació protocol maltractament greu\n- L'informe només descriu les lesions però l'alumne/a relata maltractament = activació protocol maltractament lleu/moderat\n- En qualsevol altre cas: entrevista amb família per part del TS EAP i tutor i/o membre equip directiu. Valorar activació protocol maltractament i la seva severitat. Si no s'activa el protocol de maltractament, derivar necessàriament a Serveis Socials.",638]
[null,"1 Presenta dolor / picor en la zona anal / genital 0‐17",{"$f":"IFERROR(VLOOKUP(Taula1[[#This Row],[Columna1]],Qüestionari!D:E,2,FALSE),\"\")","v":"No"},"1a condició: Si es dóna 1 + 3","Activació Greu",2,null,null,null,null,null,null,null,null,null,null,"1612",16,12,"Anar a hospital i informar a la família. En funció de la informació que es tingui (via: família, UDEPMI, TS hospital,...) i de l'informe mèdic: \n- L'informe explicita maltractament i/o hospital activa el seu protocol greu  = activació protocol maltractament greu\n- L'informe només descriu les lesions però l'alumne/a relata maltractament = activació protocol maltractament lleu/moderat\n- En qualsevol altre cas: entrevista del tutor/a amb la família. Omplir, si escau, el full d'indicadors per valorar si és un cas per portar a la Comissió Social (centre públic). Valorar derivació a Serveis Socials (centre concertat).",619]
[null,"2 Té molèsties quan camina o s’asseu 3‐17",{"$f":"IFERROR(VLOOKUP(Taula1[[#This Row],[Columna1]],Qüestionari!D:E,2,FALSE),\"\")","v":"No"},"2a condició: Si es dóna 2 + 3","Activació Greu",2]
[null,"3 Presenta roba interior esquinçada, tacada o amb sang 0‐17",{"$f":"IFERROR(VLOOKUP(Taula1[[#This Row],[Columna1]],Qüestionari!D:E,2,FALSE),\"\")","v":"No"},"3a condició: Si es dóna 1 +2+3 ","Activació greu",2]
[null,"4 És una nena o adolescent embarassada (especialment si es nega a identificar al pare) 12‐17",{"$f":"IFERROR(VLOOKUP(Taula1[[#This Row],[Columna1]],Qüestionari!D:E,2,FALSE),\"\")","v":"No"},"4a condició: Item 1 i/o 2 i/o 4 i/o 5 i/o 6 i/o 7 i/o 8","Entrevista amb família per part de TS EAP i (tutor i/o membre equip directiu). Valorar activació protocol o derivació a Serveis Socials"]
[null,"5 Hi ha indicis que l'estan forçant en activitats sexuals (abús sexual) 0‐17",{"$f":"IFERROR(VLOOKUP(Taula1[[#This Row],[Columna1]],Qüestionari!D:E,2,FALSE),\"\")","v":"No"},"5a condició: item 3","Entrevista amb família per part de TS EAP i (tutor i/o membre equip directiu). Valorar activació protocol o derivació a Serveis Socials",4]
[null,"6 Explica que està patint abusos sexuals per part d'algú del seu entorn (pares, familiar proper,...) 3‐17",{"$f":"IFERROR(VLOOKUP(Taula1[[#This Row],[Columna1]],Qüestionari!D:E,2,FALSE),\"\")","v":"No"},"6a condició: item 6 i/o 7 i/o 8 i/o 9 i/o 10 i/o 11","Activació GREU"]
[null,"7 Explica que està patint abusos sexuals per part d'algun adult del centre  3‐17",{"$f":"IFERROR(VLOOKUP(Taula1[[#This Row],[Columna1]],Qüestionari!D:E,2,FALSE),\"\")","v":"No"},"7a condició: item 12 o 13"," La direcció del centre oferirà omplir  instancia relatant els fets i s'enviarà al CEB i s'engegaran les actuacions acordades en aquesta situació específica",16]
[null,"8 Explica que està patint abusos sexuals per part d'algun alumne/a del centre  3‐17",{"$f":"IFERROR(VLOOKUP(Taula1[[#This Row],[Columna1]],Qüestionari!D:E,2,FALSE),\"\")","v":"No"},"8a condició: item 15","Hi ha risc afegit",12]
[null,"9 Manifesta o assenyala amb gestos que els seus progenitors són els causants de l'abús sexual 3‐17",{"$f":"IFERROR(VLOOKUP(Taula1[[#This Row],[Columna1]],Qüestionari!D:E,2,FALSE),\"\")","v":"No"}]
[null,"10 Manifesta o assenyala amb gestos que un adult del centre és el causant de l'abús sexual 3‐17",{"$f":"IFERROR(VLOOKUP(Taula1[[#This Row],[Columna1]],Qüestionari!D:E,2,FALSE),\"\")","v":"No"}]
[null,"11 Manifesta o assenyala amb gestos que un alumne/a del centre és el causant de l'abús sexual 3‐17",{"$f":"IFERROR(VLOOKUP(Taula1[[#This Row],[Columna1]],Qüestionari!D:E,2,FALSE),\"\")","v":"No"}]
[null,"12 La família relata que el seu fill/a ha patit abús sexual per part d'un adult del centre",{"$f":"IFERROR(VLOOKUP(Taula1[[#This Row],[Columna1]],Qüestionari!D:E,2,FALSE),\"\")","v":"No"}]
[null,"13 La família relata que el seu fill/a ha patit abús sexual per part d'un alumne/a del centre",{"$f":"IFERROR(VLOOKUP(Taula1[[#This Row],[Columna1]],Qüestionari!D:E,2,FALSE),\"\")","v":"No"}]
[null,"14 Dóna explicacions estranyes o poc convincents respecte a les lesions que presenta 3‐17",{"$f":"IFERROR(VLOOKUP(Taula1[[#This Row],[Columna1]],Qüestionari!D:E,2,FALSE),\"\")","v":"No"}]
[null,"15 L'infant va patir, en el passat abús sexual  1-17",{"$f":"IFERROR(VLOOKUP(Taula1[[#This Row],[Columna1]],Qüestionari!D:E,2,FALSE),\"\")","v":"No"}]
[null,"A7. L'infant va patir, en el passat, maltractament o abús sexual (inclou també el maltractament prenatal) 1-17 (compta com un únic indicador)",{"$f":"IFERROR(VLOOKUP(Taula1[[#This Row],[Columna1]],Qüestionari!D:E,2,FALSE),\"\")","v":""}]
[null,"A8. L'infant té símptomes compatibles amb haver patit o estar en risc de patir mutilació genital 0-17 (compta com un únic indicador)",{"$f":"IFERROR(VLOOKUP(Taula1[[#This Row],[Columna1]],Qüestionari!D:E,2,FALSE),\"\")","v":""},null,"CONDICIONS APARTAT A9: 1a condició: link protocol mutilació genital",5]
[null,"A9. Manifestacions d'altres persones, professionals o membres de la família",{"$f":"IFERROR(VLOOKUP(Taula1[[#This Row],[Columna1]],Qüestionari!D:E,2,FALSE),\"\")","v":""},null,"CONDICIONS APARTAT A9"]
[null,"1 Han observat situacions que fan pensar en un abús sexual 0‐17",{"$f":"IFERROR(VLOOKUP(Taula1[[#This Row],[Columna1]],Qüestionari!D:E,2,FALSE),\"\")","v":"No"},"1a condició: 1 o més items (2,3,4) = ","Entrevista amb família per part de TS EAP i (tutor i/o membre equip directiu). Valorar activació protocol o derivació a Serveis Socials",4]
[null,"2 Diuen que els progenitors o guardadors el peguen 0‐17",{"$f":"IFERROR(VLOOKUP(Taula1[[#This Row],[Columna1]],Qüestionari!D:E,2,FALSE),\"\")","v":"No"},"2a condició: item 1:","Activació Greu",2]
[null,"3 Senten que rep agressions verbals i/o físiques (cops, plors, crits, etc.) 0‐17",{"$f":"IFERROR(VLOOKUP(Taula1[[#This Row],[Columna1]],Qüestionari!D:E,2,FALSE),\"\")","v":"No"}]
[null,"4 Han observat que desatenen l'infant 0‐3",{"$f":"IFERROR(VLOOKUP(Taula1[[#This Row],[Columna1]],Qüestionari!D:E,2,FALSE),\"\")","v":"No"}]
[null,"A10. Situacions que fan que l'infant es trobi greument desprotegit",{"$f":"IFERROR(VLOOKUP(Taula1[[#This Row],[Columna1]],Qüestionari!D:E,2,FALSE),\"\")","v":""},null,"CONDICIONS APARTAT A10"]
[null,"1 Està en situació sobrevinguda en què ningú se'n fa càrrec",{"$f":"IFERROR(VLOOKUP(Taula1[[#This Row],[Columna1]],Qüestionari!D:E,2,FALSE),\"\")","v":"No"}]
[null,"2 Ha estat abandonat/da intencionadament",{"$f":"IFERROR(VLOOKUP(Taula1[[#This Row],[Columna1]],Qüestionari!D:E,2,FALSE),\"\")","v":"No"}]
[null,"3 No rep el tractament per una malaltia greu, posant en risc la seva vida 0‐17",{"$f":"IFERROR(VLOOKUP(Taula1[[#This Row],[Columna1]],Qüestionari!D:E,2,FALSE),\"\")","v":"No"},"1a condició: 1 o més items 3 ","Entrevista amb família per part de TS EAP i (tutor i/o membre equip directiu). Valorar activació protocol o derivació a Serveis Socials",4]
[null,"4 La mare i/o el pare vol donar l'infant en adopció 0‐17",{"$f":"IFERROR(VLOOKUP(Taula1[[#This Row],[Columna1]],Qüestionari!D:E,2,FALSE),\"\")","v":"No"},"Ítem 4 i/o 5 i/o 6 i/o 8 ","Activació LLEU",1]
[null,"5 No té cap referent familiar en el país 1‐17",{"$f":"IFERROR(VLOOKUP(Taula1[[#This Row],[Columna1]],Qüestionari!D:E,2,FALSE),\"\")","v":"No"}]
[null,"6 És una nena/adolescent embarassada (o mare) amb greus dificultats personals i socials 9‐17",{"$f":"IFERROR(VLOOKUP(Taula1[[#This Row],[Columna1]],Qüestionari!D:E,2,FALSE),\"\")","v":"No"}]
[null,"7 Pateix una situació de perill greu que li fa sol·licitar protecció immediata 6-17",{"$f":"IFERROR(VLOOKUP(Taula1[[#This Row],[Columna1]],Qüestionari!D:E,2,FALSE),\"\")","v":"No"}]
[null,"8 Pateix amenaces de mort o abandonament dels progenitors o guardadors 0-17",{"$f":"IFERROR(VLOOKUP(Taula1[[#This Row],[Columna1]],Qüestionari!D:E,2,FALSE),\"\")","v":"No"}]
[null,"B1. Conductes dissocials i/o agressives de l'infant (dintre o fora de l'escola)"]
[null,"1 Comet petits furts 6‐17",{"$f":"IFERROR(VLOOKUP(Taula1[[#This Row],[Columna1]],Qüestionari!D:E,2,FALSE),\"\")","v":"No"}]
[null,"2 Presenta una conducta agressiva física contra terceres persones 6‐17",{"$f":"IFERROR(VLOOKUP(Taula1[[#This Row],[Columna1]],Qüestionari!D:E,2,FALSE),\"\")","v":"No"}]
[null,"3 Presenta una conducta agressiva verbal contra terceres persones 6‐17",{"$f":"IFERROR(VLOOKUP(Taula1[[#This Row],[Columna1]],Qüestionari!D:E,2,FALSE),\"\")","v":"No"}]
[null,"4 Presenta una conducta destructiva amb objectes 6‐17",{"$f":"IFERROR(VLOOKUP(Taula1[[#This Row],[Columna1]],Qüestionari!D:E,2,FALSE),\"\")","v":"No"}]
[null,"5 Es relaciona amb un grup d'amics o amigues conflictiu 6‐17",{"$f":"IFERROR(VLOOKUP(Taula1[[#This Row],[Columna1]],Qüestionari!D:E,2,FALSE),\"\")","v":"No"}]
[null,"6 Manté sovint conductes de provocació (desafiant...) 6‐17",{"$f":"IFERROR(VLOOKUP(Taula1[[#This Row],[Columna1]],Qüestionari!D:E,2,FALSE),\"\")","v":"No"}]
[null,"7 Fa actes de vandalisme, racisme o xenofòbia 10‐17",{"$f":"IFERROR(VLOOKUP(Taula1[[#This Row],[Columna1]],Qüestionari!D:E,2,FALSE),\"\")","v":"No"}]
[null,"8 Transgredeix les normes sistemàticament 6‐17",{"$f":"IFERROR(VLOOKUP(Taula1[[#This Row],[Columna1]],Qüestionari!D:E,2,FALSE),\"\")","v":"No"}]
[null,"B2. Conductes de risc vers el mateix infant (dintre o fora de l'escola)",{"$f":"IFERROR(VLOOKUP(Taula1[[#This Row],[Columna1]],Qüestionari!D:E,2,FALSE),\"\")","v":""},null,"CONDICIONS APARTAT B2"]
[null,"1 Deambula sovint pels carrers en horari escolar i/o de nit 3‐16",{"$f":"IFERROR(VLOOKUP(Taula1[[#This Row],[Columna1]],Qüestionari!D:E,2,FALSE),\"\")","v":"No"},"1a condició: 1 o més items"," Entrevista amb família per part de TS EAP i (tutor i/o membre equip directiu). Valorar activació protocol o derivació a Serveis Socials",4]
[null,"2 S'ha escapolit de casa 6‐17",{"$f":"IFERROR(VLOOKUP(Taula1[[#This Row],[Columna1]],Qüestionari!D:E,2,FALSE),\"\")","v":"No"},"2a condició: item 4.1","Activació protocol emergències psicosocials + entrevista mateix dia amb psico (EAP) referent del centre. Derivació urgent a CSMIJ o Hospital referent. Demanar informe psiquatric si necessita acompayament continu a casa o no",6]
[null,"3 S'exposa a situacions de risc (conducció temerària, metring, mal ús de les tecnologies) 6‐17",{"$f":"IFERROR(VLOOKUP(Taula1[[#This Row],[Columna1]],Qüestionari!D:E,2,FALSE),\"\")","v":"No"},"3a condició: item 4.2","Activació protocol emergències psicosocials + entrevista mateix dia amb psico (EAP) referent del centre. Derivació urgent a CSMIJ o Hospital referent. Demanar informe psiquatric si necessita acompayament continu a casa o no",6]
[null,"4 Diu coses que indiquen que pensa sovint en el suïcidi 6‐17",{"$f":"IFERROR(VLOOKUP(Taula1[[#This Row],[Columna1]],Qüestionari!D:E,2,FALSE),\"\")","v":"No"},"Ítems 3 i/o 4 i/o 5 i/o 6","Valoració prioritària de l'EAP i, si escau, derivació a CSMIJ",17]
[null,"4.1 Ha fet un intent de suïcidi dins del centre educatiu (afegim i ho traslladem a les observacions que es consideren d’actuació immediata) 6‐17",{"$f":"IFERROR(VLOOKUP(Taula1[[#This Row],[Columna1]],Qüestionari!D:E,2,FALSE),\"\")","v":"No"}]
[null,"4.2  Ha fet un intent de suïcidi fora del centre educatiu (afegim i ho traslladem a les observacions que es consideren d’actuació immediata) 6‐17",{"$f":"IFERROR(VLOOKUP(Taula1[[#This Row],[Columna1]],Qüestionari!D:E,2,FALSE),\"\")","v":"No"}]
[null,"4.3 Informe psiquiatric urgent del CSMIJ o de l'Hospital arran de l'intent de suïcidi on recomana l'acompanyament continu a casa. La família no pot o no vol fer-se càrrec i no té família extensa.",{"$f":"IFERROR(VLOOKUP(Taula1[[#This Row],[Columna1]],Qüestionari!D:E,2,FALSE),\"\")","v":"No"}]
[null,"5 S’autolesiona 6‐17",{"$f":"IFERROR(VLOOKUP(Taula1[[#This Row],[Columna1]],Qüestionari!D:E,2,FALSE),\"\")","v":"No"}]
[null,"6 Es provoca el vòmit, pren laxants, es nega a menjar… 6‐17",{"$f":"IFERROR(VLOOKUP(Taula1[[#This Row],[Columna1]],Qüestionari!D:E,2,FALSE),\"\")","v":"No"}]
[null,"7 Presenta manca d'autocontrol 6‐17",{"$f":"IFERROR(VLOOKUP(Taula1[[#This Row],[Columna1]],Qüestionari!D:E,2,FALSE),\"\")","v":"No"}]
[null,"B3. L’infant consumeix substàncies tòxiques",{"$f":"IFERROR(VLOOKUP(Taula1[[#This Row],[Columna1]],Qüestionari!D:E,2,FALSE),\"\")","v":""},null,"CONDICIONS APARTAT B3"]
[null,"1 Consumeix alcohol 6‐17",{"$f":"IFERROR(VLOOKUP(Taula1[[#This Row],[Columna1]],Qüestionari!D:E,2,FALSE),\"\")","v":"No"},"Ítem 1 i/o 2 i/o 4 ","Valoració prioritària de l'EAP i, si escau, derivació a SOD",18]
[null,"2 Consumeix altres substàncies estupefaents 6‐17",{"$f":"IFERROR(VLOOKUP(Taula1[[#This Row],[Columna1]],Qüestionari!D:E,2,FALSE),\"\")","v":"No"}]
[null,"3 Consumeix tabac 6‐12",{"$f":"IFERROR(VLOOKUP(Taula1[[#This Row],[Columna1]],Qüestionari!D:E,2,FALSE),\"\")","v":"No"}]
[null,"4 S’observen estats que fan pensar que ha consumit (ulls vermells, olor d’alcohol, eufòria...) 6‐17",{"$f":"IFERROR(VLOOKUP(Taula1[[#This Row],[Columna1]],Qüestionari!D:E,2,FALSE),\"\")","v":"No"}]
[null,"B4. Manifestacions de pors i/o angoixes",{"$f":"IFERROR(VLOOKUP(Taula1[[#This Row],[Columna1]],Qüestionari!D:E,2,FALSE),\"\")","v":""},null,"CONDICIONS APARTAT B4"]
[null,"1 Manifesta accions defensives davant qualsevol aproximació física 3‐17",{"$f":"IFERROR(VLOOKUP(Taula1[[#This Row],[Columna1]],Qüestionari!D:E,2,FALSE),\"\")","v":"No"},"1a condició: 1 o més items (1,2,3,4,5,6 , 9 ,10,11) = ","Entrevista amb família per part de TS EAP i (tutor i/o membre equip directiu). Valorar activació protocol o derivació a Serveis Socials"]
[null,"2 No vol fer activitats que requereixen mostrar parts del cos (per amagar cops...) 6‐17",{"$f":"IFERROR(VLOOKUP(Taula1[[#This Row],[Columna1]],Qüestionari!D:E,2,FALSE),\"\")","v":"No"},"1a condició: 1 o més items (1,2,3,4,5,6 , 9 ,10,11)","Activació LLEU (Ed. Infantil i Primària)",19]
[null,"3 Sembla tenir por dels seus progenitors o manifestar‐los rebuig 3‐17",{"$f":"IFERROR(VLOOKUP(Taula1[[#This Row],[Columna1]],Qüestionari!D:E,2,FALSE),\"\")","v":"No"},"3r condició: item 7 i/o 8 ","Entrevista del tutor/a amb la família",10]
[null,"4 No vol anar‐se’n a casa 3‐12",{"$f":"IFERROR(VLOOKUP(Taula1[[#This Row],[Columna1]],Qüestionari!D:E,2,FALSE),\"\")","v":"No"}]
[null,"5 Mostra un alt nivell d’ansietat davant activitats normals com el canvi de bolquers 0‐3",{"$f":"IFERROR(VLOOKUP(Taula1[[#This Row],[Columna1]],Qüestionari!D:E,2,FALSE),\"\")","v":"No"}]
[null,"6 Presenta dificultats greus per calmar‐se en braços de qui en té cura 0‐3",{"$f":"IFERROR(VLOOKUP(Taula1[[#This Row],[Columna1]],Qüestionari!D:E,2,FALSE),\"\")","v":"No"}]
[null,"7 Es preocupa molt d’estar a l'alçada de les expectatives dels progenitors o per ser acceptat 4‐17",{"$f":"IFERROR(VLOOKUP(Taula1[[#This Row],[Columna1]],Qüestionari!D:E,2,FALSE),\"\")","v":"No"}]
[null,"8 Mostra sentiments de culpabilitat de la situació viscuda 4‐17",{"$f":"IFERROR(VLOOKUP(Taula1[[#This Row],[Columna1]],Qüestionari!D:E,2,FALSE),\"\")","v":"No"}]
[null,"9 Manifesta que no el/la deixen entrar a casa o que l'han fet fora 6‐17",{"$f":"IFERROR(VLOOKUP(Taula1[[#This Row],[Columna1]],Qüestionari!D:E,2,FALSE),\"\")","v":"No"}]
[null,"10 Mostra senyals d’ansietat 3‐17",{"$f":"IFERROR(VLOOKUP(Taula1[[#This Row],[Columna1]],Qüestionari!D:E,2,FALSE),\"\")","v":"No"}]
[null,"11 Manifesta que vol ingressar a un centre 6‐17",{"$f":"IFERROR(VLOOKUP(Taula1[[#This Row],[Columna1]],Qüestionari!D:E,2,FALSE),\"\")","v":"No"}]
[null,"B5. Alteracions en la relació amb els altres (dintre o fora de l'escola)",{"$f":"IFERROR(VLOOKUP(Taula1[[#This Row],[Columna1]],Qüestionari!D:E,2,FALSE),\"\")","v":""}]
[null,"1 Manifesta una familiaritat excessiva amb estranys (marxa fàcilment amb persones desconegudes) 3‐12",{"$f":"IFERROR(VLOOKUP(Taula1[[#This Row],[Columna1]],Qüestionari!D:E,2,FALSE),\"\")","v":"No"}]
[null,"2 Crida contínuament l’atenció 3‐17",{"$f":"IFERROR(VLOOKUP(Taula1[[#This Row],[Columna1]],Qüestionari!D:E,2,FALSE),\"\")","v":"No"}]
[null,"3 Fa demandes continuades d’afectivitat 3‐17",{"$f":"IFERROR(VLOOKUP(Taula1[[#This Row],[Columna1]],Qüestionari!D:E,2,FALSE),\"\")","v":"No"}]
[null,"4 No interacciona, no fixa la mirada, sovint sembla absent 1‐12",{"$f":"IFERROR(VLOOKUP(Taula1[[#This Row],[Columna1]],Qüestionari!D:E,2,FALSE),\"\")","v":"No"}]
[null,"5 Sembla tenir dificultat per formar vincles afectius estables 3‐17",{"$f":"IFERROR(VLOOKUP(Taula1[[#This Row],[Columna1]],Qüestionari!D:E,2,FALSE),\"\")","v":"No"}]
[null,"6 Presenta problemes de relació amb el grup d'iguals 3‐17",{"$f":"IFERROR(VLOOKUP(Taula1[[#This Row],[Columna1]],Qüestionari!D:E,2,FALSE),\"\")","v":"No"}]
[null,"B6. Altres manifestacions d'alteració de l'estat d'ànim",{"$f":"IFERROR(VLOOKUP(Taula1[[#This Row],[Columna1]],Qüestionari!D:E,2,FALSE),\"\")","v":""}]
[null,"1 Mostra un aspecte trist i/o plora sovint sense causa aparent 1‐17",{"$f":"IFERROR(VLOOKUP(Taula1[[#This Row],[Columna1]],Qüestionari!D:E,2,FALSE),\"\")","v":"No"}]
[null,"2 Es mostra passiu/va i retret/a i/o s’aïlla 3‐17",{"$f":"IFERROR(VLOOKUP(Taula1[[#This Row],[Columna1]],Qüestionari!D:E,2,FALSE),\"\")","v":"No"}]
[null,"3 Fa comentaris que semblen indicar que té una autoestima baixa 4‐17",{"$f":"IFERROR(VLOOKUP(Taula1[[#This Row],[Columna1]],Qüestionari!D:E,2,FALSE),\"\")","v":"No"}]
[null,"4 Manifesta sovint conductes que corresponen a una edat inferior (conductes regressives) 3‐17",{"$f":"IFERROR(VLOOKUP(Taula1[[#This Row],[Columna1]],Qüestionari!D:E,2,FALSE),\"\")","v":"No"}]
[null,"5 Manca de plor i absència de queixa davant del dolor 0‐12",{"$f":"IFERROR(VLOOKUP(Taula1[[#This Row],[Columna1]],Qüestionari!D:E,2,FALSE),\"\")","v":"No"}]
[null,"6 Es mostra inquiet/a, neguitós/a 0‐17",{"$f":"IFERROR(VLOOKUP(Taula1[[#This Row],[Columna1]],Qüestionari!D:E,2,FALSE),\"\")","v":"No"}]
[null,"7 Presenta trastorns d'alimentació (vòmits, diarrees, anorèxia del lactant) 0‐17",{"$f":"IFERROR(VLOOKUP(Taula1[[#This Row],[Columna1]],Qüestionari!D:E,2,FALSE),\"\")","v":"No"}]
[null,"8 Presenta desordres greus associats amb el dormir 0‐17",{"$f":"IFERROR(VLOOKUP(Taula1[[#This Row],[Columna1]],Qüestionari!D:E,2,FALSE),\"\")","v":"No"}]
[null,"B7. L’infant presenta comportaments d’autoestimulació compulsiva",{"$f":"IFERROR(VLOOKUP(Taula1[[#This Row],[Columna1]],Qüestionari!D:E,2,FALSE),\"\")","v":""},null,"CONDICIONS APARTAT B7"]
[null,"1 Fa balancejos compulsius 3‐17",{"$f":"IFERROR(VLOOKUP(Taula1[[#This Row],[Columna1]],Qüestionari!D:E,2,FALSE),\"\")","v":"No"},"1a condició: 1 o més items","Entrevista amb família per part de TS EAP i (tutor i/o membre equip directiu). Valorar activació protocol o derivació a Serveis Socials",4]
[null,"2 Presenta masturbació compulsiva 3‐17",{"$f":"IFERROR(VLOOKUP(Taula1[[#This Row],[Columna1]],Qüestionari!D:E,2,FALSE),\"\")","v":"No"}]
[null,"3 Es dóna cops de cap de forma voluntària i repetida 1‐17",{"$f":"IFERROR(VLOOKUP(Taula1[[#This Row],[Columna1]],Qüestionari!D:E,2,FALSE),\"\")","v":"No"}]
[null,"B8. L’infant presenta comportaments sexualitzats inadequats per l’edat",{"$f":"IFERROR(VLOOKUP(Taula1[[#This Row],[Columna1]],Qüestionari!D:E,2,FALSE),\"\")","v":""},null,"CONDICIONS APARTAT B8"]
[null,"1 Manifesta conductes i preocupacions sexuals o utilitza termes inadequats per la seva edat 3‐17",{"$f":"IFERROR(VLOOKUP(Taula1[[#This Row],[Columna1]],Qüestionari!D:E,2,FALSE),\"\")","v":"No"},"1a condició: 1 o més items (1,2, 4, 5)","Entrevista amb família per part de TS EAP i (tutor i/o membre equip directiu). Valorar activació protocol o derivació a Serveis Socials",4]
[null,"2 Assetja sexualment altres infants o adolescents 4‐17",{"$f":"IFERROR(VLOOKUP(Taula1[[#This Row],[Columna1]],Qüestionari!D:E,2,FALSE),\"\")","v":"No"},"2a condició: item 3","Activació GREU",2]
[null,"3 Agredeix sexualment altres infants o adolescents 4‐17",{"$f":"IFERROR(VLOOKUP(Taula1[[#This Row],[Columna1]],Qüestionari!D:E,2,FALSE),\"\")","v":"No"}]
[null,"4 Manifesta, de forma recurrent, tenir por a un embaràs o a la sida 6‐17",{"$f":"IFERROR(VLOOKUP(Taula1[[#This Row],[Columna1]],Qüestionari!D:E,2,FALSE),\"\")","v":"No"}]
[null,"5 Mostra promiscuïtat sexual 12‐17",{"$f":"IFERROR(VLOOKUP(Taula1[[#This Row],[Columna1]],Qüestionari!D:E,2,FALSE),\"\")","v":"No"}]
[null,"B9. L’infant està adoptant rols que no li corresponen per edat",{"$f":"IFERROR(VLOOKUP(Taula1[[#This Row],[Columna1]],Qüestionari!D:E,2,FALSE),\"\")","v":""},null,"CONDICIONS APARTAT B9"]
[null,"1 Assumeix responsabilitats impròpies de l’edat amb membres de la família o tasques de casa 4‐17",{"$f":"IFERROR(VLOOKUP(Taula1[[#This Row],[Columna1]],Qüestionari!D:E,2,FALSE),\"\")","v":"No"},"1a condició:  items 1 i 2","Entrevista amb família per part de TS EAP i (tutor i/o membre equip directiu). Valorar activació protocol o derivació a Serveis Socials",4]
[null,"2 Adopta un rol cuidador respecte als progenitors o guardadors (inversió de rols) 4‐17",{"$f":"IFERROR(VLOOKUP(Taula1[[#This Row],[Columna1]],Qüestionari!D:E,2,FALSE),\"\")","v":"No"}]
[null,null,{"$f":"IFERROR(VLOOKUP(Taula1[[#This Row],[Columna1]],Qüestionari!D:E,2,FALSE),\"\")","v":""}]
[null,"C1. L’infant presenta dificultats destacables en els aprenentatges escolars",{"$f":"IFERROR(VLOOKUP(Taula1[[#This Row],[Columna1]],Qüestionari!D:E,2,FALSE),\"\")","v":""}]
[null,"1 Manifesta problemes d’atenció i concentració 3‐17",{"$f":"IFERROR(VLOOKUP(Taula1[[#This Row],[Columna1]],Qüestionari!D:E,2,FALSE),\"\")","v":"No"}]
[null,"2 Presenta poca constància en les activitats escolars i deixa de fer els deures amb freqüència 6‐16",{"$f":"IFERROR(VLOOKUP(Taula1[[#This Row],[Columna1]],Qüestionari!D:E,2,FALSE),\"\")","v":"No"}]
[null,"3 Presenta dificultats d'aprenentatge 3‐17",{"$f":"IFERROR(VLOOKUP(Taula1[[#This Row],[Columna1]],Qüestionari!D:E,2,FALSE),\"\")","v":"No"}]
[null,"4 Presenta canvis sobtats en el seu rendiment escolar 3‐17",{"$f":"IFERROR(VLOOKUP(Taula1[[#This Row],[Columna1]],Qüestionari!D:E,2,FALSE),\"\")","v":"No"}]
[null,"5 Presenta repetits canvis de centre escolar al llarg de l'escolaritat 3‐17",{"$f":"IFERROR(VLOOKUP(Taula1[[#This Row],[Columna1]],Qüestionari!D:E,2,FALSE),\"\")","v":"No"}]
[null,"C2. L’infant presenta un retard en el desenvolupament",{"$f":"IFERROR(VLOOKUP(Taula1[[#This Row],[Columna1]],Qüestionari!D:E,2,FALSE),\"\")","v":""}]
[null,"1 Presenta retard en l’adquisició de capacitats verbals, cognitives o socials pròpies de l’edat 2‐17",{"$f":"IFERROR(VLOOKUP(Taula1[[#This Row],[Columna1]],Qüestionari!D:E,2,FALSE),\"\")","v":"No"}]
[null,"2 No respon als estímuls com seria d’esperar per l’edat 0‐12",{"$f":"IFERROR(VLOOKUP(Taula1[[#This Row],[Columna1]],Qüestionari!D:E,2,FALSE),\"\")","v":"No"}]
[null,"3 No se li observen habilitats i/o el to motriu pròpies de l’edat 0‐17",{"$f":"IFERROR(VLOOKUP(Taula1[[#This Row],[Columna1]],Qüestionari!D:E,2,FALSE),\"\")","v":"No"}]
[null,"4 Presenta pes i talla molt inferiors per l’edat 0‐17",{"$f":"IFERROR(VLOOKUP(Taula1[[#This Row],[Columna1]],Qüestionari!D:E,2,FALSE),\"\")","v":"No"}]
[null,"5 No mostra joc imitatiu/manipula els objectes de manera estereotipada sense desig d’explorar 0‐6",{"$f":"IFERROR(VLOOKUP(Taula1[[#This Row],[Columna1]],Qüestionari!D:E,2,FALSE),\"\")","v":"No"}]
[null,"C3. L’infant sovint té dificultats en el control d’esfínters",{"$f":"IFERROR(VLOOKUP(Taula1[[#This Row],[Columna1]],Qüestionari!D:E,2,FALSE),\"\")","v":""}]
[null,"1 Presenta problemes d’enuresi, amb relativa freqüència 6‐17",{"$f":"IFERROR(VLOOKUP(Taula1[[#This Row],[Columna1]],Qüestionari!D:E,2,FALSE),\"\")","v":"No"}]
[null,"2 Presenta problemes d’encopresi, amb relativa freqüència 6‐17",{"$f":"IFERROR(VLOOKUP(Taula1[[#This Row],[Columna1]],Qüestionari!D:E,2,FALSE),\"\")","v":"No"}]
[null,"C4. Presenta problemes amb l'assistència escolar",{"$f":"IFERROR(VLOOKUP(Taula1[[#This Row],[Columna1]],Qüestionari!D:E,2,FALSE),\"\")","v":""},null,"CONDICIONS APARTAT C4"]
[null,"1 Marxa de classe o d'escola davant qualsevol contrarietat 3‐17",{"$f":"IFERROR(VLOOKUP(Taula1[[#This Row],[Columna1]],Qüestionari!D:E,2,FALSE),\"\")","v":"No"},"1a condició: 1 o més items (2, 3)","Entrevista amb família per part de TS EAP i (tutor i/o membre equip directiu). Valorar activació protocol o derivació a Serveis Socials",4]
[null,"2 Fa faltes d'assistència injustificades i/o absentisme escolar o laboral 3‐17",{"$f":"IFERROR(VLOOKUP(Taula1[[#This Row],[Columna1]],Qüestionari!D:E,2,FALSE),\"\")","v":"No"}]
[null,"3 Ha abandonat l'escolaritat en etapa obligatòria 3‐16",{"$f":"IFERROR(VLOOKUP(Taula1[[#This Row],[Columna1]],Qüestionari!D:E,2,FALSE),\"\")","v":"No"}]
[null,"D. RELACIÓ DELS PROGENITORS O GUARDADORS AMB L'INFANT",{"$f":"IFERROR(VLOOKUP(Taula1[[#This Row],[Columna1]],Qüestionari!D:E,2,FALSE),\"\")","v":""}]
[null,"D1. Els progenitors o guardadors manifesten rebuig vers l’infant",{"$f":"IFERROR(VLOOKUP(Taula1[[#This Row],[Columna1]],Qüestionari!D:E,2,FALSE),\"\")","v":""},null,"CONDICIONS APARTAT D1"]
[null,"1 Manifesten una imatge negativa de l’infant i no li reconeixen valor positiu 0‐17",{"$f":"IFERROR(VLOOKUP(Taula1[[#This Row],[Columna1]],Qüestionari!D:E,2,FALSE),\"\")","v":"No"},"1a condició: item 9 = ","Entrevista del tutor/a amb la família. Omplir, si escau, el full d'indicadors per valorar si és un cas per portar a la Comissió Social (centre públic). Valorar derivació a Serveis Socials (centre concertat)",10]
[null,"2 Li repeteixen que no l’estimen 1‐17",{"$f":"IFERROR(VLOOKUP(Taula1[[#This Row],[Columna1]],Qüestionari!D:E,2,FALSE),\"\")","v":"No"}]
[null,"3 El critiquen, avergonyeixen, desqualifiquen, insulten, ridiculitzen o amenacen 2‐17",{"$f":"IFERROR(VLOOKUP(Taula1[[#This Row],[Columna1]],Qüestionari!D:E,2,FALSE),\"\")","v":"No"}]
[null,"4 Minimitzen els episodis de pena, malaltia o dany físic de l’infant 0‐17",{"$f":"IFERROR(VLOOKUP(Taula1[[#This Row],[Columna1]],Qüestionari!D:E,2,FALSE),\"\")","v":"No"}]
[null,"5 No s’observa mai cap expressió física d’afecte del progenitor/a vers l’infant 0‐17",{"$f":"IFERROR(VLOOKUP(Taula1[[#This Row],[Columna1]],Qüestionari!D:E,2,FALSE),\"\")","v":"No"}]
[null,"6 Mostren una relació de gelosia amb l'infant, rivalitzant per l'atenció de la parella 0‐17",{"$f":"IFERROR(VLOOKUP(Taula1[[#This Row],[Columna1]],Qüestionari!D:E,2,FALSE),\"\")","v":"No"}]
[null,"7 Són coneixedors de la situació de maltractament que pateix i no el protegeixen 0‐17",{"$f":"IFERROR(VLOOKUP(Taula1[[#This Row],[Columna1]],Qüestionari!D:E,2,FALSE),\"\")","v":"No"}]
[null,"8 No permeten a l’infant contacte tàctil amb ells (carícies, moixaines, tendresa...) 1‐17",{"$f":"IFERROR(VLOOKUP(Taula1[[#This Row],[Columna1]],Qüestionari!D:E,2,FALSE),\"\")","v":"No"}]
[null,"9 Tracten de manera molt desigual els/les germans/es 0‐17",{"$f":"IFERROR(VLOOKUP(Taula1[[#This Row],[Columna1]],Qüestionari!D:E,2,FALSE),\"\")","v":"No"}]
[null,"D2. El seguiment i control de la salut de l'infant no sembla l'adequat",{"$f":"IFERROR(VLOOKUP(Taula1[[#This Row],[Columna1]],Qüestionari!D:E,2,FALSE),\"\")","v":""},null,"CONDICIONS APARTAT D2"]
[null,"1 Porten habitualment l'infant malalt a l’escola 0‐17",{"$f":"IFERROR(VLOOKUP(Taula1[[#This Row],[Columna1]],Qüestionari!D:E,2,FALSE),\"\")","v":"No"},"1a condició: items 2","Entrevista amb família per part de TS EAP i (tutor i/o membre equip directiu). Valorar activació protocol o derivació a Serveis Socials",4]
[null,"2 No atenen les malalties o danys físics de l'infant 0‐17",{"$f":"IFERROR(VLOOKUP(Taula1[[#This Row],[Columna1]],Qüestionari!D:E,2,FALSE),\"\")","v":"No"},"2a condició: items 1 o més (1,3,4,5)","Entrevista del tutor/a amb la família\". Omplir, si escau, el full d'indicadors per valorar si és un cas per portar a la Comissió Social (centre públic). Valorar derivació a Serveis Socials (centre concertat)",10]
[null,"3 No duen a terme les revisions mèdiques 0‐17",{"$f":"IFERROR(VLOOKUP(Taula1[[#This Row],[Columna1]],Qüestionari!D:E,2,FALSE),\"\")","v":"No"}]
[null,"4 No segueixen els tractaments mèdics i/o higiènics que se'ls indiquen 0‐17",{"$f":"IFERROR(VLOOKUP(Taula1[[#This Row],[Columna1]],Qüestionari!D:E,2,FALSE),\"\")","v":"No"}]
[null,"5 No assisteixen als serveis especialitzats indicats o derivats (atenció precoç, salut mental) 0‐17",{"$f":"IFERROR(VLOOKUP(Taula1[[#This Row],[Columna1]],Qüestionari!D:E,2,FALSE),\"\")","v":"No"}]
[null,"D3. Hi ha sospites de manipulació de la salut de l'infant per part dels progenitors",{"$f":"IFERROR(VLOOKUP(Taula1[[#This Row],[Columna1]],Qüestionari!D:E,2,FALSE),\"\")","v":""}]
[null,"1 Li atribueixen sovint malalties dubtoses o símptomes no observats a l’escola 0‐17",{"$f":"IFERROR(VLOOKUP(Taula1[[#This Row],[Columna1]],Qüestionari!D:E,2,FALSE),\"\")","v":"No"}]
[null,"2 Fa faltes d’assistència reiterades per malalties sense justificació mèdica 3‐17",{"$f":"IFERROR(VLOOKUP(Taula1[[#This Row],[Columna1]],Qüestionari!D:E,2,FALSE),\"\")","v":"No"}]
[null,"3 Té símptomes recurrents que desapareixen en separar‐lo de la família i tornen en contactar 0‐17",{"$f":"IFERROR(VLOOKUP(Taula1[[#This Row],[Columna1]],Qüestionari!D:E,2,FALSE),\"\")","v":"No"}]
[null,"4 Fa múltiples ingressos hospitalaris 0‐17",{"$f":"IFERROR(VLOOKUP(Taula1[[#This Row],[Columna1]],Qüestionari!D:E,2,FALSE),\"\")","v":"No"}]
[null,"D4. Els progenitors o guardadors aïllen l'infant de l’entorn social",{"$f":"IFERROR(VLOOKUP(Taula1[[#This Row],[Columna1]],Qüestionari!D:E,2,FALSE),\"\")","v":""}]
[null,"1 Es mostren extremament protectors o controladors de l’infant 0‐17",{"$f":"IFERROR(VLOOKUP(Taula1[[#This Row],[Columna1]],Qüestionari!D:E,2,FALSE),\"\")","v":"No"}]
[null,"2 No deixen a l’infant estar amb amics o amigues 3‐17",{"$f":"IFERROR(VLOOKUP(Taula1[[#This Row],[Columna1]],Qüestionari!D:E,2,FALSE),\"\")","v":"No"}]
[null,"3 Es mostren molt possessius respecte a l'infant 0‐17",{"$f":"IFERROR(VLOOKUP(Taula1[[#This Row],[Columna1]],Qüestionari!D:E,2,FALSE),\"\")","v":"No"}]
[null,"D5. Els progenitors o guardadors es despreocupen de les activitats escolars i d'oci de l’infant",{"$f":"IFERROR(VLOOKUP(Taula1[[#This Row],[Columna1]],Qüestionari!D:E,2,FALSE),\"\")","v":""},null,"CONDICIONS D5"]
[null,"1 S’obliden habitualment de recollir l’infant a l’escola o el vénen a recollir o el porten molt tard 0‐17",{"$f":"IFERROR(VLOOKUP(Taula1[[#This Row],[Columna1]],Qüestionari!D:E,2,FALSE),\"\")","v":"No"},"Afegir a l'acció: item 2","Si es pornografia activació GREU",20]
[null,"2 No es preocupen pels continguts de les activitats que fa l'infant, entre les quals NO hi ha pornografia (violència, etc) 3‐17",{"$f":"IFERROR(VLOOKUP(Taula1[[#This Row],[Columna1]],Qüestionari!D:E,2,FALSE),\"\")","v":"No"},"Ítem 4 ","No té cap acció. Igual que la resta d'items d'aquest apartat",10]
[null,"3 No es preocupen pels continguts de les activitats que fa l'infant, entre les quals SI hi ha pornografia 3-17",{"$f":"IFERROR(VLOOKUP(Taula1[[#This Row],[Columna1]],Qüestionari!D:E,2,FALSE),\"\")","v":"No"}]
[null,"4 No assisteixen a les reunions ni entrevistes amb l'escola quan se'ls cita 0‐17",{"$f":"IFERROR(VLOOKUP(Taula1[[#This Row],[Columna1]],Qüestionari!D:E,2,FALSE),\"\")","v":"No"}]
[null,"5 Són causants o consentidors de les faltes d'assistència i/o absentisme escolar de l'infant i/o abandonament escolar 3‐16",{"$f":"IFERROR(VLOOKUP(Taula1[[#This Row],[Columna1]],Qüestionari!D:E,2,FALSE),\"\")","v":"No"}]
[null,"6 No es preocupen de que l'infant porti el material escolar (xandall…) 3‐12",{"$f":"IFERROR(VLOOKUP(Taula1[[#This Row],[Columna1]],Qüestionari!D:E,2,FALSE),\"\")","v":"No"}]
[null,"D6. Els progenitors o guardadors no atenen les necessitats bàsiques de l'infant",{"$f":"IFERROR(VLOOKUP(Taula1[[#This Row],[Columna1]],Qüestionari!D:E,2,FALSE),\"\")","v":""},null,"CONDICIONS APARTAT D6"]
[null,"1 Desatenen les necessitats bàsiques de l'infant (alimentació, higiene...) 0‐17",{"$f":"IFERROR(VLOOKUP(Taula1[[#This Row],[Columna1]],Qüestionari!D:E,2,FALSE),\"\")","v":"No"},"1a condició: 1 o més items","Entrevista amb família per part de TS EAP i (tutor i/o membre equip directiu). Valorar activació protocol o derivació a Serveis Socials",4]
[null,11,{"$f":"IFERROR(VLOOKUP(Taula1[[#This Row],[Columna1]],Qüestionari!D:E,2,FALSE),\"\")","v":""}]
[null,"2 No respecten els hàbits o rutines que l'infant necessita (hores de son/descans, àpats...) 0‐16",{"$f":"IFERROR(VLOOKUP(Taula1[[#This Row],[Columna1]],Qüestionari!D:E,2,FALSE),\"\")","v":"No"}]
[null,"3 L'infant passa moltes hores sol o tancat a casa 0‐12",{"$f":"IFERROR(VLOOKUP(Taula1[[#This Row],[Columna1]],Qüestionari!D:E,2,FALSE),\"\")","v":"No"}]
[null,"4 L'infant passa la major part del dia sol a casa i/o fora del domicili 0‐12",{"$f":"IFERROR(VLOOKUP(Taula1[[#This Row],[Columna1]],Qüestionari!D:E,2,FALSE),\"\")","v":"No"}]
[null,"5 Mostren un desconeixement de les necessitats emocionals i d'estimulació de l’infant 0‐17",{"$f":"IFERROR(VLOOKUP(Taula1[[#This Row],[Columna1]],Qüestionari!D:E,2,FALSE),\"\")","v":"No"}]
[null,"6 S’encarreguen de l'infant altres familiars, amics o veïns no adequats 0‐17",{"$f":"IFERROR(VLOOKUP(Taula1[[#This Row],[Columna1]],Qüestionari!D:E,2,FALSE),\"\")","v":"No"}]
[null,"7 S’encarreguen de l'infant altres familiars, amics o veïns per despreocupació dels progenitors 0‐17",{"$f":"IFERROR(VLOOKUP(Taula1[[#This Row],[Columna1]],Qüestionari!D:E,2,FALSE),\"\")","v":"No"}]
[null,"8 Es dóna una absència de supervisió de l'infant (risc d'accidents domèstics) 0‐17",{"$f":"IFERROR(VLOOKUP(Taula1[[#This Row],[Columna1]],Qüestionari!D:E,2,FALSE),\"\")","v":"No"}]
[null,"9 Prioritzen assumptes propis en detriment de l’atenció a l’infant, podent evitar‐ho 0‐17",{"$f":"IFERROR(VLOOKUP(Taula1[[#This Row],[Columna1]],Qüestionari!D:E,2,FALSE),\"\")","v":"No"}]
[null,"10 Deixen l'infant moltes hores sol en un pis on hi ha trànsit de persones alienes a la família 0‐17",{"$f":"IFERROR(VLOOKUP(Taula1[[#This Row],[Columna1]],Qüestionari!D:E,2,FALSE),\"\")","v":"No"}]
[null,"11 Freqüenten amb l'infant ambients o locals no adients per a aquest (bars, discoteques…) 0‐12",{"$f":"IFERROR(VLOOKUP(Taula1[[#This Row],[Columna1]],Qüestionari!D:E,2,FALSE),\"\")","v":"No"}]
[null,"D7. Els progenitors o guardadors terroritzen o intimiden l’infant",{"$f":"IFERROR(VLOOKUP(Taula1[[#This Row],[Columna1]],Qüestionari!D:E,2,FALSE),\"\")","v":""},null,"CONDICIONS APARTAT D7"]
[null,"1 Terroritzen l'infant (amenacen amb mutilar‐lo, matar‐lo, vendre’l, trenquen les seves coses) 3‐17",{"$f":"IFERROR(VLOOKUP(Taula1[[#This Row],[Columna1]],Qüestionari!D:E,2,FALSE),\"\")","v":"No"},"1a condició: 1 o més items","Entrevista amb família per part de TS EAP i (tutor i/o membre equip directiu). Valorar activació protocol o derivació a Serveis Socials",4]
[null,"2 En cas que la resposta a l'anterior pregunta sigui afirmativa, l'amenaça posa en perill real la integritat física de l'infant? 3-17",{"$f":"IFERROR(VLOOKUP(Taula1[[#This Row],[Columna1]],Qüestionari!D:E,2,FALSE),\"\")","v":"No"}]
[null,"3 Utilitzen sistemàticament la por com a forma de disciplina 1‐17",{"$f":"IFERROR(VLOOKUP(Taula1[[#This Row],[Columna1]],Qüestionari!D:E,2,FALSE),\"\")","v":"No"},"2a condició: item 4","Activació protocol emergències psicosocials"]
[null,"4 Mostren violència manifesta contra les persones davant de l’infant 0‐17",{"$f":"IFERROR(VLOOKUP(Taula1[[#This Row],[Columna1]],Qüestionari!D:E,2,FALSE),\"\")","v":"No"},"Ítem 1 i/o 5","Si l'amenaça posa en perill real la integritat física de l'infant activació GREU"]
[null,"5 Han fet intents o han consumat un suïcidi o homicidi davant de l’infant 0‐17",{"$f":"IFERROR(VLOOKUP(Taula1[[#This Row],[Columna1]],Qüestionari!D:E,2,FALSE),\"\")","v":"No"}]
[null,"6 Amenacen a l'infant en fer‐li mal, diuen que no responen dels seus actes 0‐17",{"$f":"IFERROR(VLOOKUP(Taula1[[#This Row],[Columna1]],Qüestionari!D:E,2,FALSE),\"\")","v":"No"}]
[null,"7 En cas que la resposta a l'anterior pregunta sigui afirmativa, l'amenaça posa en perill real la integritat física de l'infant? 0-17",{"$f":"IFERROR(VLOOKUP(Taula1[[#This Row],[Columna1]],Qüestionari!D:E,2,FALSE),\"\")","v":"No"}]
[null,"8 Utilitzen un tracte colèric i explosiu amb l'infant 0‐17",{"$f":"IFERROR(VLOOKUP(Taula1[[#This Row],[Columna1]],Qüestionari!D:E,2,FALSE),\"\")","v":"No"}]
[null,"9 Mostren violència manifesta contra animals o coses davant de l'infant 0‐17",{"$f":"IFERROR(VLOOKUP(Taula1[[#This Row],[Columna1]],Qüestionari!D:E,2,FALSE),\"\")","v":"No"}]
[null,"D8. Els progenitors o guardadors poden estar explotant o corrompent l’infant",{"$f":"IFERROR(VLOOKUP(Taula1[[#This Row],[Columna1]],Qüestionari!D:E,2,FALSE),\"\")","v":""},null,"CONDICIONS APARTAT D8"]
[null,"1 Hi ha indicis que podrien estar forçant o consentint una situació d'explotació laboral 4‐15",{"$f":"IFERROR(VLOOKUP(Taula1[[#This Row],[Columna1]],Qüestionari!D:E,2,FALSE),\"\")","v":"No"},"1a condició: 1 o més items del 1 al  5","Entrevista amb família per part de TS EAP i (tutor i/o membre equip directiu). Valorar activació protocol o derivació a Serveis Socials",4]
[null,"2 Hi ha indicis que fan pensar que podrien estar forçant l’infant en activitats sexuals (prostitució, pornografia...) 0‐17",{"$f":"IFERROR(VLOOKUP(Taula1[[#This Row],[Columna1]],Qüestionari!D:E,2,FALSE),\"\")","v":"No"},"Ítem 2 i/o 6","Activació Greu",2]
[null,"3 Utilitzen l'infant per la mendicitat 0‐17",{"$f":"IFERROR(VLOOKUP(Taula1[[#This Row],[Columna1]],Qüestionari!D:E,2,FALSE),\"\")","v":"No"}]
[null,"4 Utilitzen l’infant en activitats dissocials o delictives (vandalisme, robatoris...) 0‐17",{"$f":"IFERROR(VLOOKUP(Taula1[[#This Row],[Columna1]],Qüestionari!D:E,2,FALSE),\"\")","v":"No"}]
[null,"5 Fan actes sexuals davant l'infant",{"$f":"IFERROR(VLOOKUP(Taula1[[#This Row],[Columna1]],Qüestionari!D:E,2,FALSE),\"\")","v":"No"}]
[null,"6 El sotmeten a veure material pornogràfic 1‐17",{"$f":"IFERROR(VLOOKUP(Taula1[[#This Row],[Columna1]],Qüestionari!D:E,2,FALSE),\"\")","v":"No"}]
[null,"7 Subministren substàncies tòxiques a l'infant (alcohol, cannabis, tabac, etc)  a 0‐12 ",{"$f":"IFERROR(VLOOKUP(Taula1[[#This Row],[Columna1]],Qüestionari!D:E,2,FALSE),\"\")","v":"No"}]
[null,"D9. Els progenitors o guardadors mostren incapacitat de control de l’infant",{"$f":"IFERROR(VLOOKUP(Taula1[[#This Row],[Columna1]],Qüestionari!D:E,2,FALSE),\"\")","v":""}]
[null,"1 Es queixen sovint que “no poden” amb l’infant, que els és massa difícil 1‐17",{"$f":"IFERROR(VLOOKUP(Taula1[[#This Row],[Columna1]],Qüestionari!D:E,2,FALSE),\"\")","v":"No"}]
[null,"2 Manifesten que volen ingressar‐lo en un centre a causa de la seva conducta 2‐17",{"$f":"IFERROR(VLOOKUP(Taula1[[#This Row],[Columna1]],Qüestionari!D:E,2,FALSE),\"\")","v":"No"}]
[null,"3 Manifesten que tenen por de l’infant i/o que n’han rebut amenaces o els ha agredit 6‐17",{"$f":"IFERROR(VLOOKUP(Taula1[[#This Row],[Columna1]],Qüestionari!D:E,2,FALSE),\"\")","v":"No"}]
[null,"4 Manifesten que té atacs de violència incontrolable 3‐17",{"$f":"IFERROR(VLOOKUP(Taula1[[#This Row],[Columna1]],Qüestionari!D:E,2,FALSE),\"\")","v":"No"}]
[null,"D10. Els progenitors o guardadors mostren pautes educatives no adequades amb l'infant",{"$f":"IFERROR(VLOOKUP(Taula1[[#This Row],[Columna1]],Qüestionari!D:E,2,FALSE),\"\")","v":""},null,"CONDICIONS APARTAT D10"]
[null,"1 Utilitzen el càstig físic com a mètode habitual de disciplina 0‐17",{"$f":"IFERROR(VLOOKUP(Taula1[[#This Row],[Columna1]],Qüestionari!D:E,2,FALSE),\"\")","v":"No"},"1a condició: 1 o més items","Entrevista amb família per part de TS EAP i (tutor i/o membre equip directiu). Valorar activació protocol o derivació a Serveis Socials",4]
[null,"2 Utilitzen habitualment mètodes o pautes educatives extremament rígids i poc flexibles 0‐17",{"$f":"IFERROR(VLOOKUP(Taula1[[#This Row],[Columna1]],Qüestionari!D:E,2,FALSE),\"\")","v":"No"},"Ítem 8","Activació Lleu/Moderat",1]
[null,"3 No tenen en compte la seva opinió en cap de les decisions que l'afecten directament 4‐17",{"$f":"IFERROR(VLOOKUP(Taula1[[#This Row],[Columna1]],Qüestionari!D:E,2,FALSE),\"\")","v":"No"}]
[null,"4 El pressionen de manera desmesurada perquè tregui bones notes o destaqui en alguna activitat 4‐17",{"$f":"IFERROR(VLOOKUP(Taula1[[#This Row],[Columna1]],Qüestionari!D:E,2,FALSE),\"\")","v":"No"}]
[null,"5 Inculquen en l'infant odi o prejudicis religiosos, ètnics, culturals o d'altre tipus 3‐17",{"$f":"IFERROR(VLOOKUP(Taula1[[#This Row],[Columna1]],Qüestionari!D:E,2,FALSE),\"\")","v":"No"}]
[null,"6 El culpabilitzen dels problemes familiars (no fa prou per ells, es presenten com a màrtirs) 1‐17",{"$f":"IFERROR(VLOOKUP(Taula1[[#This Row],[Columna1]],Qüestionari!D:E,2,FALSE),\"\")","v":"No"}]
[null,"7 Utilitzen l'infant en el conflicte conjugal/ de parella 0‐17",{"$f":"IFERROR(VLOOKUP(Taula1[[#This Row],[Columna1]],Qüestionari!D:E,2,FALSE),\"\")","v":"No"}]
[null,"8 Indueixen l'infant al consum de tòxics (cànnabis, alcohol…) 12‐17",{"$f":"IFERROR(VLOOKUP(Taula1[[#This Row],[Columna1]],Qüestionari!D:E,2,FALSE),\"\")","v":"No"}]
[null,"9 Toleren absolutament tots els comportaments de l'infant sense posar‐li cap límit 1‐17",{"$f":"IFERROR(VLOOKUP(Taula1[[#This Row],[Columna1]],Qüestionari!D:E,2,FALSE),\"\")","v":"No"}]
[null,"10 Utilitzen pautes educatives incoherents 1‐17",{"$f":"IFERROR(VLOOKUP(Taula1[[#This Row],[Columna1]],Qüestionari!D:E,2,FALSE),\"\")","v":"No"}]
[null,"D12. Situacions que fan que l'infant es trobi greument desprotegit",{"$f":"IFERROR(VLOOKUP(Taula1[[#This Row],[Columna1]],Qüestionari!D:E,2,FALSE),\"\")","v":""},null,"CONDICIONS APARTAT D12"]
[null,"1 S'ha trobat l'infant sol pel carrer o en un domicili i no es localitza ningú de la família 0‐16",{"$f":"IFERROR(VLOOKUP(Taula1[[#This Row],[Columna1]],Qüestionari!D:E,2,FALSE),\"\")","v":"No"},"1a condició: 1 o més items","Entrevista amb família per part de TS EAP i (tutor i/o membre equip directiu). Valorar activació protocol o derivació a Serveis Socials",4]
[null,"2 Habitualment No recullen l'infant a l'escola i no es localitza ningú que se'n pugui fer càrrec 0‐12",{"$f":"IFERROR(VLOOKUP(Taula1[[#This Row],[Columna1]],Qüestionari!D:E,2,FALSE),\"\")","v":"No"},"Ítem 5","Si l'amenaça posa en perill real la integritat física de l'infant activació GREU",21]
[null,"3 La mare i/o el pare vol donar l'infant en adopció ",{"$f":"IFERROR(VLOOKUP(Taula1[[#This Row],[Columna1]],Qüestionari!D:E,2,FALSE),\"\")","v":"No"}]
[null,"4 Menor sense referents familiars en el territori 1‐17",{"$f":"IFERROR(VLOOKUP(Taula1[[#This Row],[Columna1]],Qüestionari!D:E,2,FALSE),\"\")","v":"No"}]
[null,"5 Amenacen amb matar l'infant 0‐17",{"$f":"IFERROR(VLOOKUP(Taula1[[#This Row],[Columna1]],Qüestionari!D:E,2,FALSE),\"\")","v":"No"}]
[null,"6 En cas que la resposta a l'anterior pregunta sigui afirmativa, l'amenaça posa en perill real la vida de l'infant? 0-17",{"$f":"IFERROR(VLOOKUP(Taula1[[#This Row],[Columna1]],Qüestionari!D:E,2,FALSE),\"\")","v":"No"}]
[null,"7 Amenacen amb donar l'infant 0‐17",{"$f":"IFERROR(VLOOKUP(Taula1[[#This Row],[Columna1]],Qüestionari!D:E,2,FALSE),\"\")","v":"No"}]
[null,"D13. Els progenitors o guardadors poden estar maltractant físicament l’infant o abusant-ne sexualment ",null,null,"CONDICIONS APARTAT D13"]
[null,"1 Poden ser els causants de les lesions físiques de l'infant 0‐17",{"$f":"IFERROR(VLOOKUP(Taula1[[#This Row],[Columna1]],Qüestionari!D:E,2,FALSE),\"\")","v":"No"},"1a condició: 1 o més items","Entrevista amb família per part de TS EAP i (tutor i/o membre equip directiu). Valorar activació protocol o derivació a Serveis Socials",4]
[null,"2 L'infant té lesions al cos? 0-17",{"$f":"IFERROR(VLOOKUP(Taula1[[#This Row],[Columna1]],Qüestionari!D:E,2,FALSE),\"\")","v":"No"}]
[null,"3 Poden estar abusant sexualment de l'infant 0‐17",{"$f":"IFERROR(VLOOKUP(Taula1[[#This Row],[Columna1]],Qüestionari!D:E,2,FALSE),\"\")","v":"No"},"Ítem 1","Si l'alumne/a relata maltractament activació LLEU\nSi, a més del relat, té lesions al cos anar a hospital i informar a la família. En funció de la informació que es tingui (via: família, UDEPMI, TS hospital,...) de l'informe mèdic: \n- L'informe explicita maltractament i/o hospital activa el seu protocol GREU  = activació GREU\n- L'informe només descriu les lesions però l'alumne/a relata maltractament = activació LLEU",22]
[null,"4 L'infant relata abús sexual? 0-17",{"$f":"IFERROR(VLOOKUP(Taula1[[#This Row],[Columna1]],Qüestionari!D:E,2,FALSE),\"\")","v":"No"}]
[null,"5 Poden haver afavorit una mutilació genital femenina o estar en risc de fer‐ho 0‐17",{"$f":"IFERROR(VLOOKUP(Taula1[[#This Row],[Columna1]],Qüestionari!D:E,2,FALSE),\"\")","v":"No"},"Item 2","Si l'alumne/a relata l'abús activació GREU",23]
[null,null,{"$f":"IFERROR(VLOOKUP(Taula1[[#This Row],[Columna1]],Qüestionari!D:E,2,FALSE),\"\")","v":""},"Ítem 3","Valorar activiació protocol de mutilació genital",5]
[null,"D14. L’infant està vivint en un entorn familiar violent",{"$f":"IFERROR(VLOOKUP(Taula1[[#This Row],[Columna1]],Qüestionari!D:E,2,FALSE),\"\")","v":""},null,"CONDICIONS APARTAT D14"]
[null,"1 Es donen relacions violentes entre la parella 0‐17",{"$f":"IFERROR(VLOOKUP(Taula1[[#This Row],[Columna1]],Qüestionari!D:E,2,FALSE),\"\")","v":"No"},"1a condició: 1 o més items","Entrevista amb família per part de TS EAP i (tutor i/o membre equip directiu). Valorar activació protocol o derivació a Serveis Socials",4]
[null,"2 Es dóna violència física/psíquica manifesta contra altres membres de la família 0‐17",{"$f":"IFERROR(VLOOKUP(Taula1[[#This Row],[Columna1]],Qüestionari!D:E,2,FALSE),\"\")","v":"No"},"2a condició: item 1 o més items","Link protocol violència masclista",8]
[null,"3 Hi ha agressions mútues entre progenitors i fills 6‐17",{"$f":"IFERROR(VLOOKUP(Taula1[[#This Row],[Columna1]],Qüestionari!D:E,2,FALSE),\"\")","v":"No"}]
[null,"4 Es donen múltiples o creuades denúncies entre els membres de la família 0‐17",{"$f":"IFERROR(VLOOKUP(Taula1[[#This Row],[Columna1]],Qüestionari!D:E,2,FALSE),\"\")","v":"No"}]
[null,null,{"$f":"IFERROR(VLOOKUP(Taula1[[#This Row],[Columna1]],Qüestionari!D:E,2,FALSE),\"\")","v":""}]
[null,"E1. Els progenitors o guardadors poden tenir una addicció a l’alcohol o altres drogues",{"$f":"IFERROR(VLOOKUP(Taula1[[#This Row],[Columna1]],Qüestionari!D:E,2,FALSE),\"\")","v":""},null,"CONDICIONS APARTAT E1"]
[null,"1 Hi ha indicis de l'existència de substàncies estupefaents o tòxiques a l'abast de l'infant 0‐17",{"$f":"IFERROR(VLOOKUP(Taula1[[#This Row],[Columna1]],Qüestionari!D:E,2,FALSE),\"\")","v":"No"},"1a condició: 1 o més items","Entrevista amb família per part de TS EAP i (tutor i/o membre equip directiu). Valorar activació protocol o derivació a Serveis Socials",4]
[null,"E2. Els progenitors o guardadors poden estar patint algun trastorn mental",{"$f":"IFERROR(VLOOKUP(Taula1[[#This Row],[Columna1]],Qüestionari!D:E,2,FALSE),\"\")","v":""},null,"CONDICIONS APARTAT E2"]
[null,"1 Presenten símptomes compatibles amb algun trastorn mental 0‐17",{"$f":"IFERROR(VLOOKUP(Taula1[[#This Row],[Columna1]],Qüestionari!D:E,2,FALSE),\"\")","v":"No"},"1a condició: ","Derivació a Serveis Socials",9]
[null,"E3. Els progenitors o guardadors presenten una discapacitat intel·lectual",{"$f":"IFERROR(VLOOKUP(Taula1[[#This Row],[Columna1]],Qüestionari!D:E,2,FALSE),\"\")","v":""},null,"CONDICIONS APARTAT E3"]
[null,"1 Presenten dificultats que fan pensar que pot tenir alguna discapacitat intel·lectual 0‐17",{"$f":"IFERROR(VLOOKUP(Taula1[[#This Row],[Columna1]],Qüestionari!D:E,2,FALSE),\"\")","v":"No"},"1a condició:","Derivació a Serveis Socials",9]
[null,"E4. Els progenitors o guardadors presenten una malaltia física",{"$f":"IFERROR(VLOOKUP(Taula1[[#This Row],[Columna1]],Qüestionari!D:E,2,FALSE),\"\")","v":""},null,"CONDICIONS APARTAT E4"]
[null,"1 Pateixen alguna malaltia física greu 0‐17",{"$f":"IFERROR(VLOOKUP(Taula1[[#This Row],[Columna1]],Qüestionari!D:E,2,FALSE),\"\")","v":"No"},"1a condició:","Derivació a Serveis Socials",9]
[null,"E5. L’habitatge no presenta unes condicions mínimes d’habitabilitat i higiene per a l’infant",{"$f":"IFERROR(VLOOKUP(Taula1[[#This Row],[Columna1]],Qüestionari!D:E,2,FALSE),\"\")","v":""},null,"CONDICIONS APARTAT E5"]
[null,"1 Hi ha amuntegament (conviuen moltes persones en una mateixa casa) 0‐17",{"$f":"IFERROR(VLOOKUP(Taula1[[#This Row],[Columna1]],Qüestionari!D:E,2,FALSE),\"\")","v":"No"},"1a condició: 1 item o més = ","Derivació a Serveis Socials",9]
[null,"2 Han estat desnonats o no tenen domicili 0‐17",{"$f":"IFERROR(VLOOKUP(Taula1[[#This Row],[Columna1]],Qüestionari!D:E,2,FALSE),\"\")","v":"No"}]
[null,"E8. Situació familiar d'especial consideració",{"$f":"IFERROR(VLOOKUP(Taula1[[#This Row],[Columna1]],Qüestionari!D:E,2,FALSE),\"\")","v":""},null,"CONDICIONS APARTAT E8"]
[null,"1 Algun dels progenitors està a la presó 0‐17",{"$f":"IFERROR(VLOOKUP(Taula1[[#This Row],[Columna1]],Qüestionari!D:E,2,FALSE),\"\")","v":"No"},"1a condició: 1 item o més ","Derivació a Serveis Socials",9]
[null,"2 Ambdós progenitors estan a la presó 0‐17",{"$f":"IFERROR(VLOOKUP(Taula1[[#This Row],[Columna1]],Qüestionari!D:E,2,FALSE),\"\")","v":"No"}]
[null,"E9. El nucli familiar té dificultats socials, econòmiques i/o d'organització",{"$f":"IFERROR(VLOOKUP(Taula1[[#This Row],[Columna1]],Qüestionari!D:E,2,FALSE),\"\")","v":""},null,"CONDICIONS APARTAT E9"]
[null,"1 No té suport social i/o familiar 0‐17",{"$f":"IFERROR(VLOOKUP(Taula1[[#This Row],[Columna1]],Qüestionari!D:E,2,FALSE),\"\")","v":"No"},"1a condició: 1 item o més","Derivació a Serveis Socials"]
[null,"2 Es detecta insuficiència d'ingressos econòmics per garantir les necessitats escolars de l’infant 0‐17",{"$f":"IFERROR(VLOOKUP(Taula1[[#This Row],[Columna1]],Qüestionari!D:E,2,FALSE),\"\")","v":"No"}]
[null,"3 Els progenitors són adolescents amb manca de suport 0‐17",{"$f":"IFERROR(VLOOKUP(Taula1[[#This Row],[Columna1]],Qüestionari!D:E,2,FALSE),\"\")","v":"No"}]
[null,"4 És un nucli monoparental amb greus dificultats econòmiques o amb manca de suport 0‐17",{"$f":"IFERROR(VLOOKUP(Taula1[[#This Row],[Columna1]],Qüestionari!D:E,2,FALSE),\"\")","v":"No"}]
[null,"5 Hi ha greus deficiències en habilitats d’organització i economia domèstica 0‐17",{"$f":"IFERROR(VLOOKUP(Taula1[[#This Row],[Columna1]],Qüestionari!D:E,2,FALSE),\"\")","v":"No"}]
[null,"6 Nucli en situació d’immigració amb greus dificultats econòmiques o legals o manca de suport 0‐17",{"$f":"IFERROR(VLOOKUP(Taula1[[#This Row],[Columna1]],Qüestionari!D:E,2,FALSE),\"\")","v":"No"}]
[null,"7 Es donen canvis constants de domicili 0‐17",{"$f":"IFERROR(VLOOKUP(Taula1[[#This Row],[Columna1]],Qüestionari!D:E,2,FALSE),\"\")","v":"No"}]
[null,"8 Canvis freqüents dels referents adults de l'infant (canvis de cuidadors) 0‐17",{"$f":"IFERROR(VLOOKUP(Taula1[[#This Row],[Columna1]],Qüestionari!D:E,2,FALSE),\"\")","v":"No"}]
[null,"E10. El nucli familiar viu en un context social d'especial consideració",{"$f":"IFERROR(VLOOKUP(Taula1[[#This Row],[Columna1]],Qüestionari!D:E,2,FALSE),\"\")","v":""},null,"CONDICIONS APARTAT E10"]
[null,"1 Viuen en un campament provisional de caravanes 0‐17",{"$f":"IFERROR(VLOOKUP(Taula1[[#This Row],[Columna1]],Qüestionari!D:E,2,FALSE),\"\")","v":"No"},"1a condició: 1 item o més","Derivació a Serveis Socials",9]
[null,"2 Habiten en una zona amb concentració de població en situació de dificultat social 0‐17",{"$f":"IFERROR(VLOOKUP(Taula1[[#This Row],[Columna1]],Qüestionari!D:E,2,FALSE),\"\")","v":"No"}]
[null,"E11. Els guardadors o progenitors presenten un aspecte físic molt desfavorable",{"$f":"IFERROR(VLOOKUP(Taula1[[#This Row],[Columna1]],Qüestionari!D:E,2,FALSE),\"\")","v":""},null,"CONDICIONS APARTAT E11"]
[null,"1 La seva higiene és molt deficient 0‐17",{"$f":"IFERROR(VLOOKUP(Taula1[[#This Row],[Columna1]],Qüestionari!D:E,2,FALSE),\"\")","v":"No"},"1a condició: 1 item o més","Derivació a Serveis Socials",9]
[null,"2 Presenten sovint lesions físiques 0‐17",{"$f":"IFERROR(VLOOKUP(Taula1[[#This Row],[Columna1]],Qüestionari!D:E,2,FALSE),\"\")","v":"No"}]
[null,"3 Presenten un estat molt somnolent 0‐17",{"$f":"IFERROR(VLOOKUP(Taula1[[#This Row],[Columna1]],Qüestionari!D:E,2,FALSE),\"\")","v":"No"}]
[null,"E12. Les condicions personals de l’infant el poden fer més vulnerable",{"$f":"IFERROR(VLOOKUP(Taula1[[#This Row],[Columna1]],Qüestionari!D:E,2,FALSE),\"\")","v":""}]
[null,"1 Pateix una malaltia crònica 0‐17",{"$f":"IFERROR(VLOOKUP(Taula1[[#This Row],[Columna1]],Qüestionari!D:E,2,FALSE),\"\")","v":"No"},"Ítem 1","Entrevista del tutor/a amb la família. Omplir, si escau, el full d'indicadors per valorar si és un cas per portar a la Comissió Social (centre públic). Valorar derivació a Serveis Socials (centre concertat)",10]
[null,"2 Té alguna discapacitat física, intel·lectual o sensorial 0‐17",{"$f":"IFERROR(VLOOKUP(Taula1[[#This Row],[Columna1]],Qüestionari!D:E,2,FALSE),\"\")","v":"No"}]
[null,"3 Presenta algun trastorn mental 0‐17",{"$f":"IFERROR(VLOOKUP(Taula1[[#This Row],[Columna1]],Qüestionari!D:E,2,FALSE),\"\")","v":"No"},null,"CONDICIONS APARTAT E12"]
[null,"4 Període postnatal difícil (irritabilitat/dificultat per calmar‐lo/llargues hospitalitzacions) 0‐1",{"$f":"IFERROR(VLOOKUP(Taula1[[#This Row],[Columna1]],Qüestionari!D:E,2,FALSE),\"\")","v":"No"},"1a condició: 1 o més items","Entrevista amb família per part EAP i (tutor i/o membre equip directiu). Valorar activació protocol o derivació a Serveis Socials",4]
[null,null,{"$f":"IFERROR(VLOOKUP(Taula1[[#This Row],[Columna1]],Qüestionari!D:E,2,FALSE),\"\")","v":""}]
[null,null,{"$f":"IFERROR(VLOOKUP(Taula1[[#This Row],[Columna1]],Qüestionari!D:E,2,FALSE),\"\")","v":""}]
[null,"F 1 Maltractament o abús sexual per part d'un docent",{"$f":"IFERROR(VLOOKUP(Taula1[[#This Row],[Columna1]],Qüestionari!D:E,2,FALSE),\"\")","v":""}]
[null,"1 Sospita raonable d'indicadors de maltractament cap a l'alumnat",{"$f":"IFERROR(VLOOKUP(Taula1[[#This Row],[Columna1]],Qüestionari!D:E,2,FALSE),\"\")","v":""}]
[null,"2 Sospita raonable d'indicadors d'abús sexual cap a l'alumnat",{"$f":"IFERROR(VLOOKUP(Taula1[[#This Row],[Columna1]],Qüestionari!D:E,2,FALSE),\"\")","v":""}]
[null,null,{"$f":"IFERROR(VLOOKUP(Taula1[[#This Row],[Columna1]],Qüestionari!D:E,2,FALSE),\"\")","v":""}]
[null,"F2 Maltractament o abús sexual per un alumne més gran que ell/a",{"$f":"IFERROR(VLOOKUP(Taula1[[#This Row],[Columna1]],Qüestionari!D:E,2,FALSE),\"\")","v":""}]
[null,"1 Sospita raonable d'indicadors de maltractament cap a l'alumnat",{"$f":"IFERROR(VLOOKUP(Taula1[[#This Row],[Columna1]],Qüestionari!D:E,2,FALSE),\"\")","v":""}]
[null,"2 Sospita raonable d'indicadors d'abús sexual cap a l'alumnat",{"$f":"IFERROR(VLOOKUP(Taula1[[#This Row],[Columna1]],Qüestionari!D:E,2,FALSE),\"\")","v":""}]

{"sheet":"Full2","index":2,"n_rows":25,"n_cols":4,"rows_kept":25,"cut":false,"hidden":true,"merged":[]}
[]
[null,"Núm.","Actuació","Tipus"]
[null,1,"- Activar protocol maltractament LLEU/MODERAT","Maltractament"]
[null,2,"- Activar protocol maltractament GREU","Maltractament"]
[null,3,"- TS EAP i tutor o membre de l'equip directiu entrevista amb família\n- Valorar derivació a Hospital per a què faci exploració mèdica\n- En funció de la informació que es tingui (via: família, UDEPMI, TS hospital,...) de l'informe mèdic i l'entrevista, decidir si s'activa o no el protocol de maltractament greu o lleu","Maltractament"]
[null,4,"- TS EAP i tutor o membre de l'equip directiu entrevista amb família\n- En funció de l'entrevista, decidir si s'activa protocol de maltractament lleu o greu","Maltractament"]
[null,5,"- Activar protocol de mutilació genital","Mutilació genital"]
[null,6,"- Trucar al 112 si hi ha situació d'emergència\n- Contactar amb l'especialista en emergències psicosocials de l'EAP\n- Psicop. EAP entrevista amb família\n- Derivació urgent a CSMIJ o Hospital referent\n- Demanar informe psiquiàtric per si necessita acompanyament continu a casa o no","Emergències psicosocials"]
[null,7,"- Contactar amb l'especialista en emergències psicosocials de l'EAP","Emergències psicosocials"]
[null,8,"- Activació protocol violència masclista","Violència masclista"]
[null,9,"- TS EAP i tutor o membre de l'equip directiu entrevista amb família\n- En funció de l'entrevista, decidir si es tracta el cas a la Comissió Social (si es tracta d'un alumne de centre públic)  o es deriva a Serveis Socials (si es tracta d'un alumne de centre concertat) ","Valorar derivació a Serveis Socials"]
[null,10,"- Entrevista del tutor/a amb la família. Omplir, si escau, el full d'indicadors per valorar si és un cas per portar a la Comissió Social (centre públic). Valorar derivació a Serveis Socials (centre concertat)","Valorar derivació a Serveis Socials"]
[null,11,"Anar a hospital i informar a la família. En funció de la informació que es tingui (via: família, UDEPMI, TS hospital,...) de l'informe mèdic:\n- L'hospital activa el protocol GREU = activació GREU\n- L'informe només descriu les lesions però hi ha marcat l'ítem 9 = activació LLEU","Maltractament"]
[null,12,"Hi ha risc afegit"]
[null,13,"Anar a hospital i informar a la família. En funció de la informació que es tingui (via: família, UDEPMI, TS hospital,...) de l'informe mèdic:\n- L'hospital activa el protocol GREU = activació GREU\n- L'informe només descriu les lesions però hi ha marcat l'ítem 11 o l'item 12 = activació GREU","Maltractament"]
[null,14,"Anar a hospital i informar a la família. En funció de la informació que es tingui (via: família, UDEPMI, TS hospital,...) de l'informe mèdic:\n- L'hospital activa el protocol GREU = activació GREU\n- L'informe només descriu les lesions però hi ha marcat l'ítem 12 = activació GREU","Maltractament"]
[null,15,"Aplicació protocol d'assetjament. Si el maltractament està relacionat per la seva condició (sexista, discapacitat, racial, ètnica,LGBTI,...)  activar protocol d'odi i discriminació","Assetjament"]
[null,16,"La direcció del centre oferirà omplir  instancia relatant els fets i s'enviarà al CEB i s'engegaran les actuacions acordades en aquesta situació específica (DOCENT!!)","Maltractament"]
[null,17,"Valoració prioritària de l'EAP i, si escau, derivació a CSMIJ","Emergències psicosocials"]
[null,18,"Valoració prioritària de l'EAP i, si escau, derivació a SOD","Valoració EAP"]
[null,19,"Activació protocol Lleu/Moderat (Ed. Infantil i Primària)","Maltractament"]
[null,20,"Si es tracta de pornografia activació GREU","Maltractament"]
[null,21,"Si l'amenaça posa en perill real la integritat física de l'infant activació GREU","Maltractament"]
[null,22,"Si l'alumne/a relata maltractament activació lleu/moderat\nSi, a més del relat, té lesions al cos anar a hospital i informar a la família. En funció de la informació que es tingui (via: família, UDEPMI, TS hospital,...) de l'informe mèdic: \n- L'informe només descriu les lesions però l'alumne/a relata maltractament = activació LLEU\n- L'informe només descriu les lesions però l'alumne/a relata maltractament = activació LLEU","Maltractament"]
[null,23,"Si l'alumne/a relata l'abús activació GREU","Maltractament"]

{"sheet":"Full3","index":3,"n_rows":27,"n_cols":7,"rows_kept":27,"cut":false,"hidden":true,"merged":[]}
[]
[]
[null,null,null,"Núm.","Accions","Tipus","Prioritat"]
[null,null,null,1,"Activació protocol maltractament greu","Maltractament"]
[null,null,null,2,"Anar a hospital i informar a la família. En funció de la informació que es tingui (via: família, UDEPMI, TS hospital,...) i de l'informe mèdic:\n- Si l'hospital activa el protocol greu = activació greu\n- Si l'hopital NO activa el protocol greu però a l'informe es descriuen les lesions = activació greu","Maltractament"]
[null,null,null,3,"La direcció del centre oferirà omplir  instancia relatant els fets i s'enviarà al CEB i s'engegaran les actuacions acordades en aquesta situació específica","Maltractament"]
[null,null,null,4,"Activació protocol maltractament lleu/moderat","Maltractament"]
[null,null,null,5,"Activació protocol maltractament lleu/moderat (Ed. Infantil i Primària)","Maltractament"]
[null,null,null,6,"Activació protocol emergències psicosocials","Emergències psicosocials"]
[null,null,null,7,"Activació protocol d'emergències psicosocials i entrevista mateix dia amb psicopedagog (EAP) referent del centre. Derivació urgent a CSMIJ o Hospital referent. Demanar informe psiquiàtric i si necessita acompayament continu a casa o no.","Emergències psicosocials"]
[null,null,null,8,"Anar a hospital i informar a la família. Si l'hospital activa el protocol greu = activació protocol maltractament greu","Maltractament"]
[null,null,null,9,"Anar a hospital i informar a la família. En funció de la informació que es tingui (via: família, UDEPMI, TS hospital,...) de l'informe mèdic:\n- L'hospital activa el protocol greu = activació greu\n- L'hospital NO activa el protocol greu però a l'informe es descriuen les lesions = activació lleu","Maltractament"]
[null,null,null,10,"Aplicació protocol d'assetjament. Si el maltractament està relacionat per la seva condició (sexista, discapacitat, racial, ètnica,LGBTI,...) activar protocol d'odi i discriminació","Assetjament"]
[null,null,null,11,"Derivació a Serveis Socials","Maltractament"]
[null,null,null,12,"Entrevista amb família per part del TS EAP i tutor i/o membre equip directiu. Valorar activació protocol maltractament o derivació a Serveis Socials","Maltractament"]
[null,null,null,13,"Entrevista del tutor/a amb la família. Omplir, si escau, el full d'indicadors per valorar si és un cas per portar a la Comissió Social (centre públic). Valorar derivació a Serveis Socials (centre concertat)","Maltractament"]
[null,null,null,14,"Entrevista el mateix dia amb la família per part de TS EAP i (tutor i/o membre equip directiu). Derivar a Hospital perquè faci informe mèdic i el porti a l'escola. Informe ha d'indicar si les ferides són per maltractament o no.","Emergències psicosocials"]
[null,null,null,15,"Hi ha risc afegit"]
[null,null,null,16,"Link protocol violència masclista","Violència masclista"]
[null,null,null,17,"No té cap acció. Igual que la resta d'items d'aquest apartat"]
[null,null,null,18,"Si es pornografia activació protocol maltractament greu","Maltractament"]
[null,null,null,19,"Si l'alumne/a relata l'abús activació protocol maltractament greu","Maltractament"]
[null,null,null,20,"Si té lesions al cos anar a hospital i informar a la família. En funció de la informació que es tingui (via: família, UDEPMI, TS hospital,...) i de l'informe mèdic: \n- L'informe explicita maltractament i/o hospital activa el seu protocol greu  = activació protocol maltractament greu\n- L'informe només descriu les lesions però l'alumne/a relata maltractament = activació protocol maltractament lleu/moderat","Maltractament"]
[null,null,null,21,"Si l'amenaça posa en perill real la integritat física de l'infant activació GREU","Maltractament"]
[null,null,null,22,"Valoració prioritària de l'EAP i, si escau, derivació a CSMIJ","Valoració EAP"]
[null,null,null,23,"Valoració prioritària de l'EAP i, si escau, derivació a SOD","Valoració EAP"]
[null,null,null,24,"Valorar activiació protocol de mutilació genital","Mutilació genital"]